Workbook

Sheet Rader
A1: Fyll i rätt resultat här till höger! | F1: Resultat | K1: Christian | Q1: Manfreed | W1: Jessica | AC1: Mia E | AI1: Till minne av Esbjörn | AO1: Lars L | AU1: Roger W | BA1: Roger W 2 | BG1: Tommy T 1 | BM1: Tommy T 2 | BS1: Tommy T 3 | BY1: Reino | CE1: Lars Haglund | CK1: Bo Fransson | CQ1: Arne E | CW1: Jonny E | DC1: Jonte | DI1: Mats-ola | DO1: Mika | DU1: Romee | EA1: Anitha | EG1: Ludde | EM1: Jonas M | ES1: Johan G | EY1: Pernilla | FE1: Christer 1 | FK1: Christer 2 | FQ1: Tina | FW1: Monika A | GC1: Edvin A | GI1: Gustav | GO1: Torvald | GU1: Stefan L | HA1: Dick W1 | HG1: Dick W2 | HM1: Bo Jansson | HS1: Lennart C1 | HY1: Lennart C2 | IE1: Lennart C3 | IK1: Sonny | IQ1: Jappe | IW1: Hans Modh | JC1: Monica Modh | JI1: Gille | JO1: Andreas | JU1: Ludde 2 | KA1: Alf B | KG1: Maria I | KM1: Anne-Marie I | KS1: Lars, Kjell, Rolf | KY1: Jan E | LE1: Rune Tjotta | LK1: Wiking | LQ1: Janne L | LW1: Eva W | MC1: Emma
A2: 2018-06-14 | B2: Kl 17.00 | C2: Ryssland | D2: - | E2: Saudiarabien | F2: 5 | G2: - | H2: 0 | J2: =IF(F2=" ",0,IF(F2=H2,"X",IF(F2>H2,1,2))) -> 1 | K2: 2 | L2: - | M2: 0 | O2: =IF(K2=M2,"X",IF(K2>M2,1,2)) -> 1 | P2: =IF($F2=K2,IF($H2=M2,5,IF($J2=O2,3,0)),IF($J2=O2,3,0)) -> 3 | Q2: 1 | R2: - | S2: 2 | U2: =IF(Q2=S2,"X",IF(Q2>S2,1,2)) -> 2 | V2: =IF($F2=Q2,IF($H2=S2,5,IF($J2=U2,3,0)),IF($J2=U2,3,0)) -> 0 | W2: 2 | X2: - | Y2: 1 | AA2: =IF(W2=Y2,"X",IF(W2>Y2,1,2)) -> 1 | AB2: =IF($F2=W2,IF($H2=Y2,5,IF($J2=AA2,3,0)),IF($J2=AA2,3,0)) -> 3 | AC2: 2 | AD2: - | AE2: 1 | AG2: =IF(AC2=AE2,"X",IF(AC2>AE2,1,2)) -> 1 | AH2: =IF($F2=AC2,IF($H2=AE2,5,IF($J2=AG2,3,0)),IF($J2=AG2,3,0)) -> 3 | AI2: 1 | AJ2: - | AK2: 0 | AM2: =IF(AI2=AK2,"X",IF(AI2>AK2,1,2)) -> 1 | AN2: =IF($F2=AI2,IF($H2=AK2,5,IF($J2=AM2,3,0)),IF($J2=AM2,3,0)) -> 3 | AO2: 2 | AP2: - | AQ2: 0 | AS2: =IF(AO2=AQ2,"X",IF(AO2>AQ2,1,2)) -> 1 | AT2: =IF($F2=AO2,IF($H2=AQ2,5,IF($J2=AS2,3,0)),IF($J2=AS2,3,0)) -> 3 | AU2: 3 | AV2: - | AW2: 0 | AY2: =IF(AU2=AW2,"X",IF(AU2>AW2,1,2)) -> 1 | AZ2: =IF($F2=AU2,IF($H2=AW2,5,IF($J2=AY2,3,0)),IF($J2=AY2,3,0)) -> 3 | BA2: 2 | BB2: - | BC2: 1 | BE2: =IF(BA2=BC2,"X",IF(BA2>BC2,1,2)) -> 1 | BF2: =IF($F2=BA2,IF($H2=BC2,5,IF($J2=BE2,3,0)),IF($J2=BE2,3,0)) -> 3 | BG2: 2 | BH2: - | BI2: 0 | BK2: =IF(BG2=BI2,"X",IF(BG2>BI2,1,2)) -> 1 | BL2: =IF($F2=BG2,IF($H2=BI2,5,IF($J2=BK2,3,0)),IF($J2=BK2,3,0)) -> 3 | BM2: 3 | BN2: - | BO2: 2 | BQ2: =IF(BM2=BO2,"X",IF(BM2>BO2,1,2)) -> 1 | BR2: =IF($F2=BM2,IF($H2=BO2,5,IF($J2=BQ2,3,0)),IF($J2=BQ2,3,0)) -> 3 | BS2: 1 | BT2: - | BU2: 0 | BW2: =IF(BS2=BU2,"X",IF(BS2>BU2,1,2)) -> 1 | BX2: =IF($F2=BS2,IF($H2=BU2,5,IF($J2=BW2,3,0)),IF($J2=BW2,3,0)) -> 3 | BY2: 2 | BZ2: - | CA2: 1 | CC2: =IF(BY2=CA2,"X",IF(BY2>CA2,1,2)) -> 1 | CD2: =IF($F2=BY2,IF($H2=CA2,5,IF($J2=CC2,3,0)),IF($J2=CC2,3,0)) -> 3 | CE2: 2 | CF2: - | CG2: 1 | CI2: =IF(CE2=CG2,"X",IF(CE2>CG2,1,2)) -> 1 | CJ2: =IF($F2=CE2,IF($H2=CG2,5,IF($J2=CI2,3,0)),IF($J2=CI2,3,0)) -> 3 | CK2: 1 | CL2: - | CM2: 1 | CO2: =IF(CK2=CM2,"X",IF(CK2>CM2,1,2)) -> X | CP2: =IF($F2=CK2,IF($H2=CM2,5,IF($J2=CO2,3,0)),IF($J2=CO2,3,0)) -> 0 | CQ2: 3 | CR2: - | CS2: 0 | CU2: =IF(CQ2=CS2,"X",IF(CQ2>CS2,1,2)) -> 1 | CV2: =IF($F2=CQ2,IF($H2=CS2,5,IF($J2=CU2,3,0)),IF($J2=CU2,3,0)) -> 3 | CW2: 3 | CX2: - | CY2: 1 | DA2: =IF(CW2=CY2,"X",IF(CW2>CY2,1,2)) -> 1 | DB2: =IF($F2=CW2,IF($H2=CY2,5,IF($J2=DA2,3,0)),IF($J2=DA2,3,0)) -> 3 | DC2: 2 | DD2: - | DE2: 0 | DG2: =IF(DC2=DE2,"X",IF(DC2>DE2,1,2)) -> 1 | DH2: =IF($F2=DC2,IF($H2=DE2,5,IF($J2=DG2,3,0)),IF($J2=DG2,3,0)) -> 3 | DI2: 3 | DJ2: - | DK2: 0 | DM2: =IF(DI2=DK2,"X",IF(DI2>DK2,1,2)) -> 1 | DN2: =IF($F2=DI2,IF($H2=DK2,5,IF($J2=DM2,3,0)),IF($J2=DM2,3,0)) -> 3 | DO2: 2 | DP2: - | DQ2: 1 | DS2: =IF(DO2=DQ2,"X",IF(DO2>DQ2,1,2)) -> 1 | DT2: =IF($F2=DO2,IF($H2=DQ2,5,IF($J2=DS2,3,0)),IF($J2=DS2,3,0)) -> 3 | DU2: 1 | DV2: - | DW2: 0 | DY2: =IF(DU2=DW2,"X",IF(DU2>DW2,1,2)) -> 1 | DZ2: =IF($F2=DU2,IF($H2=DW2,5,IF($J2=DY2,3,0)),IF($J2=DY2,3,0)) -> 3 | EA2: 2 | EB2: - | EC2: 1 | EE2: =IF(EA2=EC2,"X",IF(EA2>EC2,1,2)) -> 1 | EF2: =IF($F2=EA2,IF($H2=EC2,5,IF($J2=EE2,3,0)),IF($J2=EE2,3,0)) -> 3 | EG2: 2 | EH2: - | EI2: 1 | EK2: =IF(EG2=EI2,"X",IF(EG2>EI2,1,2)) -> 1 | EL2: =IF($F2=EG2,IF($H2=EI2,5,IF($J2=EK2,3,0)),IF($J2=EK2,3,0)) -> 3 | EM2: 2 | EN2: - | EO2: 0 | EQ2: =IF(EM2=EO2,"X",IF(EM2>EO2,1,2)) -> 1 | ER2: =IF($F2=EM2,IF($H2=EO2,5,IF($J2=EQ2,3,0)),IF($J2=EQ2,3,0)) -> 3 | ES2: 2 | ET2: - | EU2: 0 | EW2: =IF(ES2=EU2,"X",IF(ES2>EU2,1,2)) -> 1 | EX2: =IF($F2=ES2,IF($H2=EU2,5,IF($J2=EW2,3,0)),IF($J2=EW2,3,0)) -> 3 | EY2: 2 | EZ2: - | FA2: 1 | FC2: =IF(EY2=FA2,"X",IF(EY2>FA2,1,2)) -> 1 | FD2: =IF($F2=EY2,IF($H2=FA2,5,IF($J2=FC2,3,0)),IF($J2=FC2,3,0)) -> 3 | FE2: 1 | FF2: - | FG2: 1 | FI2: =IF(FE2=FG2,"X",IF(FE2>FG2,1,2)) -> X | FJ2: =IF($F2=FE2,IF($H2=FG2,5,IF($J2=FI2,3,0)),IF($J2=FI2,3,0)) -> 0 | FK2: 2 | FL2: - | FM2: 1 | FO2: =IF(FK2=FM2,"X",IF(FK2>FM2,1,2)) -> 1 | FP2: =IF($F2=FK2,IF($H2=FM2,5,IF($J2=FO2,3,0)),IF($J2=FO2,3,0)) -> 3 | FQ2: 1 | FR2: - | FS2: 0 | FU2: =IF(FQ2=FS2,"X",IF(FQ2>FS2,1,2)) -> 1 | FV2: =IF($F2=FQ2,IF($H2=FS2,5,IF($J2=FU2,3,0)),IF($J2=FU2,3,0)) -> 3 | FW2: 1 | FX2: - | FY2: 0 | GA2: =IF(FW2=FY2,"X",IF(FW2>FY2,1,2)) -> 1 | GB2: =IF($F2=FW2,IF($H2=FY2,5,IF($J2=GA2,3,0)),IF($J2=GA2,3,0)) -> 3 | GC2: 2 | GD2: - | GE2: 0 | GG2: =IF(GC2=GE2,"X",IF(GC2>GE2,1,2)) -> 1 | GH2: =IF($F2=GC2,IF($H2=GE2,5,IF($J2=GG2,3,0)),IF($J2=GG2,3,0)) -> 3 | GI2: 2 | GJ2: - | GK2: 1 | GM2: =IF(GI2=GK2,"X",IF(GI2>GK2,1,2)) -> 1 | GN2: =IF($F2=GI2,IF($H2=GK2,5,IF($J2=GM2,3,0)),IF($J2=GM2,3,0)) -> 3 | GO2: 2 | GP2: - | GQ2: 0 | GS2: =IF(GO2=GQ2,"X",IF(GO2>GQ2,1,2)) -> 1 | GT2: =IF($F2=GO2,IF($H2=GQ2,5,IF($J2=GS2,3,0)),IF($J2=GS2,3,0)) -> 3 | GU2: 1 | GV2: - | GW2: 0 | GY2: =IF(GU2=GW2,"X",IF(GU2>GW2,1,2)) -> 1 | GZ2: =IF($F2=GU2,IF($H2=GW2,5,IF($J2=GY2,3,0)),IF($J2=GY2,3,0)) -> 3 | HA2: 3 | HB2: - | HC2: 1 | HE2: =IF(HA2=HC2,"X",IF(HA2>HC2,1,2)) -> 1 | HF2: =IF($F2=HA2,IF($H2=HC2,5,IF($J2=HE2,3,0)),IF($J2=HE2,3,0)) -> 3 | HG2: 3 | HH2: - | HI2: 1 | HK2: =IF(HG2=HI2,"X",IF(HG2>HI2,1,2)) -> 1 | HL2: =IF($F2=HG2,IF($H2=HI2,5,IF($J2=HK2,3,0)),IF($J2=HK2,3,0)) -> 3 | HM2: 1 | HN2: - | HO2: 0 | HQ2: =IF(HM2=HO2,"X",IF(HM2>HO2,1,2)) -> 1 | HR2: =IF($F2=HM2,IF($H2=HO2,5,IF($J2=HQ2,3,0)),IF($J2=HQ2,3,0)) -> 3 | HS2: 3 | HT2: - | HU2: 0 | HW2: =IF(HS2=HU2,"X",IF(HS2>HU2,1,2)) -> 1 | HX2: =IF($F2=HS2,IF($H2=HU2,5,IF($J2=HW2,3,0)),IF($J2=HW2,3,0)) -> 3 | HY2: 1 | HZ2: - | IA2: 2 | IC2: =IF(HY2=IA2,"X",IF(HY2>IA2,1,2)) -> 2 | ID2: =IF($F2=HY2,IF($H2=IA2,5,IF($J2=IC2,3,0)),IF($J2=IC2,3,0)) -> 0 | IE2: 2 | IF2: - | IG2: 2 | II2: =IF(IE2=IG2,"X",IF(IE2>IG2,1,2)) -> X | IJ2: =IF($F2=IE2,IF($H2=IG2,5,IF($J2=II2,3,0)),IF($J2=II2,3,0)) -> 0 | IK2: 1 | IL2: - | IM2: 0 | IO2: =IF(IK2=IM2,"X",IF(IK2>IM2,1,2)) -> 1 | IP2: =IF($F2=IK2,IF($H2=IM2,5,IF($J2=IO2,3,0)),IF($J2=IO2,3,0)) -> 3 | IQ2: 2 | IR2: - | IS2: 0 | IU2: =IF(IQ2=IS2,"X",IF(IQ2>IS2,1,2)) -> 1 | IV2: =IF($F2=IQ2,IF($H2=IS2,5,IF($J2=IU2,3,0)),IF($J2=IU2,3,0)) -> 3 | IW2: 2 | IX2: - | IY2: 0 | JA2: =IF(IW2=IY2,"X",IF(IW2>IY2,1,2)) -> 1 | JB2: =IF($F2=IW2,IF($H2=IY2,5,IF($J2=JA2,3,0)),IF($J2=JA2,3,0)) -> 3 | JC2: 2 | JD2: - | JE2: 2 | JG2: =IF(JC2=JE2,"X",IF(JC2>JE2,1,2)) -> X | JH2: =IF($F2=JC2,IF($H2=JE2,5,IF($J2=JG2,3,0)),IF($J2=JG2,3,0)) -> 0 | JI2: 2 | JJ2: - | JK2: 1 | JM2: =IF(JI2=JK2,"X",IF(JI2>JK2,1,2)) -> 1 | JN2: =IF($F2=JI2,IF($H2=JK2,5,IF($J2=JM2,3,0)),IF($J2=JM2,3,0)) -> 3 | JO2: 2 | JP2: - | JQ2: 0 | JS2: =IF(JO2=JQ2,"X",IF(JO2>JQ2,1,2)) -> 1 | JT2: =IF($F2=JO2,IF($H2=JQ2,5,IF($J2=JS2,3,0)),IF($J2=JS2,3,0)) -> 3 | JU2: 2 | JV2: - | JW2: 1 | JY2: =IF(JU2=JW2,"X",IF(JU2>JW2,1,2)) -> 1 | JZ2: =IF($F2=JU2,IF($H2=JW2,5,IF($J2=JY2,3,0)),IF($J2=JY2,3,0)) -> 3 | KA2: 5 | KB2: - | KC2: 2 | KE2: =IF(KA2=KC2,"X",IF(KA2>KC2,1,2)) -> 1 | KF2: =IF($F2=KA2,IF($H2=KC2,5,IF($J2=KE2,3,0)),IF($J2=KE2,3,0)) -> 3 | KG2: 2 | KH2: - | KI2: 2 | KK2: =IF(KG2=KI2,"X",IF(KG2>KI2,1,2)) -> X | KL2: =IF($F2=KG2,IF($H2=KI2,5,IF($J2=KK2,3,0)),IF($J2=KK2,3,0)) -> 0 | KM2: 1 | KN2: - | KO2: 0 | KQ2: =IF(KM2=KO2,"X",IF(KM2>KO2,1,2)) -> 1 | KR2: =IF($F2=KM2,IF($H2=KO2,5,IF($J2=KQ2,3,0)),IF($J2=KQ2,3,0)) -> 3 | KS2: 2 | KT2: - | KU2: 0 | KW2: =IF(KS2=KU2,"X",IF(KS2>KU2,1,2)) -> 1 | KX2: =IF($F2=KS2,IF($H2=KU2,5,IF($J2=KW2,3,0)),IF($J2=KW2,3,0)) -> 3 | KY2: 1 | KZ2: - | LA2: 0 | LC2: =IF(KY2=LA2,"X",IF(KY2>LA2,1,2)) -> 1 | LD2: =IF($F2=KY2,IF($H2=LA2,5,IF($J2=LC2,3,0)),IF($J2=LC2,3,0)) -> 3 | LE2: 2 | LF2: - | LG2: 0 | LI2: =IF(LE2=LG2,"X",IF(LE2>LG2,1,2)) -> 1 | LJ2: =IF($F2=LE2,IF($H2=LG2,5,IF($J2=LI2,3,0)),IF($J2=LI2,3,0)) -> 3 | LK2: 1 | LL2: - | LM2: 0 | LO2: =IF(LK2=LM2,"X",IF(LK2>LM2,1,2)) -> 1 | LP2: =IF($F2=LK2,IF($H2=LM2,5,IF($J2=LO2,3,0)),IF($J2=LO2,3,0)) -> 3 | LQ2: 2 | LR2: - | LS2: 1 | LU2: =IF(LQ2=LS2,"X",IF(LQ2>LS2,1,2)) -> 1 | LV2: =IF($F2=LQ2,IF($H2=LS2,5,IF($J2=LU2,3,0)),IF($J2=LU2,3,0)) -> 3 | LW2: 1 | LX2: - | LY2: 2 | MA2: =IF(LW2=LY2,"X",IF(LW2>LY2,1,2)) -> 2 | MB2: =IF($F2=LW2,IF($H2=LY2,5,IF($J2=MA2,3,0)),IF($J2=MA2,3,0)) -> 0 | MC2: 1 | MD2: - | ME2: 0 | MG2: =IF(MC2=ME2,"X",IF(MC2>ME2,1,2)) -> 1 | MH2: =IF($F2=MC2,IF($H2=ME2,5,IF($J2=MG2,3,0)),IF($J2=MG2,3,0)) -> 3
A3: 2018-06-15 | B3: Kl 14.00 | C3: Egypten | D3: =D2 -> - | E3: Uruguay | F3: 0 | G3: - | H3: 1 | J3: 2 | K3: 0 | L3: - | M3: 1 | O3: 2 | P3: =IF($F3=K3,IF($H3=M3,5,IF($J3=O3,3,0)),IF($J3=O3,3,0)) -> 5 | Q3: 2 | R3: - | S3: 0 | U3: 1 | V3: =IF($F3=Q3,IF($H3=S3,5,IF($J3=U3,3,0)),IF($J3=U3,3,0)) -> 0 | W3: 1 | X3: - | Y3: 1 | AA3: X | AB3: 0 | AC3: 1 | AD3: - | AE3: 1 | AG3: X | AH3: 0 | AI3: 0 | AJ3: - | AK3: 1 | AM3: 2 | AN3: 5 | AO3: 0 | AP3: - | AQ3: 1 | AS3: 2 | AT3: 5 | AU3: 2 | AV3: - | AW3: 2 | AY3: X | AZ3: 0 | BA3: 0 | BB3: - | BC3: 0 | BE3: X | BF3: 0 | BG3: 1 | BH3: - | BI3: 1 | BK3: X | BL3: 0 | BM3: 0 | BN3: - | BO3: 4 | BQ3: 2 | BR3: 3 | BS3: 2 | BT3: - | BU3: 2 | BW3: X | BX3: 0 | BY3: 1 | BZ3: - | CA3: 2 | CC3: 2 | CD3: 3 | CE3: 1 | CF3: - | CG3: 2 | CI3: 2 | CJ3: 3 | CK3: 0 | CL3: - | CM3: 3 | CO3: 2 | CP3: 3 | CQ3: 1 | CR3: - | CS3: 4 | CU3: 2 | CV3: 3 | CW3: 1 | CX3: - | CY3: 2 | DA3: 2 | DB3: 3 | DC3: 1 | DD3: - | DE3: 0 | DG3: 1 | DH3: 0 | DI3: 0 | DJ3: - | DK3: 1 | DM3: 2 | DN3: 5 | DO3: 1 | DP3: - | DQ3: 1 | DS3: X | DT3: 0 | DU3: 2 | DV3: - | DW3: 2 | DY3: X | DZ3: 0 | EA3: 1 | EB3: - | EC3: 3 | EE3: 2 | EF3: 3 | EG3: 1 | EH3: - | EI3: 2 | EK3: 2 | EL3: 3 | EM3: 1 | EN3: - | EO3: 3 | EQ3: 2 | ER3: 3 | ES3: 1 | ET3: - | EU3: 3 | EW3: 2 | EX3: 3 | EY3: 0 | EZ3: - | FA3: 3 | FC3: 2 | FD3: 3 | FE3: 2 | FF3: - | FG3: 1 | FI3: 1 | FJ3: 0 | FK3: 1 | FL3: - | FM3: 1 | FO3: X | FP3: 0 | FQ3: 0 | FR3: - | FS3: 2 | FU3: 2 | FV3: 3 | FW3: 0 | FX3: - | FY3: 2 | GA3: 2 | GB3: 3 | GC3: 0 | GD3: - | GE3: 2 | GG3: 2 | GH3: 3 | GI3: 0 | GJ3: - | GK3: 1 | GM3: 2 | GN3: 5 | GO3: 0 | GP3: - | GQ3: 2 | GS3: 2 | GT3: 3 | GU3: 0 | GV3: - | GW3: 2 | GY3: 2 | GZ3: 3 | HA3: 0 | HB3: - | HC3: 2 | HE3: 2 | HF3: 3 | HG3: 2 | HH3: - | HI3: 4 | HK3: 2 | HL3: 3 | HM3: 0 | HN3: - | HO3: 0 | HQ3: X | HR3: 0 | HS3: 0 | HT3: - | HU3: 2 | HW3: 2 | HX3: 3 | HY3: 1 | HZ3: - | IA3: 1 | IC3: X | ID3: 0 | IE3: 1 | IF3: - | IG3: 3 | II3: 2 | IJ3: 3 | IK3: 0 | IL3: - | IM3: 0 | IO3: X | IP3: 0 | IQ3: 1 | IR3: - | IS3: 1 | IU3: X | IV3: 0 | IW3: 0 | IX3: - | IY3: 1 | JA3: 2 | JB3: 5 | JC3: 0 | JD3: - | JE3: 2 | JG3: 2 | JH3: 3 | JI3: 1 | JJ3: - | JK3: 1 | JM3: X | JN3: 0 | JO3: 1 | JP3: - | JQ3: 2 | JS3: 2 | JT3: 3 | JU3: 1 | JV3: - | JW3: 2 | JY3: 2 | JZ3: 3 | KA3: 1 | KB3: - | KC3: 3 | KE3: 2 | KF3: 3 | KG3: 1 | KH3: - | KI3: 3 | KK3: 2 | KL3: 3 | KM3: 1 | KN3: - | KO3: 2 | KQ3: 2 | KR3: 3 | KS3: 0 | KT3: - | KU3: 3 | KW3: 2 | KX3: 3 | KY3: 0 | KZ3: - | LA3: 1 | LC3: 2 | LD3: 5 | LE3: 1 | LF3: - | LG3: 3 | LI3: 2 | LJ3: 3 | LK3: 0 | LL3: - | LM3: 1 | LO3: 2 | LP3: 5 | LQ3: 1 | LR3: - | LS3: 2 | LU3: 2 | LV3: 3 | LW3: 1 | LX3: - | LY3: 0 | MA3: 1 | MB3: 0 | MC3: 0 | MD3: - | ME3: 1 | MG3: 2 | MH3: 5
A4: 2018-06-15 | B4: Kl 17.00 | C4: Marocko | D4: - | E4: Iran | F4: 0 | G4: - | H4: 1 | J4: 2 | K4: 1 | L4: - | M4: 1 | O4: X | P4: 0 | Q4: 0 | R4: - | S4: 2 | U4: 2 | V4: 3 | W4: 0 | X4: - | Y4: 1 | AA4: 2 | AB4: 5 | AC4: 1 | AD4: - | AE4: 3 | AG4: 2 | AH4: 3 | AI4: 2 | AJ4: - | AK4: 1 | AM4: 1 | AN4: 0 | AO4: 0 | AP4: - | AQ4: 0 | AS4: X | AT4: 0 | AU4: 2 | AV4: - | AW4: 1 | AY4: 1 | AZ4: 0 | BA4: 1 | BB4: - | BC4: 0 | BE4: 1 | BF4: 0 | BG4: 1 | BH4: - | BI4: 2 | BK4: 2 | BL4: 3 | BM4: 1 | BN4: - | BO4: 3 | BQ4: 2 | BR4: 3 | BS4: 1 | BT4: - | BU4: 1 | BW4: X | BX4: 0 | BY4: 1 | BZ4: - | CA4: 2 | CC4: 2 | CD4: 3 | CE4: 1 | CF4: - | CG4: 1 | CI4: X | CJ4: 0 | CK4: 2 | CL4: - | CM4: 0 | CO4: 1 | CP4: 0 | CQ4: 2 | CR4: - | CS4: 2 | CU4: X | CV4: 0 | CW4: 2 | CX4: - | CY4: 0 | DA4: 1 | DB4: 0 | DC4: 1 | DD4: - | DE4: 1 | DG4: X | DH4: 0 | DI4: 3 | DJ4: - | DK4: 1 | DM4: 1 | DN4: 0 | DO4: 1 | DP4: - | DQ4: 0 | DS4: 1 | DT4: 0 | DU4: 1 | DV4: - | DW4: 2 | DY4: 2 | DZ4: 3 | EA4: 1 | EB4: - | EC4: 2 | EE4: 2 | EF4: 3 | EG4: 0 | EH4: - | EI4: 1 | EK4: 2 | EL4: 5 | EM4: 3 | EN4: - | EO4: 2 | EQ4: 1 | ER4: 0 | ES4: 2 | ET4: - | EU4: 2 | EW4: X | EX4: 0 | EY4: 0 | EZ4: - | FA4: 1 | FC4: 2 | FD4: 5 | FE4: 1 | FF4: - | FG4: 1 | FI4: X | FJ4: 0 | FK4: 1 | FL4: - | FM4: 2 | FO4: 2 | FP4: 3 | FQ4: 0 | FR4: - | FS4: 3 | FU4: 2 | FV4: 3 | FW4: 1 | FX4: - | FY4: 1 | GA4: X | GB4: 0 | GC4: 1 | GD4: - | GE4: 0 | GG4: 1 | GH4: 0 | GI4: 1 | GJ4: - | GK4: 0 | GM4: 1 | GN4: 0 | GO4: 2 | GP4: - | GQ4: 1 | GS4: 1 | GT4: 0 | GU4: 1 | GV4: - | GW4: 0 | GY4: 1 | GZ4: 0 | HA4: 1 | HB4: - | HC4: 1 | HE4: X | HF4: 0 | HG4: 2 | HH4: - | HI4: 2 | HK4: X | HL4: 0 | HM4: 2 | HN4: - | HO4: 0 | HQ4: 1 | HR4: 0 | HS4: 1 | HT4: - | HU4: 1 | HW4: X | HX4: 0 | HY4: 2 | HZ4: - | IA4: 1 | IC4: 1 | ID4: 0 | IE4: 1 | IF4: - | IG4: 2 | II4: 2 | IJ4: 3 | IK4: 2 | IL4: - | IM4: 0 | IO4: 1 | IP4: 0 | IQ4: 2 | IR4: - | IS4: 1 | IU4: 1 | IV4: 0 | IW4: 1 | IX4: - | IY4: 1 | JA4: X | JB4: 0 | JC4: 0 | JD4: - | JE4: 3 | JG4: 2 | JH4: 3 | JI4: 2 | JJ4: - | JK4: 1 | JM4: 1 | JN4: 0 | JO4: 3 | JP4: - | JQ4: 1 | JS4: 1 | JT4: 0 | JU4: 0 | JV4: - | JW4: 1 | JY4: 2 | JZ4: 5 | KA4: 3 | KB4: - | KC4: 1 | KE4: 1 | KF4: 0 | KG4: 3 | KH4: - | KI4: 1 | KK4: 1 | KL4: 0 | KM4: 4 | KN4: - | KO4: 1 | KQ4: 1 | KR4: 0 | KS4: 1 | KT4: - | KU4: 1 | KW4: X | KX4: 0 | KY4: 1 | KZ4: - | LA4: 1 | LC4: X | LD4: 0 | LE4: 0 | LF4: - | LG4: 0 | LI4: X | LJ4: 0 | LK4: 1 | LL4: - | LM4: 1 | LO4: X | LP4: 0 | LQ4: 2 | LR4: - | LS4: 1 | LU4: 1 | LV4: 0 | LW4: 2 | LX4: - | LY4: 1 | MA4: 1 | MB4: 0 | MC4: 2 | MD4: - | ME4: 0 | MG4: 1 | MH4: 0
A5: 2018-06-15 | B5: Kl 20.00 | C5: Portugal | D5: - | E5: Spanien | F5: 3 | G5: - | H5: 3 | J5: X | K5: 1 | L5: - | M5: 1 | O5: X | P5: 3 | Q5: 2 | R5: - | S5: 1 | U5: 1 | V5: 0 | W5: 2 | X5: - | Y5: 1 | AA5: 1 | AB5: 0 | AC5: 2 | AD5: - | AE5: 2 | AG5: X | AH5: 3 | AI5: 0 | AJ5: - | AK5: 3 | AM5: 2 | AN5: 0 | AO5: 2 | AP5: - | AQ5: 2 | AS5: X | AT5: 3 | AU5: 1 | AV5: - | AW5: 1 | AY5: X | AZ5: 3 | BA5: 2 | BB5: - | BC5: 2 | BE5: X | BF5: 3 | BG5: 0 | BH5: - | BI5: 0 | BK5: X | BL5: 3 | BM5: 3 | BN5: - | BO5: 3 | BQ5: X | BR5: 5 | BS5: 1 | BT5: - | BU5: 2 | BW5: 2 | BX5: 0 | BY5: 3 | BZ5: - | CA5: 1 | CC5: 1 | CD5: 0 | CE5: 1 | CF5: - | CG5: 3 | CI5: 2 | CJ5: 0 | CK5: 1 | CL5: - | CM5: 2 | CO5: 2 | CP5: 0 | CQ5: 2 | CR5: - | CS5: 1 | CU5: 1 | CV5: 0 | CW5: 1 | CX5: - | CY5: 1 | DA5: X | DB5: 3 | DC5: 1 | DD5: - | DE5: 1 | DG5: X | DH5: 3 | DI5: 2 | DJ5: - | DK5: 2 | DM5: X | DN5: 3 | DO5: 1 | DP5: - | DQ5: 2 | DS5: 2 | DT5: 0 | DU5: 2 | DV5: - | DW5: 2 | DY5: X | DZ5: 3 | EA5: 1 | EB5: - | EC5: 1 | EE5: X | EF5: 3 | EG5: 1 | EH5: - | EI5: 3 | EK5: 2 | EL5: 0 | EM5: 2 | EN5: - | EO5: 1 | EQ5: 1 | ER5: 0 | ES5: 1 | ET5: - | EU5: 2 | EW5: 2 | EX5: 0 | EY5: 2 | EZ5: - | FA5: 2 | FC5: X | FD5: 3 | FE5: 1 | FF5: - | FG5: 2 | FI5: 2 | FJ5: 0 | FK5: 2 | FL5: - | FM5: 2 | FO5: X | FP5: 3 | FQ5: 0 | FR5: - | FS5: 3 | FU5: 2 | FV5: 0 | FW5: 1 | FX5: - | FY5: 1 | GA5: X | GB5: 3 | GC5: 1 | GD5: - | GE5: 0 | GG5: 1 | GH5: 0 | GI5: 3 | GJ5: - | GK5: 1 | GM5: 1 | GN5: 0 | GO5: 1 | GP5: - | GQ5: 1 | GS5: X | GT5: 3 | GU5: 1 | GV5: - | GW5: 1 | GY5: X | GZ5: 3 | HA5: 1 | HB5: - | HC5: 3 | HE5: 2 | HF5: 0 | HG5: 3 | HH5: - | HI5: 1 | HK5: 1 | HL5: 0 | HM5: 1 | HN5: - | HO5: 1 | HQ5: X | HR5: 3 | HS5: 1 | HT5: - | HU5: 1 | HW5: X | HX5: 3 | HY5: 0 | HZ5: - | IA5: 1 | IC5: 2 | ID5: 0 | IE5: 1 | IF5: - | IG5: 0 | II5: 1 | IJ5: 0 | IK5: 1 | IL5: - | IM5: 1 | IO5: X | IP5: 3 | IQ5: 1 | IR5: - | IS5: 2 | IU5: 2 | IV5: 0 | IW5: 1 | IX5: - | IY5: 1 | JA5: X | JB5: 3 | JC5: 0 | JD5: - | JE5: 1 | JG5: 2 | JH5: 0 | JI5: 0 | JJ5: - | JK5: 1 | JM5: 2 | JN5: 0 | JO5: 1 | JP5: - | JQ5: 1 | JS5: X | JT5: 3 | JU5: 1 | JV5: - | JW5: 3 | JY5: 2 | JZ5: 0 | KA5: 4 | KB5: - | KC5: 1 | KE5: 1 | KF5: 0 | KG5: 4 | KH5: - | KI5: 3 | KK5: 1 | KL5: 0 | KM5: 4 | KN5: - | KO5: 3 | KQ5: 1 | KR5: 0 | KS5: 1 | KT5: - | KU5: 2 | KW5: 2 | KX5: 0 | KY5: 0 | KZ5: - | LA5: 2 | LC5: 2 | LD5: 0 | LE5: 0 | LF5: - | LG5: 0 | LI5: X | LJ5: 3 | LK5: 1 | LL5: - | LM5: 2 | LO5: 2 | LP5: 0 | LQ5: 2 | LR5: - | LS5: 0 | LU5: 1 | LV5: 0 | LW5: 1 | LX5: - | LY5: 1 | MA5: X | MB5: 3 | MC5: 2 | MD5: - | ME5: 1 | MG5: 1 | MH5: 0
A6: 2018-06-16 | B6: Kl 12.00 | C6: Frankrike | D6: - | E6: Australien | G6: - | J6: 0 | K6: 1 | L6: - | M6: 0 | O6: 1 | P6: 0 | Q6: 1 | R6: - | S6: 0 | U6: 1 | V6: 0 | W6: 2 | X6: - | Y6: 1 | AA6: 1 | AB6: 0 | AC6: 4 | AD6: - | AE6: 1 | AG6: 1 | AH6: 0 | AI6: 1 | AJ6: - | AK6: 0 | AM6: 1 | AN6: 0 | AO6: 3 | AP6: - | AQ6: 1 | AS6: 1 | AT6: 0 | AU6: 3 | AV6: - | AW6: 1 | AY6: 1 | AZ6: 0 | BA6: 2 | BB6: - | BC6: 0 | BE6: 1 | BF6: 0 | BG6: 3 | BH6: - | BI6: 0 | BK6: 1 | BL6: 0 | BM6: 2 | BN6: - | BO6: 1 | BQ6: 1 | BR6: 0 | BS6: 2 | BT6: - | BU6: 0 | BW6: 1 | BX6: 0 | BY6: 2 | BZ6: - | CA6: 1 | CC6: 1 | CD6: 0 | CE6: 2 | CF6: - | CG6: 0 | CI6: 1 | CJ6: 0 | CK6: 2 | CL6: - | CM6: 0 | CO6: 1 | CP6: 0 | CQ6: 4 | CR6: - | CS6: 2 | CU6: 1 | CV6: 0 | CW6: 2 | CX6: - | CY6: 0 | DA6: 1 | DB6: 0 | DC6: 2 | DD6: - | DE6: 1 | DG6: 1 | DH6: 0 | DI6: 2 | DJ6: - | DK6: 1 | DM6: 1 | DN6: 0 | DO6: 3 | DP6: - | DQ6: 0 | DS6: 1 | DT6: 0 | DU6: 3 | DV6: - | DW6: 1 | DY6: 1 | DZ6: 0 | EA6: 2 | EB6: - | EC6: 0 | EE6: 1 | EF6: 0 | EG6: 2 | EH6: - | EI6: 1 | EK6: 1 | EL6: 0 | EM6: 4 | EN6: - | EO6: 1 | EQ6: 1 | ER6: 0 | ES6: 4 | ET6: - | EU6: 0 | EW6: 1 | EX6: 0 | EY6: 3 | EZ6: - | FA6: 1 | FC6: 1 | FD6: 0 | FE6: 3 | FF6: - | FG6: 0 | FI6: 1 | FJ6: 0 | FK6: 4 | FL6: - | FM6: 0 | FO6: 1 | FP6: 0 | FQ6: 2 | FR6: - | FS6: 0 | FU6: 1 | FV6: 0 | FW6: 2 | FX6: - | FY6: 0 | GA6: 1 | GB6: 0 | GC6: 2 | GD6: - | GE6: 0 | GG6: 1 | GH6: 0 | GI6: 3 | GJ6: - | GK6: 0 | GM6: 1 | GN6: 0 | GO6: 2 | GP6: - | GQ6: 0 | GS6: 1 | GT6: 0 | GU6: 2 | GV6: - | GW6: 1 | GY6: 1 | GZ6: 0 | HA6: 3 | HB6: - | HC6: 0 | HE6: 1 | HF6: 0 | HG6: 2 | HH6: - | HI6: 3 | HK6: 2 | HL6: 0 | HM6: 3 | HN6: - | HO6: 0 | HQ6: 1 | HR6: 0 | HS6: 2 | HT6: - | HU6: 1 | HW6: 1 | HX6: 0 | HY6: 3 | HZ6: - | IA6: 0 | IC6: 1 | ID6: 0 | IE6: 1 | IF6: - | IG6: 1 | II6: X | IJ6: 0 | IK6: 2 | IL6: - | IM6: 0 | IO6: 1 | IP6: 0 | IQ6: 1 | IR6: - | IS6: 0 | IU6: 1 | IV6: 0 | IW6: 2 | IX6: - | IY6: 0 | JA6: 1 | JB6: 0 | JC6: 2 | JD6: - | JE6: 0 | JG6: 1 | JH6: 0 | JI6: 2 | JJ6: - | JK6: 0 | JM6: 1 | JN6: 0 | JO6: 4 | JP6: - | JQ6: 0 | JS6: 1 | JT6: 0 | JU6: 2 | JV6: - | JW6: 1 | JY6: 1 | JZ6: 0 | KA6: 4 | KB6: - | KC6: 1 | KE6: 1 | KF6: 0 | KG6: 4 | KH6: - | KI6: 3 | KK6: 1 | KL6: 0 | KM6: 3 | KN6: - | KO6: 2 | KQ6: 1 | KR6: 0 | KS6: 3 | KT6: - | KU6: 1 | KW6: 1 | KX6: 0 | KY6: 2 | KZ6: - | LA6: 1 | LC6: 1 | LD6: 0 | LE6: 3 | LF6: - | LG6: 0 | LI6: 1 | LJ6: 0 | LK6: 2 | LL6: - | LM6: 0 | LO6: 1 | LP6: 0 | LQ6: 3 | LR6: - | LS6: 0 | LU6: 1 | LV6: 0 | LW6: 2 | LX6: - | LY6: 0 | MA6: 1 | MB6: 0 | MC6: 1 | MD6: - | ME6: 0 | MG6: 1 | MH6: 0
A7: 2018-06-16 | B7: Kl 15.00 | C7: Argentina | D7: - | E7: Island | G7: - | J7: 0 | K7: 2 | L7: - | M7: 1 | O7: 1 | P7: 0 | Q7: 0 | R7: - | S7: 1 | U7: 2 | V7: 0 | W7: 2 | X7: - | Y7: 0 | AA7: 1 | AB7: 0 | AC7: 2 | AD7: - | AE7: 1 | AG7: 1 | AH7: 0 | AI7: 1 | AJ7: - | AK7: 0 | AM7: 1 | AN7: 0 | AO7: 3 | AP7: - | AQ7: 0 | AS7: 1 | AT7: 0 | AU7: 3 | AV7: - | AW7: 0 | AY7: 1 | AZ7: 0 | BA7: 2 | BB7: - | BC7: 1 | BE7: 1 | BF7: 0 | BG7: 2 | BH7: - | BI7: 1 | BK7: 1 | BL7: 0 | BM7: 3 | BN7: - | BO7: 2 | BQ7: 1 | BR7: 0 | BS7: 2 | BT7: - | BU7: 2 | BW7: X | BX7: 0 | BY7: 3 | BZ7: - | CA7: 1 | CC7: 1 | CD7: 0 | CE7: 3 | CF7: - | CG7: 1 | CI7: 1 | CJ7: 0 | CK7: 1 | CL7: - | CM7: 0 | CO7: 1 | CP7: 0 | CQ7: 5 | CR7: - | CS7: 0 | CU7: 1 | CV7: 0 | CW7: 3 | CX7: - | CY7: 0 | DA7: 1 | DB7: 0 | DC7: 2 | DD7: - | DE7: 0 | DG7: 1 | DH7: 0 | DI7: 0 | DJ7: - | DK7: 0 | DM7: X | DN7: 0 | DO7: 2 | DP7: - | DQ7: 0 | DS7: 1 | DT7: 0 | DU7: 2 | DV7: - | DW7: 1 | DY7: 1 | DZ7: 0 | EA7: 2 | EB7: - | EC7: 0 | EE7: 1 | EF7: 0 | EG7: 1 | EH7: - | EI7: 0 | EK7: 1 | EL7: 0 | EM7: 3 | EN7: - | EO7: 0 | EQ7: 1 | ER7: 0 | ES7: 4 | ET7: - | EU7: 1 | EW7: 1 | EX7: 0 | EY7: 2 | EZ7: - | FA7: 0 | FC7: 1 | FD7: 0 | FE7: 1 | FF7: - | FG7: 1 | FI7: X | FJ7: 0 | FK7: 2 | FL7: - | FM7: 1 | FO7: 1 | FP7: 0 | FQ7: 1 | FR7: - | FS7: 1 | FU7: X | FV7: 0 | FW7: 3 | FX7: - | FY7: 1 | GA7: 1 | GB7: 0 | GC7: 2 | GD7: - | GE7: 0 | GG7: 1 | GH7: 0 | GI7: 3 | GJ7: - | GK7: 1 | GM7: 1 | GN7: 0 | GO7: 3 | GP7: - | GQ7: 0 | GS7: 1 | GT7: 0 | GU7: 2 | GV7: - | GW7: 1 | GY7: 1 | GZ7: 0 | HA7: 2 | HB7: - | HC7: 2 | HE7: X | HF7: 0 | HG7: 1 | HH7: - | HI7: 3 | HK7: 2 | HL7: 0 | HM7: 2 | HN7: - | HO7: 0 | HQ7: 1 | HR7: 0 | HS7: 3 | HT7: - | HU7: 0 | HW7: 1 | HX7: 0 | HY7: 1 | HZ7: - | IA7: 0 | IC7: 1 | ID7: 0 | IE7: 1 | IF7: - | IG7: 1 | II7: X | IJ7: 0 | IK7: 1 | IL7: - | IM7: 0 | IO7: 1 | IP7: 0 | IQ7: 2 | IR7: - | IS7: 0 | IU7: 1 | IV7: 0 | IW7: 3 | IX7: - | IY7: 0 | JA7: 1 | JB7: 0 | JC7: 4 | JD7: - | JE7: 1 | JG7: 1 | JH7: 0 | JI7: 2 | JJ7: - | JK7: 1 | JM7: 1 | JN7: 0 | JO7: 1 | JP7: - | JQ7: 2 | JS7: 2 | JT7: 0 | JU7: 1 | JV7: - | JW7: 0 | JY7: 1 | JZ7: 0 | KA7: 6 | KB7: - | KC7: 2 | KE7: 1 | KF7: 0 | KG7: 4 | KH7: - | KI7: 3 | KK7: 1 | KL7: 0 | KM7: 2 | KN7: - | KO7: 2 | KQ7: X | KR7: 0 | KS7: 2 | KT7: - | KU7: 0 | KW7: 1 | KX7: 0 | KY7: 1 | KZ7: - | LA7: 1 | LC7: X | LD7: 0 | LE7: 2 | LF7: - | LG7: 1 | LI7: 1 | LJ7: 0 | LK7: 2 | LL7: - | LM7: 0 | LO7: 1 | LP7: 0 | LQ7: 2 | LR7: - | LS7: 0 | LU7: 1 | LV7: 0 | LW7: 3 | LX7: - | LY7: 0 | MA7: 1 | MB7: 0 | MC7: 0 | MD7: - | ME7: 0 | MG7: X | MH7: 0
A8: 2018-06-16 | B8: Kl 18.00 | C8: Peru | D8: - | E8: Danmark | G8: - | J8: 0 | K8: 0 | L8: - | M8: 0 | O8: X | P8: 0 | Q8: 1 | R8: - | S8: 2 | U8: 2 | V8: 0 | W8: 1 | X8: - | Y8: 0 | AA8: 1 | AB8: 0 | AC8: 1 | AD8: - | AE8: 3 | AG8: 2 | AH8: 0 | AI8: 0 | AJ8: - | AK8: 1 | AM8: 2 | AN8: 0 | AO8: 1 | AP8: - | AQ8: 2 | AS8: 2 | AT8: 0 | AU8: 0 | AV8: - | AW8: 3 | AY8: 2 | AZ8: 0 | BA8: 1 | BB8: - | BC8: 2 | BE8: 2 | BF8: 0 | BG8: 2 | BH8: - | BI8: 0 | BK8: 1 | BL8: 0 | BM8: 0 | BN8: - | BO8: 3 | BQ8: 2 | BR8: 0 | BS8: 1 | BT8: - | BU8: 0 | BW8: 1 | BX8: 0 | BY8: 1 | BZ8: - | CA8: 3 | CC8: 2 | CD8: 0 | CE8: 1 | CF8: - | CG8: 3 | CI8: 2 | CJ8: 0 | CK8: 0 | CL8: - | CM8: 1 | CO8: 2 | CP8: 0 | CQ8: 0 | CR8: - | CS8: 3 | CU8: 2 | CV8: 0 | CW8: 0 | CX8: - | CY8: 0 | DA8: X | DB8: 0 | DC8: 1 | DD8: - | DE8: 2 | DG8: 2 | DH8: 0 | DI8: 1 | DJ8: - | DK8: 3 | DM8: 2 | DN8: 0 | DO8: 1 | DP8: - | DQ8: 1 | DS8: X | DT8: 0 | DU8: 0 | DV8: - | DW8: 1 | DY8: 2 | DZ8: 0 | EA8: 1 | EB8: - | EC8: 3 | EE8: 2 | EF8: 0 | EG8: 2 | EH8: - | EI8: 1 | EK8: 1 | EL8: 0 | EM8: 1 | EN8: - | EO8: 3 | EQ8: 2 | ER8: 0 | ES8: 0 | ET8: - | EU8: 2 | EW8: 2 | EX8: 0 | EY8: 1 | EZ8: - | FA8: 1 | FC8: X | FD8: 0 | FE8: 1 | FF8: - | FG8: 2 | FI8: 2 | FJ8: 0 | FK8: 1 | FL8: - | FM8: 1 | FO8: X | FP8: 0 | FQ8: 0 | FR8: - | FS8: 1 | FU8: 2 | FV8: 0 | FW8: 0 | FX8: - | FY8: 0 | GA8: X | GB8: 0 | GC8: 1 | GD8: - | GE8: 2 | GG8: 2 | GH8: 0 | GI8: 1 | GJ8: - | GK8: 1 | GM8: X | GN8: 0 | GO8: 1 | GP8: - | GQ8: 2 | GS8: 2 | GT8: 0 | GU8: 2 | GV8: - | GW8: 1 | GY8: 1 | GZ8: 0 | HA8: 1 | HB8: - | HC8: 2 | HE8: 2 | HF8: 0 | HG8: 1 | HH8: - | HI8: 4 | HK8: 2 | HL8: 0 | HM8: 1 | HN8: - | HO8: 1 | HQ8: X | HR8: 0 | HS8: 0 | HT8: - | HU8: 2 | HW8: 2 | HX8: 0 | HY8: 1 | HZ8: - | IA8: 1 | IC8: X | ID8: 0 | IE8: 2 | IF8: - | IG8: 2 | II8: X | IJ8: 0 | IK8: 2 | IL8: - | IM8: 1 | IO8: 1 | IP8: 0 | IQ8: 1 | IR8: - | IS8: 1 | IU8: X | IV8: 0 | IW8: 1 | IX8: - | IY8: 1 | JA8: X | JB8: 0 | JC8: 0 | JD8: - | JE8: 1 | JG8: 2 | JH8: 0 | JI8: 1 | JJ8: - | JK8: 2 | JM8: 2 | JN8: 0 | JO8: 0 | JP8: - | JQ8: 1 | JS8: 2 | JT8: 0 | JU8: 2 | JV8: - | JW8: 1 | JY8: 1 | JZ8: 0 | KA8: 2 | KB8: - | KC8: 3 | KE8: 2 | KF8: 0 | KG8: 2 | KH8: - | KI8: 2 | KK8: X | KL8: 0 | KM8: 4 | KN8: - | KO8: 3 | KQ8: 1 | KR8: 0 | KS8: 1 | KT8: - | KU8: 2 | KW8: 2 | KX8: 0 | KY8: 0 | KZ8: - | LA8: 1 | LC8: 2 | LD8: 0 | LE8: 1 | LF8: - | LG8: 1 | LI8: X | LJ8: 0 | LK8: 1 | LL8: - | LM8: 1 | LO8: X | LP8: 0 | LQ8: 0 | LR8: - | LS8: 2 | LU8: 2 | LV8: 0 | LW8: 1 | LX8: - | LY8: 2 | MA8: 2 | MB8: 0 | MC8: 1 | MD8: - | ME8: 2 | MG8: 2 | MH8: 0
A9: 2018-06-16 | B9: Kl 21.00 | C9: Kroatien | D9: - | E9: Nigeria | G9: - | J9: 0 | K9: 2 | L9: - | M9: 1 | O9: 1 | P9: 0 | Q9: 2 | R9: - | S9: 0 | U9: 1 | V9: 0 | W9: 1 | X9: - | Y9: 2 | AA9: 2 | AB9: 0 | AC9: 1 | AD9: - | AE9: 2 | AG9: 2 | AH9: 0 | AI9: 0 | AJ9: - | AK9: 2 | AM9: 2 | AN9: 0 | AO9: 1 | AP9: - | AQ9: 0 | AS9: 1 | AT9: 0 | AU9: 1 | AV9: - | AW9: 1 | AY9: X | AZ9: 0 | BA9: 3 | BB9: - | BC9: 3 | BE9: X | BF9: 0 | BG9: 1 | BH9: - | BI9: 0 | BK9: 1 | BL9: 0 | BM9: 0 | BN9: - | BO9: 2 | BQ9: 2 | BR9: 0 | BS9: 2 | BT9: - | BU9: 1 | BW9: 1 | BX9: 0 | BY9: 2 | BZ9: - | CA9: 1 | CC9: 1 | CD9: 0 | CE9: 3 | CF9: - | CG9: 1 | CI9: 1 | CJ9: 0 | CK9: 1 | CL9: - | CM9: 1 | CO9: X | CP9: 0 | CQ9: 1 | CR9: - | CS9: 1 | CU9: X | CV9: 0 | CW9: 2 | CX9: - | CY9: 3 | DA9: 2 | DB9: 0 | DC9: 1 | DD9: - | DE9: 0 | DG9: 1 | DH9: 0 | DI9: 1 | DJ9: - | DK9: 0 | DM9: 1 | DN9: 0 | DO9: 2 | DP9: - | DQ9: 0 | DS9: 1 | DT9: 0 | DU9: 2 | DV9: - | DW9: 0 | DY9: 1 | DZ9: 0 | EA9: 2 | EB9: - | EC9: 2 | EE9: X | EF9: 0 | EG9: 2 | EH9: - | EI9: 1 | EK9: 1 | EL9: 0 | EM9: 2 | EN9: - | EO9: 2 | EQ9: X | ER9: 0 | ES9: 2 | ET9: - | EU9: 1 | EW9: 1 | EX9: 0 | EY9: 2 | EZ9: - | FA9: 1 | FC9: 1 | FD9: 0 | FE9: 2 | FF9: - | FG9: 2 | FI9: X | FJ9: 0 | FK9: 2 | FL9: - | FM9: 1 | FO9: 1 | FP9: 0 | FQ9: 1 | FR9: - | FS9: 2 | FU9: 2 | FV9: 0 | FW9: 1 | FX9: - | FY9: 0 | GA9: 1 | GB9: 0 | GC9: 1 | GD9: - | GE9: 1 | GG9: X | GH9: 0 | GI9: 2 | GJ9: - | GK9: 2 | GM9: X | GN9: 0 | GO9: 2 | GP9: - | GQ9: 0 | GS9: 1 | GT9: 0 | GU9: 2 | GV9: - | GW9: 1 | GY9: 1 | GZ9: 0 | HA9: 2 | HB9: - | HC9: 3 | HE9: 2 | HF9: 0 | HG9: 2 | HH9: - | HI9: 3 | HK9: 2 | HL9: 0 | HM9: 1 | HN9: - | HO9: 0 | HQ9: 1 | HR9: 0 | HS9: 1 | HT9: - | HU9: 1 | HW9: X | HX9: 0 | HY9: 2 | HZ9: - | IA9: 1 | IC9: 1 | ID9: 0 | IE9: 1 | IF9: - | IG9: 2 | II9: 2 | IJ9: 0 | IK9: 1 | IL9: - | IM9: 3 | IO9: 2 | IP9: 0 | IQ9: 2 | IR9: - | IS9: 1 | IU9: 1 | IV9: 0 | IW9: 1 | IX9: - | IY9: 1 | JA9: X | JB9: 0 | JC9: 2 | JD9: - | JE9: 0 | JG9: 1 | JH9: 0 | JI9: 1 | JJ9: - | JK9: 2 | JM9: 2 | JN9: 0 | JO9: 2 | JP9: - | JQ9: 1 | JS9: 1 | JT9: 0 | JU9: 2 | JV9: - | JW9: 1 | JY9: 1 | JZ9: 0 | KA9: 1 | KB9: - | KC9: 4 | KE9: 2 | KF9: 0 | KG9: 2 | KH9: - | KI9: 0 | KK9: 1 | KL9: 0 | KM9: 2 | KN9: - | KO9: 3 | KQ9: 2 | KR9: 0 | KS9: 0 | KT9: - | KU9: 3 | KW9: 2 | KX9: 0 | KY9: 2 | KZ9: - | LA9: 2 | LC9: X | LD9: 0 | LE9: 1 | LF9: - | LG9: 0 | LI9: 1 | LJ9: 0 | LK9: 2 | LL9: - | LM9: 0 | LO9: 1 | LP9: 0 | LQ9: 1 | LR9: - | LS9: 3 | LU9: 2 | LV9: 0 | LW9: 2 | LX9: - | LY9: 1 | MA9: 1 | MB9: 0 | MC9: 0 | MD9: - | ME9: 1 | MG9: 2 | MH9: 0
A10: 2018-06-17 | B10: Kl 14.00 | C10: Costa Rica | D10: - | E10: Serbien | G10: - | J10: 0 | K10: 0 | L10: - | M10: 1 | O10: 2 | P10: 0 | Q10: 0 | R10: - | S10: 2 | U10: 2 | V10: 0 | W10: 3 | X10: - | Y10: 1 | AA10: 1 | AB10: 0 | AC10: 1 | AD10: - | AE10: 1 | AG10: X | AH10: 0 | AI10: 2 | AJ10: - | AK10: 0 | AM10: 1 | AN10: 0 | AO10: 2 | AP10: - | AQ10: 2 | AS10: X | AT10: 0 | AU10: 1 | AV10: - | AW10: 1 | AY10: X | AZ10: 0 | BA10: 0 | BB10: - | BC10: 0 | BE10: X | BF10: 0 | BG10: 1 | BH10: - | BI10: 1 | BK10: X | BL10: 0 | BM10: 1 | BN10: - | BO10: 1 | BQ10: X | BR10: 0 | BS10: 2 | BT10: - | BU10: 0 | BW10: 1 | BX10: 0 | BY10: 1 | BZ10: - | CA10: 3 | CC10: 2 | CD10: 0 | CE10: 1 | CF10: - | CG10: 2 | CI10: 2 | CJ10: 0 | CK10: 0 | CL10: - | CM10: 0 | CO10: X | CP10: 0 | CQ10: 2 | CR10: - | CS10: 0 | CU10: 1 | CV10: 0 | CW10: 1 | CX10: - | CY10: 1 | DA10: X | DB10: 0 | DC10: 1 | DD10: - | DE10: 1 | DG10: X | DH10: 0 | DI10: 0 | DJ10: - | DK10: 1 | DM10: 2 | DN10: 0 | DO10: 1 | DP10: - | DQ10: 0 | DS10: 1 | DT10: 0 | DU10: 0 | DV10: - | DW10: 2 | DY10: 2 | DZ10: 0 | EA10: 2 | EB10: - | EC10: 1 | EE10: 1 | EF10: 0 | EG10: 0 | EH10: - | EI10: 1 | EK10: 2 | EL10: 0 | EM10: 2 | EN10: - | EO10: 0 | EQ10: 1 | ER10: 0 | ES10: 1 | ET10: - | EU10: 1 | EW10: X | EX10: 0 | EY10: 1 | EZ10: - | FA10: 0 | FC10: 1 | FD10: 0 | FE10: 1 | FF10: - | FG10: 3 | FI10: 2 | FJ10: 0 | FK10: 1 | FL10: - | FM10: 2 | FO10: 2 | FP10: 0 | FQ10: 0 | FR10: - | FS10: 2 | FU10: 2 | FV10: 0 | FW10: 2 | FX10: - | FY10: 1 | GA10: 1 | GB10: 0 | GC10: 0 | GD10: - | GE10: 2 | GG10: 2 | GH10: 0 | GI10: 0 | GJ10: - | GK10: 1 | GM10: 2 | GN10: 0 | GO10: 2 | GP10: - | GQ10: 0 | GS10: 1 | GT10: 0 | GU10: 1 | GV10: - | GW10: 1 | GY10: X | GZ10: 0 | HA10: 1 | HB10: - | HC10: 3 | HE10: 2 | HF10: 0 | HG10: 3 | HH10: - | HI10: 1 | HK10: 1 | HL10: 0 | HM10: 1 | HN10: - | HO10: 1 | HQ10: X | HR10: 0 | HS10: 2 | HT10: - | HU10: 2 | HW10: X | HX10: 0 | HY10: 1 | HZ10: - | IA10: 1 | IC10: X | ID10: 0 | IE10: 1 | IF10: - | IG10: 0 | II10: 1 | IJ10: 0 | IK10: 2 | IL10: - | IM10: 2 | IO10: X | IP10: 0 | IQ10: 0 | IR10: - | IS10: 3 | IU10: 2 | IV10: 0 | IW10: 0 | IX10: - | IY10: 2 | JA10: 2 | JB10: 0 | JC10: 1 | JD10: - | JE10: 1 | JG10: X | JH10: 0 | JI10: 1 | JJ10: - | JK10: 1 | JM10: X | JN10: 0 | JO10: 0 | JP10: - | JQ10: 2 | JS10: 2 | JT10: 0 | JU10: 0 | JV10: - | JW10: 1 | JY10: 2 | JZ10: 0 | KA10: 4 | KB10: - | KC10: 1 | KE10: 1 | KF10: 0 | KG10: 2 | KH10: - | KI10: 0 | KK10: 1 | KL10: 0 | KM10: 3 | KN10: - | KO10: 1 | KQ10: 1 | KR10: 0 | KS10: 0 | KT10: - | KU10: 1 | KW10: 2 | KX10: 0 | KY10: 1 | KZ10: - | LA10: 1 | LC10: X | LD10: 0 | LE10: 1 | LF10: - | LG10: 1 | LI10: X | LJ10: 0 | LK10: 1 | LL10: - | LM10: 1 | LO10: X | LP10: 0 | LQ10: 2 | LR10: - | LS10: 0 | LU10: 1 | LV10: 0 | LW10: 1 | LX10: - | LY10: 3 | MA10: 2 | MB10: 0 | MC10: 1 | MD10: - | ME10: 2 | MG10: 2 | MH10: 0
A11: 2018-06-17 | B11: Kl 17.00 | C11: Tyskland | D11: - | E11: Mexiko | G11: - | J11: 0 | K11: 2 | L11: - | M11: 0 | O11: 1 | P11: 0 | Q11: 2 | R11: - | S11: 1 | U11: 1 | V11: 0 | W11: 2 | X11: - | Y11: 1 | AA11: 1 | AB11: 0 | AC11: 3 | AD11: - | AE11: 0 | AG11: 1 | AH11: 0 | AI11: 2 | AJ11: - | AK11: 0 | AM11: 1 | AN11: 0 | AO11: 3 | AP11: - | AQ11: 0 | AS11: 1 | AT11: 0 | AU11: 3 | AV11: - | AW11: 0 | AY11: 1 | AZ11: 0 | BA11: 2 | BB11: - | BC11: 0 | BE11: 1 | BF11: 0 | BG11: 2 | BH11: - | BI11: 1 | BK11: 1 | BL11: 0 | BM11: 3 | BN11: - | BO11: 0 | BQ11: 1 | BR11: 0 | BS11: 1 | BT11: - | BU11: 1 | BW11: X | BX11: 0 | BY11: 4 | BZ11: - | CA11: 1 | CC11: 1 | CD11: 0 | CE11: 4 | CF11: - | CG11: 1 | CI11: 1 | CJ11: 0 | CK11: 1 | CL11: - | CM11: 0 | CO11: 1 | CP11: 0 | CQ11: 3 | CR11: - | CS11: 3 | CU11: X | CV11: 0 | CW11: 2 | CX11: - | CY11: 1 | DA11: 1 | DB11: 0 | DC11: 1 | DD11: - | DE11: 0 | DG11: 1 | DH11: 0 | DI11: 2 | DJ11: - | DK11: 0 | DM11: 1 | DN11: 0 | DO11: 2 | DP11: - | DQ11: 0 | DS11: 1 | DT11: 0 | DU11: 3 | DV11: - | DW11: 0 | DY11: 1 | DZ11: 0 | EA11: 2 | EB11: - | EC11: 2 | EE11: X | EF11: 0 | EG11: 3 | EH11: - | EI11: 0 | EK11: 1 | EL11: 0 | EM11: 2 | EN11: - | EO11: 0 | EQ11: 1 | ER11: 0 | ES11: 3 | ET11: - | EU11: 1 | EW11: 1 | EX11: 0 | EY11: 3 | EZ11: - | FA11: 1 | FC11: 1 | FD11: 0 | FE11: 2 | FF11: - | FG11: 0 | FI11: 1 | FJ11: 0 | FK11: 3 | FL11: - | FM11: 1 | FO11: 1 | FP11: 0 | FQ11: 0 | FR11: - | FS11: 0 | FU11: X | FV11: 0 | FW11: 2 | FX11: - | FY11: 0 | GA11: 1 | GB11: 0 | GC11: 3 | GD11: - | GE11: 1 | GG11: 1 | GH11: 0 | GI11: 3 | GJ11: - | GK11: 1 | GM11: 1 | GN11: 0 | GO11: 2 | GP11: - | GQ11: 0 | GS11: 1 | GT11: 0 | GU11: 2 | GV11: - | GW11: 0 | GY11: 1 | GZ11: 0 | HA11: 3 | HB11: - | HC11: 1 | HE11: 1 | HF11: 0 | HG11: 5 | HH11: - | HI11: 2 | HK11: 1 | HL11: 0 | HM11: 2 | HN11: - | HO11: 0 | HQ11: 1 | HR11: 0 | HS11: 2 | HT11: - | HU11: 0 | HW11: 1 | HX11: 0 | HY11: 1 | HZ11: - | IA11: 0 | IC11: 1 | ID11: 0 | IE11: 1 | IF11: - | IG11: 1 | II11: X | IJ11: 0 | IK11: 1 | IL11: - | IM11: 1 | IO11: X | IP11: 0 | IQ11: 2 | IR11: - | IS11: 0 | IU11: 1 | IV11: 0 | IW11: 2 | IX11: - | IY11: 1 | JA11: 1 | JB11: 0 | JC11: 3 | JD11: - | JE11: 0 | JG11: 1 | JH11: 0 | JI11: 3 | JJ11: - | JK11: 1 | JM11: 1 | JN11: 0 | JO11: 3 | JP11: - | JQ11: 1 | JS11: 1 | JT11: 0 | JU11: 3 | JV11: - | JW11: 0 | JY11: 1 | JZ11: 0 | KA11: 3 | KB11: - | KC11: 5 | KE11: 2 | KF11: 0 | KG11: 6 | KH11: - | KI11: 5 | KK11: 1 | KL11: 0 | KM11: 4 | KN11: - | KO11: 0 | KQ11: 1 | KR11: 0 | KS11: 1 | KT11: - | KU11: 1 | KW11: X | KX11: 0 | KY11: 2 | KZ11: - | LA11: 1 | LC11: 1 | LD11: 0 | LE11: 2 | LF11: - | LG11: 0 | LI11: 1 | LJ11: 0 | LK11: 2 | LL11: - | LM11: 0 | LO11: 1 | LP11: 0 | LQ11: 1 | LR11: - | LS11: 1 | LU11: X | LV11: 0 | LW11: 3 | LX11: - | LY11: 1 | MA11: 1 | MB11: 0 | MC11: 4 | MD11: - | ME11: 2 | MG11: 1 | MH11: 0
A12: 2018-06-17 | B12: Kl 20.00 | C12: Brasilien | D12: - | E12: Schweiz | G12: - | J12: 0 | K12: 2 | L12: - | M12: 0 | O12: 1 | P12: 0 | Q12: 1 | R12: - | S12: 2 | U12: 2 | V12: 0 | W12: 2 | X12: - | Y12: 0 | AA12: 1 | AB12: 0 | AC12: 4 | AD12: - | AE12: 1 | AG12: 1 | AH12: 0 | AI12: 2 | AJ12: - | AK12: 0 | AM12: 1 | AN12: 0 | AO12: 2 | AP12: - | AQ12: 2 | AS12: X | AT12: 0 | AU12: 4 | AV12: - | AW12: 1 | AY12: 1 | AZ12: 0 | BA12: 3 | BB12: - | BC12: 1 | BE12: 1 | BF12: 0 | BG12: 4 | BH12: - | BI12: 1 | BK12: 1 | BL12: 0 | BM12: 3 | BN12: - | BO12: 3 | BQ12: X | BR12: 0 | BS12: 2 | BT12: - | BU12: 0 | BW12: 1 | BX12: 0 | BY12: 3 | BZ12: - | CA12: 1 | CC12: 1 | CD12: 0 | CE12: 3 | CF12: - | CG12: 1 | CI12: 1 | CJ12: 0 | CK12: 2 | CL12: - | CM12: 0 | CO12: 1 | CP12: 0 | CQ12: 4 | CR12: - | CS12: 0 | CU12: 1 | CV12: 0 | CW12: 2 | CX12: - | CY12: 0 | DA12: 1 | DB12: 0 | DC12: 2 | DD12: - | DE12: 0 | DG12: 1 | DH12: 0 | DI12: 1 | DJ12: - | DK12: 1 | DM12: X | DN12: 0 | DO12: 3 | DP12: - | DQ12: 1 | DS12: 1 | DT12: 0 | DU12: 2 | DV12: - | DW12: 0 | DY12: 1 | DZ12: 0 | EA12: 3 | EB12: - | EC12: 0 | EE12: 1 | EF12: 0 | EG12: 4 | EH12: - | EI12: 2 | EK12: 1 | EL12: 0 | EM12: 6 | EN12: - | EO12: 1 | EQ12: 1 | ER12: 0 | ES12: 3 | ET12: - | EU12: 1 | EW12: 1 | EX12: 0 | EY12: 4 | EZ12: - | FA12: 0 | FC12: 1 | FD12: 0 | FE12: 1 | FF12: - | FG12: 1 | FI12: X | FJ12: 0 | FK12: 3 | FL12: - | FM12: 0 | FO12: 1 | FP12: 0 | FQ12: 3 | FR12: - | FS12: 1 | FU12: 1 | FV12: 0 | FW12: 1 | FX12: - | FY12: 1 | GA12: X | GB12: 0 | GC12: 3 | GD12: - | GE12: 0 | GG12: 1 | GH12: 0 | GI12: 2 | GJ12: - | GK12: 1 | GM12: 1 | GN12: 0 | GO12: 2 | GP12: - | GQ12: 1 | GS12: 1 | GT12: 0 | GU12: 2 | GV12: - | GW12: 1 | GY12: 1 | GZ12: 0 | HA12: 3 | HB12: - | HC12: 0 | HE12: 1 | HF12: 0 | HG12: 4 | HH12: - | HI12: 2 | HK12: 1 | HL12: 0 | HM12: 1 | HN12: - | HO12: 1 | HQ12: X | HR12: 0 | HS12: 2 | HT12: - | HU12: 0 | HW12: 1 | HX12: 0 | HY12: 1 | HZ12: - | IA12: 1 | IC12: X | ID12: 0 | IE12: 3 | IF12: - | IG12: 1 | II12: 1 | IJ12: 0 | IK12: 1 | IL12: - | IM12: 0 | IO12: 1 | IP12: 0 | IQ12: 2 | IR12: - | IS12: 1 | IU12: 1 | IV12: 0 | IW12: 3 | IX12: - | IY12: 1 | JA12: 1 | JB12: 0 | JC12: 3 | JD12: - | JE12: 0 | JG12: 1 | JH12: 0 | JI12: 3 | JJ12: - | JK12: 1 | JM12: 1 | JN12: 0 | JO12: 2 | JP12: - | JQ12: 2 | JS12: X | JT12: 0 | JU12: 4 | JV12: - | JW12: 2 | JY12: 1 | JZ12: 0 | KA12: 3 | KB12: - | KC12: 3 | KE12: X | KF12: 0 | KG12: 4 | KH12: - | KI12: 3 | KK12: 1 | KL12: 0 | KM12: 2 | KN12: - | KO12: 2 | KQ12: X | KR12: 0 | KS12: 2 | KT12: - | KU12: 1 | KW12: 1 | KX12: 0 | KY12: 1 | KZ12: - | LA12: 0 | LC12: 1 | LD12: 0 | LE12: 3 | LF12: - | LG12: 1 | LI12: 1 | LJ12: 0 | LK12: 2 | LL12: - | LM12: 0 | LO12: 1 | LP12: 0 | LQ12: 2 | LR12: - | LS12: 0 | LU12: 1 | LV12: 0 | LW12: 2 | LX12: - | LY12: 0 | MA12: 1 | MB12: 0 | MC12: 3 | MD12: - | ME12: 1 | MG12: 1 | MH12: 0
A13: 2018-06-18 | B13: Kl 14.00 | C13: Sverige | D13: - | E13: Sydkorea | G13: - | J13: 0 | K13: 2 | L13: - | M13: 1 | O13: 1 | P13: 0 | Q13: 2 | R13: - | S13: 0 | U13: 1 | V13: 0 | W13: 1 | X13: - | Y13: 0 | AA13: 1 | AB13: 0 | AC13: 2 | AD13: - | AE13: 1 | AG13: 1 | AH13: 0 | AI13: 1 | AJ13: - | AK13: 0 | AM13: 1 | AN13: 0 | AO13: 2 | AP13: - | AQ13: 0 | AS13: 1 | AT13: 0 | AU13: 2 | AV13: - | AW13: 0 | AY13: 1 | AZ13: 0 | BA13: 1 | BB13: - | BC13: 0 | BE13: 1 | BF13: 0 | BG13: 2 | BH13: - | BI13: 0 | BK13: 1 | BL13: 0 | BM13: 2 | BN13: - | BO13: 1 | BQ13: 1 | BR13: 0 | BS13: 1 | BT13: - | BU13: 1 | BW13: X | BX13: 0 | BY13: 2 | BZ13: - | CA13: 1 | CC13: 1 | CD13: 0 | CE13: 2 | CF13: - | CG13: 1 | CI13: 1 | CJ13: 0 | CK13: 1 | CL13: - | CM13: 0 | CO13: 1 | CP13: 0 | CQ13: 2 | CR13: - | CS13: 1 | CU13: 1 | CV13: 0 | CW13: 2 | CX13: - | CY13: 0 | DA13: 1 | DB13: 0 | DC13: 1 | DD13: - | DE13: 0 | DG13: 1 | DH13: 0 | DI13: 2 | DJ13: - | DK13: 0 | DM13: 1 | DN13: 0 | DO13: 2 | DP13: - | DQ13: 1 | DS13: 1 | DT13: 0 | DU13: 2 | DV13: - | DW13: 1 | DY13: 1 | DZ13: 0 | EA13: 3 | EB13: - | EC13: 1 | EE13: 1 | EF13: 0 | EG13: 2 | EH13: - | EI13: 1 | EK13: 1 | EL13: 0 | EM13: 4 | EN13: - | EO13: 2 | EQ13: 1 | ER13: 0 | ES13: 2 | ET13: - | EU13: 1 | EW13: 1 | EX13: 0 | EY13: 2 | EZ13: - | FA13: 0 | FC13: 1 | FD13: 0 | FE13: 2 | FF13: - | FG13: 0 | FI13: 1 | FJ13: 0 | FK13: 1 | FL13: - | FM13: 0 | FO13: 1 | FP13: 0 | FQ13: 1 | FR13: - | FS13: 1 | FU13: X | FV13: 0 | FW13: 1 | FX13: - | FY13: 0 | GA13: 1 | GB13: 0 | GC13: 2 | GD13: - | GE13: 0 | GG13: 1 | GH13: 0 | GI13: 2 | GJ13: - | GK13: 0 | GM13: 1 | GN13: 0 | GO13: 2 | GP13: - | GQ13: 1 | GS13: 1 | GT13: 0 | GU13: 1 | GV13: - | GW13: 1 | GY13: X | GZ13: 0 | HA13: 2 | HB13: - | HC13: 1 | HE13: 1 | HF13: 0 | HG13: 3 | HH13: - | HI13: 3 | HK13: X | HL13: 0 | HM13: 1 | HN13: - | HO13: 0 | HQ13: 1 | HR13: 0 | HS13: 0 | HT13: - | HU13: 1 | HW13: 2 | HX13: 0 | HY13: 1 | HZ13: - | IA13: 1 | IC13: X | ID13: 0 | IE13: 2 | IF13: - | IG13: 1 | II13: 1 | IJ13: 0 | IK13: 2 | IL13: - | IM13: 0 | IO13: 1 | IP13: 0 | IQ13: 2 | IR13: - | IS13: 0 | IU13: 1 | IV13: 0 | IW13: 1 | IX13: - | IY13: 1 | JA13: X | JB13: 0 | JC13: 2 | JD13: - | JE13: 1 | JG13: 1 | JH13: 0 | JI13: 2 | JJ13: - | JK13: 1 | JM13: 1 | JN13: 0 | JO13: 2 | JP13: - | JQ13: 1 | JS13: 1 | JT13: 0 | JU13: 2 | JV13: - | JW13: 1 | JY13: 1 | JZ13: 0 | KA13: 2 | KB13: - | KC13: 2 | KE13: X | KF13: 0 | KG13: 0 | KH13: - | KI13: 1 | KK13: 2 | KL13: 0 | KM13: 3 | KN13: - | KO13: 0 | KQ13: 1 | KR13: 0 | KS13: 3 | KT13: - | KU13: 1 | KW13: 1 | KX13: 0 | KY13: 2 | KZ13: - | LA13: 1 | LC13: 1 | LD13: 0 | LE13: 1 | LF13: - | LG13: 1 | LI13: X | LJ13: 0 | LK13: 1 | LL13: - | LM13: 1 | LO13: X | LP13: 0 | LQ13: 1 | LR13: - | LS13: 1 | LU13: X | LV13: 0 | LW13: 2 | LX13: - | LY13: 0 | MA13: 1 | MB13: 0 | MC13: 1 | MD13: - | ME13: 0 | MG13: 1 | MH13: 0
A14: 2018-06-18 | B14: Kl 17.00 | C14: Belgien | D14: - | E14: Panama | G14: - | J14: 0 | K14: 2 | L14: - | M14: 0 | O14: 1 | P14: 0 | Q14: 0 | R14: - | S14: 1 | U14: 2 | V14: 0 | W14: 1 | X14: - | Y14: 0 | AA14: 1 | AB14: 0 | AC14: 3 | AD14: - | AE14: 1 | AG14: 1 | AH14: 0 | AI14: 0 | AJ14: - | AK14: 2 | AM14: 2 | AN14: 0 | AO14: 3 | AP14: - | AQ14: 0 | AS14: 1 | AT14: 0 | AU14: 4 | AV14: - | AW14: 0 | AY14: 1 | AZ14: 0 | BA14: 5 | BB14: - | BC14: 0 | BE14: 1 | BF14: 0 | BG14: 2 | BH14: - | BI14: 1 | BK14: 1 | BL14: 0 | BM14: 3 | BN14: - | BO14: 0 | BQ14: 1 | BR14: 0 | BS14: 4 | BT14: - | BU14: 0 | BW14: 1 | BX14: 0 | BY14: 3 | BZ14: - | CA14: 1 | CC14: 1 | CD14: 0 | CE14: 2 | CF14: - | CG14: 2 | CI14: X | CJ14: 0 | CK14: 1 | CL14: - | CM14: 1 | CO14: X | CP14: 0 | CQ14: 3 | CR14: - | CS14: 3 | CU14: X | CV14: 0 | CW14: 1 | CX14: - | CY14: 0 | DA14: 1 | DB14: 0 | DC14: 0 | DD14: - | DE14: 1 | DG14: 2 | DH14: 0 | DI14: 2 | DJ14: - | DK14: 1 | DM14: 1 | DN14: 0 | DO14: 2 | DP14: - | DQ14: 0 | DS14: 1 | DT14: 0 | DU14: 1 | DV14: - | DW14: 0 | DY14: 1 | DZ14: 0 | EA14: 3 | EB14: - | EC14: 2 | EE14: 1 | EF14: 0 | EG14: 1 | EH14: - | EI14: 1 | EK14: X | EL14: 0 | EM14: 2 | EN14: - | EO14: 2 | EQ14: X | ER14: 0 | ES14: 4 | ET14: - | EU14: 0 | EW14: 1 | EX14: 0 | EY14: 3 | EZ14: - | FA14: 1 | FC14: 1 | FD14: 0 | FE14: 5 | FF14: - | FG14: 0 | FI14: 1 | FJ14: 0 | FK14: 4 | FL14: - | FM14: 0 | FO14: 1 | FP14: 0 | FQ14: 0 | FR14: - | FS14: 0 | FU14: X | FV14: 0 | FW14: 2 | FX14: - | FY14: 0 | GA14: 1 | GB14: 0 | GC14: 4 | GD14: - | GE14: 0 | GG14: 1 | GH14: 0 | GI14: 3 | GJ14: - | GK14: 0 | GM14: 1 | GN14: 0 | GO14: 2 | GP14: - | GQ14: 0 | GS14: 1 | GT14: 0 | GU14: 2 | GV14: - | GW14: 0 | GY14: 1 | GZ14: 0 | HA14: 3 | HB14: - | HC14: 1 | HE14: 1 | HF14: 0 | HG14: 2 | HH14: - | HI14: 1 | HK14: 1 | HL14: 0 | HM14: 2 | HN14: - | HO14: 0 | HQ14: 1 | HR14: 0 | HS14: 3 | HT14: - | HU14: 1 | HW14: 1 | HX14: 0 | HY14: 1 | HZ14: - | IA14: 1 | IC14: X | ID14: 0 | IE14: 2 | IF14: - | IG14: 0 | II14: 1 | IJ14: 0 | IK14: 3 | IL14: - | IM14: 1 | IO14: 1 | IP14: 0 | IQ14: 1 | IR14: - | IS14: 0 | IU14: 1 | IV14: 0 | IW14: 2 | IX14: - | IY14: 0 | JA14: 1 | JB14: 0 | JC14: 2 | JD14: - | JE14: 0 | JG14: 1 | JH14: 0 | JI14: 4 | JJ14: - | JK14: 0 | JM14: 1 | JN14: 0 | JO14: 2 | JP14: - | JQ14: 3 | JS14: 2 | JT14: 0 | JU14: 1 | JV14: - | JW14: 1 | JY14: X | JZ14: 0 | KA14: 3 | KB14: - | KC14: 1 | KE14: 1 | KF14: 0 | KG14: 6 | KH14: - | KI14: 2 | KK14: 1 | KL14: 0 | KM14: 3 | KN14: - | KO14: 0 | KQ14: 1 | KR14: 0 | KS14: 2 | KT14: - | KU14: 0 | KW14: 1 | KX14: 0 | KY14: 2 | KZ14: - | LA14: 0 | LC14: 1 | LD14: 0 | LE14: 2 | LF14: - | LG14: 0 | LI14: 1 | LJ14: 0 | LK14: 2 | LL14: - | LM14: 0 | LO14: 1 | LP14: 0 | LQ14: 1 | LR14: - | LS14: 0 | LU14: 1 | LV14: 0 | LW14: 1 | LX14: - | LY14: 0 | MA14: 1 | MB14: 0 | MC14: 0 | MD14: - | ME14: 0 | MG14: X | MH14: 0
A15: 2018-06-18 | B15: Kl 20.00 | C15: Tunisien | D15: - | E15: England | G15: - | J15: 0 | K15: 1 | L15: - | M15: 1 | O15: X | P15: 0 | Q15: 1 | R15: - | S15: 2 | U15: 2 | V15: 0 | W15: 0 | X15: - | Y15: 2 | AA15: 2 | AB15: 0 | AC15: 0 | AD15: - | AE15: 2 | AG15: 2 | AH15: 0 | AI15: 0 | AJ15: - | AK15: 2 | AM15: 2 | AN15: 0 | AO15: 1 | AP15: - | AQ15: 3 | AS15: 2 | AT15: 0 | AU15: 1 | AV15: - | AW15: 1 | AY15: X | AZ15: 0 | BA15: 0 | BB15: - | BC15: 0 | BE15: X | BF15: 0 | BG15: 1 | BH15: - | BI15: 2 | BK15: 2 | BL15: 0 | BM15: 1 | BN15: - | BO15: 3 | BQ15: 2 | BR15: 0 | BS15: 0 | BT15: - | BU15: 0 | BW15: X | BX15: 0 | BY15: 1 | BZ15: - | CA15: 3 | CC15: 2 | CD15: 0 | CE15: 2 | CF15: - | CG15: 3 | CI15: 2 | CJ15: 0 | CK15: 0 | CL15: - | CM15: 3 | CO15: 2 | CP15: 0 | CQ15: 1 | CR15: - | CS15: 4 | CU15: 2 | CV15: 0 | CW15: 1 | CX15: - | CY15: 2 | DA15: 2 | DB15: 0 | DC15: 1 | DD15: - | DE15: 2 | DG15: 2 | DH15: 0 | DI15: 0 | DJ15: - | DK15: 1 | DM15: 2 | DN15: 0 | DO15: 0 | DP15: - | DQ15: 2 | DS15: 2 | DT15: 0 | DU15: 1 | DV15: - | DW15: 2 | DY15: 2 | DZ15: 0 | EA15: 1 | EB15: - | EC15: 3 | EE15: 2 | EF15: 0 | EG15: 0 | EH15: - | EI15: 2 | EK15: 2 | EL15: 0 | EM15: 1 | EN15: - | EO15: 3 | EQ15: 2 | ER15: 0 | ES15: 1 | ET15: - | EU15: 2 | EW15: 2 | EX15: 0 | EY15: 1 | EZ15: - | FA15: 2 | FC15: 2 | FD15: 0 | FE15: 1 | FF15: - | FG15: 2 | FI15: 2 | FJ15: 0 | FK15: 0 | FL15: - | FM15: 2 | FO15: 2 | FP15: 0 | FQ15: 1 | FR15: - | FS15: 0 | FU15: 1 | FV15: 0 | FW15: 0 | FX15: - | FY15: 0 | GA15: X | GB15: 0 | GC15: 0 | GD15: - | GE15: 2 | GG15: 2 | GH15: 0 | GI15: 0 | GJ15: - | GK15: 2 | GM15: 2 | GN15: 0 | GO15: 0 | GP15: - | GQ15: 2 | GS15: 2 | GT15: 0 | GU15: 0 | GV15: - | GW15: 1 | GY15: 2 | GZ15: 0 | HA15: 1 | HB15: - | HC15: 3 | HE15: 2 | HF15: 0 | HG15: 2 | HH15: - | HI15: 4 | HK15: 2 | HL15: 0 | HM15: 0 | HN15: - | HO15: 2 | HQ15: 2 | HR15: 0 | HS15: 1 | HT15: - | HU15: 3 | HW15: 2 | HX15: 0 | HY15: 2 | HZ15: - | IA15: 2 | IC15: X | ID15: 0 | IE15: 0 | IF15: - | IG15: 1 | II15: 2 | IJ15: 0 | IK15: 0 | IL15: - | IM15: 2 | IO15: 2 | IP15: 0 | IQ15: 0 | IR15: - | IS15: 2 | IU15: 2 | IV15: 0 | IW15: 0 | IX15: - | IY15: 1 | JA15: 2 | JB15: 0 | JC15: 0 | JD15: - | JE15: 2 | JG15: 2 | JH15: 0 | JI15: 1 | JJ15: - | JK15: 2 | JM15: 2 | JN15: 0 | JO15: 0 | JP15: - | JQ15: 3 | JS15: 2 | JT15: 0 | JU15: 0 | JV15: - | JW15: 2 | JY15: 2 | JZ15: 0 | KA15: 0 | KB15: - | KC15: 3 | KE15: 2 | KF15: 0 | KG15: 1 | KH15: - | KI15: 2 | KK15: 2 | KL15: 0 | KM15: 1 | KN15: - | KO15: 3 | KQ15: 2 | KR15: 0 | KS15: 1 | KT15: - | KU15: 2 | KW15: 2 | KX15: 0 | KY15: 1 | KZ15: - | LA15: 3 | LC15: 2 | LD15: 0 | LE15: 1 | LF15: - | LG15: 2 | LI15: 2 | LJ15: 0 | LK15: 1 | LL15: - | LM15: 2 | LO15: 2 | LP15: 0 | LQ15: 1 | LR15: - | LS15: 4 | LU15: 2 | LV15: 0 | LW15: 0 | LX15: - | LY15: 2 | MA15: 2 | MB15: 0 | MC15: 1 | MD15: - | ME15: 3 | MG15: 2 | MH15: 0
A16: 2018-06-19 | B16: Kl 14.00 | C16: Colombia | D16: - | E16: Japan | G16: - | J16: 0 | K16: 0 | L16: - | M16: 1 | O16: 2 | P16: 0 | Q16: 2 | R16: - | S16: 0 | U16: 1 | V16: 0 | W16: 2 | X16: - | Y16: 1 | AA16: 1 | AB16: 0 | AC16: 1 | AD16: - | AE16: 2 | AG16: 2 | AH16: 0 | AI16: 0 | AJ16: - | AK16: 1 | AM16: 2 | AN16: 0 | AO16: 2 | AP16: - | AQ16: 1 | AS16: 1 | AT16: 0 | AU16: 3 | AV16: - | AW16: 1 | AY16: 1 | AZ16: 0 | BA16: 2 | BB16: - | BC16: 1 | BE16: 1 | BF16: 0 | BG16: 2 | BH16: - | BI16: 0 | BK16: 1 | BL16: 0 | BM16: 0 | BN16: - | BO16: 0 | BQ16: X | BR16: 0 | BS16: 3 | BT16: - | BU16: 1 | BW16: 1 | BX16: 0 | BY16: 1 | BZ16: - | CA16: 2 | CC16: 2 | CD16: 0 | CE16: 1 | CF16: - | CG16: 0 | CI16: 1 | CJ16: 0 | CK16: 0 | CL16: - | CM16: 1 | CO16: 2 | CP16: 0 | CQ16: 0 | CR16: - | CS16: 0 | CU16: X | CV16: 0 | CW16: 3 | CX16: - | CY16: 0 | DA16: 1 | DB16: 0 | DC16: 1 | DD16: - | DE16: 0 | DG16: 1 | DH16: 0 | DI16: 0 | DJ16: - | DK16: 1 | DM16: 2 | DN16: 0 | DO16: 1 | DP16: - | DQ16: 1 | DS16: X | DT16: 0 | DU16: 2 | DV16: - | DW16: 1 | DY16: 1 | DZ16: 0 | EA16: 2 | EB16: - | EC16: 1 | EE16: 1 | EF16: 0 | EG16: 3 | EH16: - | EI16: 2 | EK16: 1 | EL16: 0 | EM16: 4 | EN16: - | EO16: 2 | EQ16: 1 | ER16: 0 | ES16: 0 | ET16: - | EU16: 1 | EW16: 2 | EX16: 0 | EY16: 2 | EZ16: - | FA16: 0 | FC16: 1 | FD16: 0 | FE16: 1 | FF16: - | FG16: 1 | FI16: X | FJ16: 0 | FK16: 2 | FL16: - | FM16: 1 | FO16: 1 | FP16: 0 | FQ16: 0 | FR16: - | FS16: 2 | FU16: 2 | FV16: 0 | FW16: 3 | FX16: - | FY16: 0 | GA16: 1 | GB16: 0 | GC16: 2 | GD16: - | GE16: 0 | GG16: 1 | GH16: 0 | GI16: 2 | GJ16: - | GK16: 0 | GM16: 1 | GN16: 0 | GO16: 2 | GP16: - | GQ16: 0 | GS16: 1 | GT16: 0 | GU16: 2 | GV16: - | GW16: 0 | GY16: 1 | GZ16: 0 | HA16: 3 | HB16: - | HC16: 1 | HE16: 1 | HF16: 0 | HG16: 3 | HH16: - | HI16: 2 | HK16: 1 | HL16: 0 | HM16: 2 | HN16: - | HO16: 1 | HQ16: 1 | HR16: 0 | HS16: 2 | HT16: - | HU16: 1 | HW16: 1 | HX16: 0 | HY16: 2 | HZ16: - | IA16: 0 | IC16: 1 | ID16: 0 | IE16: 1 | IF16: - | IG16: 0 | II16: 1 | IJ16: 0 | IK16: 3 | IL16: - | IM16: 1 | IO16: 1 | IP16: 0 | IQ16: 1 | IR16: - | IS16: 0 | IU16: 1 | IV16: 0 | IW16: 2 | IX16: - | IY16: 1 | JA16: 1 | JB16: 0 | JC16: 1 | JD16: - | JE16: 1 | JG16: X | JH16: 0 | JI16: 2 | JJ16: - | JK16: 1 | JM16: 1 | JN16: 0 | JO16: 2 | JP16: - | JQ16: 0 | JS16: 1 | JT16: 0 | JU16: 3 | JV16: - | JW16: 2 | JY16: 1 | JZ16: 0 | KA16: 6 | KB16: - | KC16: 1 | KE16: 1 | KF16: 0 | KG16: 3 | KH16: - | KI16: 1 | KK16: 1 | KL16: 0 | KM16: 2 | KN16: - | KO16: 3 | KQ16: 2 | KR16: 0 | KS16: 1 | KT16: - | KU16: 1 | KW16: X | KX16: 0 | KY16: 0 | KZ16: - | LA16: 0 | LC16: X | LD16: 0 | LE16: 0 | LF16: - | LG16: 0 | LI16: X | LJ16: 0 | LK16: 2 | LL16: - | LM16: 1 | LO16: 1 | LP16: 0 | LQ16: 2 | LR16: - | LS16: 0 | LU16: 1 | LV16: 0 | LW16: 1 | LX16: - | LY16: 0 | MA16: 1 | MB16: 0 | MC16: 2 | MD16: - | ME16: 2 | MG16: X | MH16: 0
A17: 2018-06-19 | B17: Kl 17.00 | C17: Polen | D17: - | E17: Senegal | G17: - | J17: 0 | K17: 1 | L17: - | M17: 1 | O17: X | P17: 0 | Q17: 0 | R17: - | S17: 2 | U17: 2 | V17: 0 | W17: 0 | X17: - | Y17: 1 | AA17: 2 | AB17: 0 | AC17: 1 | AD17: - | AE17: 2 | AG17: 2 | AH17: 0 | AI17: 1 | AJ17: - | AK17: 1 | AM17: X | AN17: 0 | AO17: 2 | AP17: - | AQ17: 0 | AS17: 1 | AT17: 0 | AU17: 0 | AV17: - | AW17: 1 | AY17: 2 | AZ17: 0 | BA17: 0 | BB17: - | BC17: 2 | BE17: 2 | BF17: 0 | BG17: 1 | BH17: - | BI17: 1 | BK17: X | BL17: 0 | BM17: 2 | BN17: - | BO17: 2 | BQ17: X | BR17: 0 | BS17: 1 | BT17: - | BU17: 0 | BW17: 1 | BX17: 0 | BY17: 2 | BZ17: - | CA17: 0 | CC17: 1 | CD17: 0 | CE17: 1 | CF17: - | CG17: 1 | CI17: X | CJ17: 0 | CK17: 2 | CL17: - | CM17: 1 | CO17: 1 | CP17: 0 | CQ17: 3 | CR17: - | CS17: 0 | CU17: 1 | CV17: 0 | CW17: 1 | CX17: - | CY17: 2 | DA17: 2 | DB17: 0 | DC17: 2 | DD17: - | DE17: 1 | DG17: 1 | DH17: 0 | DI17: 1 | DJ17: - | DK17: 0 | DM17: 1 | DN17: 0 | DO17: 1 | DP17: - | DQ17: 0 | DS17: 1 | DT17: 0 | DU17: 1 | DV17: - | DW17: 1 | DY17: X | DZ17: 0 | EA17: 1 | EB17: - | EC17: 1 | EE17: X | EF17: 0 | EG17: 2 | EH17: - | EI17: 1 | EK17: 1 | EL17: 0 | EM17: 1 | EN17: - | EO17: 3 | EQ17: 2 | ER17: 0 | ES17: 1 | ET17: - | EU17: 2 | EW17: 2 | EX17: 0 | EY17: 1 | EZ17: - | FA17: 1 | FC17: X | FD17: 0 | FE17: 2 | FF17: - | FG17: 1 | FI17: 1 | FJ17: 0 | FK17: 1 | FL17: - | FM17: 1 | FO17: X | FP17: 0 | FQ17: 2 | FR17: - | FS17: 2 | FU17: X | FV17: 0 | FW17: 2 | FX17: - | FY17: 1 | GA17: 1 | GB17: 0 | GC17: 1 | GD17: - | GE17: 0 | GG17: 1 | GH17: 0 | GI17: 2 | GJ17: - | GK17: 1 | GM17: 1 | GN17: 0 | GO17: 1 | GP17: - | GQ17: 1 | GS17: X | GT17: 0 | GU17: 2 | GV17: - | GW17: 0 | GY17: 1 | GZ17: 0 | HA17: 2 | HB17: - | HC17: 0 | HE17: 1 | HF17: 0 | HG17: 4 | HH17: - | HI17: 2 | HK17: 1 | HL17: 0 | HM17: 2 | HN17: - | HO17: 0 | HQ17: 1 | HR17: 0 | HS17: 1 | HT17: - | HU17: 3 | HW17: 2 | HX17: 0 | HY17: 0 | HZ17: - | IA17: 0 | IC17: X | ID17: 0 | IE17: 1 | IF17: - | IG17: 1 | II17: X | IJ17: 0 | IK17: 1 | IL17: - | IM17: 0 | IO17: 1 | IP17: 0 | IQ17: 1 | IR17: - | IS17: 0 | IU17: 1 | IV17: 0 | IW17: 1 | IX17: - | IY17: 1 | JA17: X | JB17: 0 | JC17: 2 | JD17: - | JE17: 2 | JG17: X | JH17: 0 | JI17: 0 | JJ17: - | JK17: 0 | JM17: X | JN17: 0 | JO17: 2 | JP17: - | JQ17: 2 | JS17: X | JT17: 0 | JU17: 2 | JV17: - | JW17: 1 | JY17: 1 | JZ17: 0 | KA17: 1 | KB17: - | KC17: 3 | KE17: 2 | KF17: 0 | KG17: 1 | KH17: - | KI17: 3 | KK17: 2 | KL17: 0 | KM17: 2 | KN17: - | KO17: 1 | KQ17: 1 | KR17: 0 | KS17: 1 | KT17: - | KU17: 2 | KW17: 2 | KX17: 0 | KY17: 0 | KZ17: - | LA17: 0 | LC17: X | LD17: 0 | LE17: 2 | LF17: - | LG17: 1 | LI17: 1 | LJ17: 0 | LK17: 1 | LL17: - | LM17: 0 | LO17: 1 | LP17: 0 | LQ17: 2 | LR17: - | LS17: 1 | LU17: 1 | LV17: 0 | LW17: 1 | LX17: - | LY17: 1 | MA17: X | MB17: 0 | MC17: 1 | MD17: - | ME17: 2 | MG17: 2 | MH17: 0
A18: 2018-06-19 | B18: Kl 20.00 | C18: Ryssland | D18: - | E18: Egypten | G18: - | J18: 0 | K18: 0 | L18: - | M18: 1 | O18: 2 | P18: 0 | Q18: 2 | R18: - | S18: 0 | U18: 1 | V18: 0 | W18: 2 | X18: - | Y18: 0 | AA18: 1 | AB18: 0 | AC18: 3 | AD18: - | AE18: 1 | AG18: 1 | AH18: 0 | AI18: 2 | AJ18: - | AK18: 0 | AM18: 1 | AN18: 0 | AO18: 3 | AP18: - | AQ18: 0 | AS18: 1 | AT18: 0 | AU18: 1 | AV18: - | AW18: 2 | AY18: 2 | AZ18: 0 | BA18: 0 | BB18: - | BC18: 3 | BE18: 2 | BF18: 0 | BG18: 1 | BH18: - | BI18: 0 | BK18: 1 | BL18: 0 | BM18: 3 | BN18: - | BO18: 2 | BQ18: 1 | BR18: 0 | BS18: 1 | BT18: - | BU18: 1 | BW18: X | BX18: 0 | BY18: 3 | BZ18: - | CA18: 1 | CC18: 1 | CD18: 0 | CE18: 2 | CF18: - | CG18: 1 | CI18: 1 | CJ18: 0 | CK18: 3 | CL18: - | CM18: 1 | CO18: 1 | CP18: 0 | CQ18: 4 | CR18: - | CS18: 1 | CU18: 1 | CV18: 0 | CW18: 1 | CX18: - | CY18: 1 | DA18: X | DB18: 0 | DC18: 1 | DD18: - | DE18: 0 | DG18: 1 | DH18: 0 | DI18: 2 | DJ18: - | DK18: 0 | DM18: 1 | DN18: 0 | DO18: 2 | DP18: - | DQ18: 0 | DS18: 1 | DT18: 0 | DU18: 3 | DV18: - | DW18: 1 | DY18: 1 | DZ18: 0 | EA18: 3 | EB18: - | EC18: 2 | EE18: 1 | EF18: 0 | EG18: 2 | EH18: - | EI18: 1 | EK18: 1 | EL18: 0 | EM18: 2 | EN18: - | EO18: 3 | EQ18: 2 | ER18: 0 | ES18: 2 | ET18: - | EU18: 1 | EW18: 1 | EX18: 0 | EY18: 0 | EZ18: - | FA18: 0 | FC18: X | FD18: 0 | FE18: 1 | FF18: - | FG18: 2 | FI18: 2 | FJ18: 0 | FK18: 1 | FL18: - | FM18: 1 | FO18: X | FP18: 0 | FQ18: 3 | FR18: - | FS18: 0 | FU18: 1 | FV18: 0 | FW18: 1 | FX18: - | FY18: 1 | GA18: X | GB18: 0 | GC18: 2 | GD18: - | GE18: 0 | GG18: 1 | GH18: 0 | GI18: 2 | GJ18: - | GK18: 1 | GM18: 1 | GN18: 0 | GO18: 2 | GP18: - | GQ18: 0 | GS18: 1 | GT18: 0 | GU18: 1 | GV18: - | GW18: 0 | GY18: 1 | GZ18: 0 | HA18: 4 | HB18: - | HC18: 1 | HE18: 1 | HF18: 0 | HG18: 4 | HH18: - | HI18: 1 | HK18: 1 | HL18: 0 | HM18: 1 | HN18: - | HO18: 1 | HQ18: X | HR18: 0 | HS18: 1 | HT18: - | HU18: 0 | HW18: 1 | HX18: 0 | HY18: 2 | HZ18: - | IA18: 1 | IC18: 1 | ID18: 0 | IE18: 1 | IF18: - | IG18: 1 | II18: X | IJ18: 0 | IK18: 0 | IL18: - | IM18: 1 | IO18: 2 | IP18: 0 | IQ18: 2 | IR18: - | IS18: 0 | IU18: 1 | IV18: 0 | IW18: 0 | IX18: - | IY18: 0 | JA18: X | JB18: 0 | JC18: 2 | JD18: - | JE18: 1 | JG18: 1 | JH18: 0 | JI18: 2 | JJ18: - | JK18: 0 | JM18: 1 | JN18: 0 | JO18: 1 | JP18: - | JQ18: 1 | JS18: X | JT18: 0 | JU18: 2 | JV18: - | JW18: 1 | JY18: 1 | JZ18: 0 | KA18: 4 | KB18: - | KC18: 4 | KE18: X | KF18: 0 | KG18: 3 | KH18: - | KI18: 1 | KK18: 1 | KL18: 0 | KM18: 3 | KN18: - | KO18: 2 | KQ18: 1 | KR18: 0 | KS18: 1 | KT18: - | KU18: 1 | KW18: X | KX18: 0 | KY18: 1 | KZ18: - | LA18: 0 | LC18: 1 | LD18: 0 | LE18: 2 | LF18: - | LG18: 0 | LI18: 1 | LJ18: 0 | LK18: 1 | LL18: - | LM18: 1 | LO18: X | LP18: 0 | LQ18: 3 | LR18: - | LS18: 0 | LU18: 1 | LV18: 0 | LW18: 1 | LX18: - | LY18: 2 | MA18: 2 | MB18: 0 | MC18: 1 | MD18: - | ME18: 1 | MG18: X | MH18: 0
A19: 2018-06-20 | B19: Kl 14.00 | C19: Portugal | D19: - | E19: Marocko | G19: - | J19: 0 | K19: 3 | L19: - | M19: 0 | O19: 1 | P19: 0 | Q19: 0 | R19: - | S19: 0 | U19: X | V19: 0 | W19: 2 | X19: - | Y19: 1 | AA19: 1 | AB19: 0 | AC19: 2 | AD19: - | AE19: 1 | AG19: 1 | AH19: 0 | AI19: 1 | AJ19: - | AK19: 0 | AM19: 1 | AN19: 0 | AO19: 1 | AP19: - | AQ19: 0 | AS19: 1 | AT19: 0 | AU19: 3 | AV19: - | AW19: 0 | AY19: 1 | AZ19: 0 | BA19: 2 | BB19: - | BC19: 1 | BE19: 1 | BF19: 0 | BG19: 3 | BH19: - | BI19: 0 | BK19: 1 | BL19: 0 | BM19: 3 | BN19: - | BO19: 1 | BQ19: 1 | BR19: 0 | BS19: 2 | BT19: - | BU19: 0 | BW19: 1 | BX19: 0 | BY19: 3 | BZ19: - | CA19: 1 | CC19: 1 | CD19: 0 | CE19: 3 | CF19: - | CG19: 1 | CI19: 1 | CJ19: 0 | CK19: 1 | CL19: - | CM19: 0 | CO19: 1 | CP19: 0 | CQ19: 4 | CR19: - | CS19: 2 | CU19: 1 | CV19: 0 | CW19: 2 | CX19: - | CY19: 0 | DA19: 1 | DB19: 0 | DC19: 3 | DD19: - | DE19: 1 | DG19: 1 | DH19: 0 | DI19: 2 | DJ19: - | DK19: 0 | DM19: 1 | DN19: 0 | DO19: 3 | DP19: - | DQ19: 1 | DS19: 1 | DT19: 0 | DU19: 2 | DV19: - | DW19: 0 | DY19: 1 | DZ19: 0 | EA19: 0 | EB19: - | EC19: 1 | EE19: 2 | EF19: 0 | EG19: 2 | EH19: - | EI19: 2 | EK19: X | EL19: 0 | EM19: 1 | EN19: - | EO19: 1 | EQ19: X | ER19: 0 | ES19: 3 | ET19: - | EU19: 0 | EW19: 1 | EX19: 0 | EY19: 3 | EZ19: - | FA19: 0 | FC19: 1 | FD19: 0 | FE19: 2 | FF19: - | FG19: 0 | FI19: 1 | FJ19: 0 | FK19: 3 | FL19: - | FM19: 1 | FO19: 1 | FP19: 0 | FQ19: 1 | FR19: - | FS19: 0 | FU19: 1 | FV19: 0 | FW19: 2 | FX19: - | FY19: 0 | GA19: 1 | GB19: 0 | GC19: 2 | GD19: - | GE19: 1 | GG19: 1 | GH19: 0 | GI19: 3 | GJ19: - | GK19: 0 | GM19: 1 | GN19: 0 | GO19: 2 | GP19: - | GQ19: 0 | GS19: 1 | GT19: 0 | GU19: 2 | GV19: - | GW19: 1 | GY19: 1 | GZ19: 0 | HA19: 3 | HB19: - | HC19: 1 | HE19: 1 | HF19: 0 | HG19: 3 | HH19: - | HI19: 1 | HK19: 1 | HL19: 0 | HM19: 2 | HN19: - | HO19: 0 | HQ19: 1 | HR19: 0 | HS19: 2 | HT19: - | HU19: 0 | HW19: 1 | HX19: 0 | HY19: 1 | HZ19: - | IA19: 0 | IC19: 1 | ID19: 0 | IE19: 1 | IF19: - | IG19: 1 | II19: X | IJ19: 0 | IK19: 2 | IL19: - | IM19: 0 | IO19: 1 | IP19: 0 | IQ19: 2 | IR19: - | IS19: 1 | IU19: 1 | IV19: 0 | IW19: 2 | IX19: - | IY19: 0 | JA19: 1 | JB19: 0 | JC19: 3 | JD19: - | JE19: 0 | JG19: 1 | JH19: 0 | JI19: 2 | JJ19: - | JK19: 0 | JM19: 1 | JN19: 0 | JO19: 3 | JP19: - | JQ19: 0 | JS19: 1 | JT19: 0 | JU19: 2 | JV19: - | JW19: 2 | JY19: X | JZ19: 0 | KA19: 3 | KB19: - | KC19: 5 | KE19: 2 | KF19: 0 | KG19: 3 | KH19: - | KI19: 2 | KK19: 1 | KL19: 0 | KM19: 3 | KN19: - | KO19: 2 | KQ19: 1 | KR19: 0 | KS19: 2 | KT19: - | KU19: 0 | KW19: 1 | KX19: 0 | KY19: 2 | KZ19: - | LA19: 0 | LC19: 1 | LD19: 0 | LE19: 2 | LF19: - | LG19: 0 | LI19: 1 | LJ19: 0 | LK19: 2 | LL19: - | LM19: 0 | LO19: 1 | LP19: 0 | LQ19: 3 | LR19: - | LS19: 0 | LU19: 1 | LV19: 0 | LW19: 2 | LX19: - | LY19: 0 | MA19: 1 | MB19: 0 | MC19: 4 | MD19: - | ME19: 1 | MG19: 1 | MH19: 0
A20: 2018-06-20 | B20: Kl 17.00 | C20: Uruguay | D20: - | E20: Saudiarabien | G20: - | J20: 0 | K20: 2 | L20: - | M20: 0 | O20: 1 | P20: 0 | Q20: 0 | R20: - | S20: 1 | U20: 2 | V20: 0 | W20: 1 | X20: - | Y20: 0 | AA20: 1 | AB20: 0 | AC20: 0 | AD20: - | AE20: 0 | AG20: X | AH20: 0 | AI20: 2 | AJ20: - | AK20: 1 | AM20: 1 | AN20: 0 | AO20: 1 | AP20: - | AQ20: 1 | AS20: X | AT20: 0 | AU20: 4 | AV20: - | AW20: 0 | AY20: 1 | AZ20: 0 | BA20: 5 | BB20: - | BC20: 0 | BE20: 1 | BF20: 0 | BG20: 4 | BH20: - | BI20: 1 | BK20: 1 | BL20: 0 | BM20: 1 | BN20: - | BO20: 1 | BQ20: X | BR20: 0 | BS20: 2 | BT20: - | BU20: 1 | BW20: 1 | BX20: 0 | BY20: 2 | BZ20: - | CA20: 1 | CC20: 1 | CD20: 0 | CE20: 2 | CF20: - | CG20: 1 | CI20: 1 | CJ20: 0 | CK20: 0 | CL20: - | CM20: 0 | CO20: X | CP20: 0 | CQ20: 2 | CR20: - | CS20: 2 | CU20: X | CV20: 0 | CW20: 3 | CX20: - | CY20: 0 | DA20: 1 | DB20: 0 | DC20: 1 | DD20: - | DE20: 0 | DG20: 1 | DH20: =IF($F20=DC20,IF($H20=DE20,5,IF($J20=DG20,3,0)),IF($J20=DG20,3,0)) -> 0 | DI20: 1 | DJ20: - | DK20: 0 | DM20: 1 | DN20: 0 | DO20: 1 | DP20: - | DQ20: 0 | DS20: 1 | DT20: 0 | DU20: 2 | DV20: - | DW20: 1 | DY20: 1 | DZ20: 0 | EA20: 1 | EB20: - | EC20: 1 | EE20: X | EF20: 0 | EG20: 1 | EH20: - | EI20: 3 | EK20: 2 | EL20: 0 | EM20: 3 | EN20: - | EO20: 2 | EQ20: 1 | ER20: 0 | ES20: 3 | ET20: - | EU20: 0 | EW20: 1 | EX20: 0 | EY20: 2 | EZ20: - | FA20: 1 | FC20: 1 | FD20: 0 | FE20: 2 | FF20: - | FG20: 0 | FI20: 1 | FJ20: 0 | FK20: 2 | FL20: - | FM20: 1 | FO20: 1 | FP20: 0 | FQ20: 2 | FR20: - | FS20: 0 | FU20: 1 | FV20: 0 | FW20: 2 | FX20: - | FY20: 0 | GA20: 1 | GB20: 0 | GC20: 2 | GD20: - | GE20: 0 | GG20: 1 | GH20: 0 | GI20: 1 | GK20: 1 | GM20: X | GN20: 0 | GO20: 2 | GP20: - | GQ20: 0 | GS20: 1 | GT20: 0 | GU20: 2 | GV20: - | GW20: 0 | GY20: 1 | GZ20: 0 | HA20: 2 | HB20: - | HC20: 0 | HE20: 1 | HF20: 0 | HG20: 2 | HH20: - | HI20: 3 | HK20: 2 | HL20: 0 | HM20: 2 | HN20: - | HO20: 0 | HQ20: 1 | HR20: 0 | HS20: 0 | HT20: - | HU20: 0 | HW20: X | HX20: 0 | HY20: 1 | HZ20: - | IA20: 0 | IC20: 1 | ID20: 0 | IE20: 0 | IF20: - | IG20: 2 | II20: 2 | IJ20: 0 | IK20: 1 | IL20: - | IM20: 0 | IO20: 1 | IP20: 0 | IQ20: 1 | IR20: - | IS20: 0 | IU20: 1 | IV20: 0 | IW20: 1 | IX20: - | IY20: 0 | JA20: 1 | JB20: 0 | JC20: 0 | JD20: - | JE20: 0 | JG20: X | JH20: 0 | JI20: 1 | JJ20: - | JK20: 1 | JM20: X | JN20: 0 | JO20: 2 | JP20: - | JQ20: 1 | JS20: 1 | JT20: 0 | JU20: 1 | JV20: - | JW20: 3 | JY20: 2 | JZ20: 0 | KA20: 5 | KB20: - | KC20: 3 | KE20: 1 | KF20: 0 | KG20: 5 | KH20: - | KI20: 0 | KK20: 1 | KL20: 0 | KM20: 2 | KN20: - | KO20: 2 | KQ20: X | KR20: 0 | KS20: 1 | KT20: - | KU20: 1 | KW20: X | KX20: 0 | KY20: 2 | KZ20: - | LA20: 0 | LC20: 1 | LD20: 0 | LE20: 3 | LF20: - | LG20: 0 | LI20: 1 | LJ20: 0 | LK20: 2 | LL20: - | LM20: 0 | LO20: 1 | LP20: 0 | LQ20: 1 | LR20: - | LS20: 1 | LU20: X | LV20: 0 | LW20: 0 | LX20: - | LY20: 0 | MA20: X | MB20: 0 | MC20: 2 | MD20: - | ME20: 2 | MG20: X | MH20: 0
A21: 2018-06-20 | B21: Kl 20.00 | C21: Iran | D21: - | E21: Spanien | G21: - | J21: 0 | K21: 1 | L21: - | M21: 2 | O21: 2 | P21: 0 | Q21: 1 | R21: - | S21: 0 | U21: 1 | V21: 0 | W21: 0 | X21: - | Y21: 2 | AA21: 2 | AB21: 0 | AC21: 1 | AD21: - | AE21: 3 | AG21: 2 | AH21: 0 | AI21: 0 | AJ21: - | AK21: 1 | AM21: 2 | AN21: 0 | AO21: 1 | AP21: - | AQ21: 2 | AS21: 2 | AT21: 0 | AU21: 1 | AV21: - | AW21: 4 | AY21: 2 | AZ21: 0 | BA21: 0 | BB21: - | BC21: 3 | BE21: 2 | BF21: 0 | BG21: 1 | BH21: - | BI21: 3 | BK21: 2 | BL21: 0 | BM21: 1 | BN21: - | BO21: 3 | BQ21: 2 | BR21: 0 | BS21: 0 | BT21: - | BU21: 2 | BW21: 2 | BX21: 0 | BY21: 0 | BZ21: - | CA21: 3 | CC21: 2 | CD21: 0 | CE21: 0 | CF21: - | CG21: 3 | CI21: 2 | CJ21: 0 | CK21: 0 | CL21: - | CM21: 2 | CO21: 2 | CP21: 0 | CQ21: 0 | CR21: - | CS21: 4 | CU21: 2 | CV21: 0 | CW21: 0 | CX21: - | CY21: 3 | DA21: 2 | DB21: 0 | DC21: 0 | DD21: - | DE21: 2 | DG21: 2 | DH21: 0 | DI21: 0 | DJ21: - | DK21: 2 | DM21: 2 | DN21: 0 | DO21: 0 | DP21: - | DQ21: 2 | DS21: 2 | DT21: 0 | DU21: 0 | DV21: - | DW21: 3 | DY21: 2 | DZ21: 0 | EA21: 0 | EB21: - | EC21: 3 | EE21: 2 | EF21: 0 | EG21: 0 | EH21: - | EI21: 2 | EK21: 2 | EL21: 0 | EM21: 1 | EN21: - | EO21: 4 | EQ21: 2 | ER21: 0 | ES21: 0 | ET21: - | EU21: 3 | EW21: 2 | EX21: 0 | EY21: 0 | EZ21: - | FA21: 2 | FC21: 2 | FD21: 0 | FE21: 0 | FF21: - | FG21: 1 | FI21: 2 | FJ21: 0 | FK21: 0 | FL21: - | FM21: 0 | FO21: X | FP21: 0 | FQ21: 1 | FR21: - | FS21: 3 | FU21: 2 | FV21: 0 | FW21: 0 | FX21: - | FY21: 2 | GA21: 2 | GB21: 0 | GC21: 0 | GD21: - | GE21: 3 | GG21: 2 | GH21: 0 | GI21: 0 | GJ21: - | GK21: 3 | GM21: 2 | GN21: 0 | GO21: 0 | GP21: - | GQ21: 2 | GS21: 2 | GT21: 0 | GU21: 0 | GV21: - | GW21: 2 | GY21: 2 | GZ21: 0 | HA21: 1 | HB21: - | HC21: 3 | HE21: 2 | HF21: 0 | HG21: 2 | HH21: - | HI21: 2 | HK21: X | HL21: 0 | HM21: 0 | HN21: - | HO21: 3 | HQ21: 2 | HR21: 0 | HS21: 1 | HT21: - | HU21: 1 | HW21: X | HX21: 0 | HY21: 0 | HZ21: - | IA21: 0 | IC21: X | ID21: 0 | IE21: 0 | IF21: - | IG21: 2 | II21: 2 | IJ21: 0 | IK21: 0 | IL21: - | IM21: 3 | IO21: 2 | IP21: 0 | IQ21: 0 | IR21: - | IS21: 2 | IU21: 2 | IV21: 0 | IW21: 0 | IX21: - | IY21: 2 | JA21: 2 | JB21: 0 | JC21: 0 | JD21: - | JE21: 2 | JG21: 2 | JH21: 0 | JI21: 0 | JJ21: - | JK21: 3 | JM21: 2 | JN21: 0 | JO21: 0 | JP21: - | JQ21: 3 | JS21: 2 | JT21: 0 | JU21: 0 | JV21: - | JW21: 2 | JY21: 2 | JZ21: 0 | KA21: 1 | KB21: - | KC21: 2 | KE21: 2 | KF21: 0 | KG21: 1 | KH21: - | KI21: 5 | KK21: 2 | KL21: 0 | KM21: 1 | KN21: - | KO21: 3 | KQ21: 2 | KR21: 0 | KS21: 1 | KT21: - | KU21: 2 | KW21: 2 | KX21: 0 | KY21: 1 | KZ21: - | LA21: 2 | LC21: 2 | LD21: 0 | LE21: 0 | LF21: - | LG21: 3 | LI21: 2 | LJ21: 0 | LK21: 0 | LL21: - | LM21: 2 | LO21: 2 | LP21: 0 | LQ21: 0 | LR21: - | LS21: 3 | LU21: 2 | LV21: 0 | LW21: 0 | LX21: - | LY21: 3 | MA21: 2 | MB21: 0 | MC21: 0 | MD21: - | ME21: 2 | MG21: 2 | MH21: 0
A22: 2018-06-21 | B22: Kl 14.00 | C22: Danmark | D22: - | E22: Australien | G22: - | J22: 0 | K22: 1 | L22: - | M22: 1 | O22: X | P22: 0 | Q22: 0 | R22: - | S22: 2 | U22: 2 | V22: 0 | W22: 1 | X22: - | Y22: 0 | AA22: 1 | AB22: 0 | AC22: 2 | AD22: - | AE22: 2 | AG22: X | AH22: 0 | AI22: 1 | AJ22: - | AK22: 0 | AM22: 1 | AN22: 0 | AO22: 2 | AP22: - | AQ22: 1 | AS22: 1 | AT22: 0 | AU22: 1 | AV22: - | AW22: 1 | AY22: X | AZ22: 0 | BA22: 2 | BB22: - | BC22: 2 | BE22: X | BF22: 0 | BG22: 2 | BH22: - | BI22: 0 | BK22: 1 | BL22: 0 | BM22: 2 | BN22: - | BO22: 1 | BQ22: 1 | BR22: 0 | BS22: 1 | BT22: - | BU22: 1 | BW22: X | BX22: 0 | BY22: 2 | BZ22: - | CA22: 2 | CC22: X | CD22: 0 | CE22: 1 | CF22: - | CG22: 0 | CI22: 1 | CJ22: 0 | CK22: 1 | CL22: - | CM22: 0 | CO22: 1 | CP22: 0 | CQ22: 3 | CR22: - | CS22: 1 | CU22: 1 | CV22: 0 | CW22: 1 | CX22: - | CY22: 1 | DA22: X | DB22: 0 | DC22: 1 | DD22: - | DE22: 1 | DG22: X | DH22: 0 | DI22: 2 | DJ22: - | DK22: 1 | DM22: 1 | DN22: 0 | DO22: 1 | DP22: - | DQ22: 1 | DS22: X | DT22: 0 | DU22: 1 | DV22: - | DW22: 1 | DY22: X | DZ22: 0 | EA22: 3 | EB22: - | EC22: 2 | EE22: 1 | EF22: 0 | EG22: 2 | EH22: - | EI22: 1 | EK22: 1 | EL22: 0 | EM22: 2 | EN22: - | EO22: 1 | EQ22: 1 | ER22: 0 | ES22: 2 | ET22: - | EU22: 1 | EW22: 1 | EX22: 0 | EY22: 2 | EZ22: - | FA22: 2 | FC22: X | FD22: 0 | FE22: 2 | FF22: - | FG22: 2 | FI22: X | FJ22: 0 | FK22: 1 | FL22: - | FM22: 0 | FO22: 1 | FP22: 0 | FQ22: 2 | FR22: - | FS22: 0 | FU22: 1 | FV22: 0 | FW22: 1 | FX22: - | FY22: 1 | GA22: X | GB22: 0 | GC22: 1 | GD22: - | GE22: 0 | GG22: 1 | GH22: 0 | GI22: 2 | GJ22: - | GK22: 1 | GM22: 1 | GN22: 0 | GO22: 1 | GP22: - | GQ22: 0 | GS22: 1 | GT22: 0 | GU22: 2 | GV22: - | GW22: 1 | GY22: 1 | GZ22: 0 | HA22: 2 | HB22: - | HC22: 2 | HE22: X | HF22: 0 | HG22: 4 | HH22: - | HI22: 3 | HK22: 1 | HL22: 0 | HM22: 0 | HN22: - | HO22: 0 | HQ22: X | HR22: 0 | HS22: 1 | HT22: - | HU22: 1 | HW22: X | HX22: 0 | HY22: 0 | HZ22: - | IA22: 1 | IC22: 2 | ID22: 0 | IE22: 2 | IF22: - | IG22: 1 | II22: 1 | IJ22: 0 | IK22: 2 | IL22: - | IM22: 1 | IO22: 1 | IP22: 0 | IQ22: 1 | IR22: - | IS22: 0 | IU22: 1 | IV22: 0 | IW22: 2 | IX22: - | IY22: 2 | JA22: X | JB22: 0 | JC22: 1 | JD22: - | JE22: 1 | JG22: X | JH22: 0 | JI22: 2 | JJ22: - | JK22: 1 | JM22: 1 | JN22: 0 | JO22: 1 | JP22: - | JQ22: 0 | JS22: 1 | JT22: 0 | JU22: 2 | JV22: - | JW22: 1 | JY22: 1 | JZ22: 0 | KA22: 4 | KB22: - | KC22: 0 | KE22: 1 | KF22: 0 | KG22: 4 | KH22: - | KI22: 4 | KK22: X | KL22: 0 | KM22: 3 | KN22: - | KO22: 1 | KQ22: 1 | KR22: 0 | KS22: 2 | KT22: - | KU22: 2 | KW22: X | KX22: 0 | KY22: 1 | KZ22: - | LA22: 1 | LC22: X | LD22: 0 | LE22: 2 | LF22: - | LG22: 2 | LI22: X | LJ22: 0 | LK22: 2 | LL22: - | LM22: 2 | LO22: X | LP22: 0 | LQ22: 3 | LR22: - | LS22: 0 | LU22: 1 | LV22: 0 | LW22: 2 | LX22: - | LY22: 0 | MA22: 1 | MB22: 0 | MC22: 2 | MD22: - | ME22: 1 | MG22: 1 | MH22: 0
A23: 2018-06-21 | B23: Kl 17.00 | C23: Frankrike | D23: - | E23: Peru | G23: - | J23: 0 | K23: 1 | L23: - | M23: 0 | O23: 1 | P23: 0 | Q23: 2 | R23: - | S23: 3 | U23: 2 | V23: 0 | W23: 2 | X23: - | Y23: 0 | AA23: 1 | AB23: 0 | AC23: 3 | AD23: - | AE23: 1 | AG23: 1 | AH23: 0 | AI23: 0 | AJ23: - | AK23: 2 | AM23: 2 | AN23: 0 | AO23: 3 | AP23: - | AQ23: 0 | AS23: 1 | AT23: 0 | AU23: 2 | AV23: - | AW23: 0 | AY23: 1 | AZ23: 0 | BA23: 3 | BB23: - | BC23: 1 | BE23: 1 | BF23: 0 | BG23: 2 | BH23: - | BI23: 1 | BK23: 1 | BL23: 0 | BM23: 3 | BN23: - | BO23: 0 | BQ23: 1 | BR23: 0 | BS23: 2 | BT23: - | BU23: 2 | BW23: X | BX23: 0 | BY23: 2 | BZ23: - | CA23: 1 | CC23: 1 | CD23: 0 | CE23: 3 | CF23: - | CG23: 1 | CI23: 1 | CJ23: 0 | CK23: 2 | CL23: - | CM23: 1 | CO23: 1 | CP23: 0 | CQ23: 4 | CR23: - | CS23: 1 | CU23: 1 | CV23: 0 | CW23: 2 | CX23: - | CY23: 0 | DA23: 1 | DB23: 0 | DC23: 2 | DD23: - | DE23: 0 | DG23: 1 | DH23: 0 | DI23: 2 | DJ23: - | DK23: 1 | DM23: 1 | DN23: 0 | DO23: 2 | DP23: - | DQ23: 0 | DS23: 1 | DT23: 0 | DU23: 4 | DV23: - | DW23: 0 | DY23: 1 | DZ23: 0 | EA23: 3 | EB23: - | EC23: 0 | EE23: 1 | EF23: 0 | EG23: 3 | EH23: - | EI23: 1 | EK23: 1 | EL23: 0 | EM23: 2 | EN23: - | EO23: 2 | EQ23: X | ER23: 0 | ES23: 4 | ET23: - | EU23: 0 | EW23: 1 | EX23: 0 | EY23: 3 | EZ23: - | FA23: 1 | FC23: 1 | FD23: 0 | FE23: 2 | FF23: - | FG23: 0 | FI23: 1 | FJ23: 0 | FK23: 4 | FL23: - | FM23: 1 | FO23: 1 | FP23: 0 | FQ23: 3 | FR23: - | FS23: 0 | FU23: 1 | FV23: 0 | FW23: 2 | FX23: - | FY23: 1 | GA23: 1 | GB23: 0 | GC23: 1 | GD23: - | GE23: 0 | GG23: 1 | GH23: 0 | GI23: 3 | GJ23: - | GK23: 1 | GM23: 1 | GN23: 0 | GO23: 1 | GP23: - | GQ23: 1 | GS23: X | GT23: 0 | GU23: 2 | GV23: - | GW23: 1 | GY23: 1 | GZ23: 0 | HA23: 3 | HB23: - | HC23: 2 | HE23: 1 | HF23: 0 | HG23: 4 | HH23: - | HI23: 1 | HK23: 1 | HL23: 0 | HM23: 2 | HN23: - | HO23: 1 | HQ23: 1 | HR23: 0 | HS23: 2 | HT23: - | HU23: 0 | HW23: 1 | HX23: 0 | HY23: 2 | HZ23: - | IA23: 1 | IC23: 1 | ID23: 0 | IE23: 1 | IF23: - | IG23: 1 | II23: X | IJ23: 0 | IK23: 1 | IL23: - | IM23: 1 | IO23: X | IP23: 0 | IQ23: 2 | IR23: - | IS23: 0 | IU23: 1 | IV23: 0 | IW23: 1 | IX23: - | IY23: 1 | JA23: X | JB23: 0 | JC23: 2 | JD23: - | JE23: 0 | JG23: 1 | JH23: 0 | JI23: 3 | JJ23: - | JK23: 1 | JM23: 1 | JN23: 0 | JO23: 2 | JP23: - | JQ23: 2 | JS23: X | JT23: 0 | JU23: 3 | JV23: - | JW23: 1 | JY23: 1 | JZ23: 0 | KA23: 7 | KB23: - | KC23: 1 | KE23: 1 | KF23: 0 | KG23: 1 | KH23: - | KI23: 3 | KK23: 2 | KL23: 0 | KM23: 1 | KN23: - | KO23: 4 | KQ23: 2 | KR23: 0 | KS23: 3 | KT23: - | KU23: 1 | KW23: 1 | KX23: 0 | KY23: 1 | KZ23: - | LA23: 1 | LC23: X | LD23: 0 | LE23: 2 | LF23: - | LG23: 0 | LI23: 1 | LJ23: 0 | LK23: 2 | LL23: - | LM23: 0 | LO23: 1 | LP23: 0 | LQ23: 2 | LR23: - | LS23: 0 | LU23: 1 | LV23: 0 | LW23: 2 | LX23: - | LY23: 0 | MA23: 1 | MB23: 0 | MC23: 1 | MD23: - | ME23: 0 | MG23: 1 | MH23: 0
A24: 2018-06-21 | B24: Kl 20.00 | C24: Argentina | D24: - | E24: Kroatien | G24: - | J24: 0 | K24: 2 | L24: - | M24: 0 | O24: 1 | P24: 0 | Q24: 3 | R24: - | S24: 1 | U24: 1 | V24: 0 | W24: 1 | X24: - | Y24: 0 | AA24: 1 | AB24: 0 | AC24: 3 | AD24: - | AE24: 1 | AG24: 1 | AH24: 0 | AI24: 1 | AJ24: - | AK24: 2 | AM24: 2 | AN24: 0 | AO24: 2 | AP24: - | AQ24: 1 | AS24: 1 | AT24: 0 | AU24: 1 | AV24: - | AW24: 1 | AY24: X | AZ24: 0 | BA24: 0 | BB24: - | BC24: 0 | BE24: X | BF24: 0 | BG24: 2 | BH24: - | BI24: 2 | BK24: X | BL24: 0 | BM24: 2 | BN24: - | BO24: 2 | BQ24: X | BR24: 0 | BS24: 2 | BT24: - | BU24: 0 | BW24: 1 | BX24: 0 | BY24: 3 | BZ24: - | CA24: 1 | CC24: 1 | CD24: 0 | CE24: 2 | CF24: - | CG24: 3 | CI24: 2 | CJ24: 0 | CK24: 3 | CL24: - | CM24: 0 | CO24: 1 | CP24: 0 | CQ24: 5 | CR24: - | CS24: 0 | CU24: 1 | CV24: 0 | CW24: 1 | CX24: - | CY24: 1 | DA24: X | DB24: 0 | DC24: 1 | DD24: - | DE24: 1 | DG24: X | DH24: 0 | DI24: 0 | DJ24: - | DK24: 2 | DM24: 2 | DN24: 0 | DO24: 2 | DP24: - | DQ24: 2 | DS24: X | DT24: 0 | DU24: 3 | DV24: - | DW24: 2 | DY24: 1 | DZ24: 0 | EA24: 3 | EB24: - | EC24: 1 | EE24: 1 | EF24: 0 | EG24: 2 | EH24: - | EI24: 1 | EK24: 1 | EL24: 0 | EM24: 1 | EN24: - | EO24: 3 | EQ24: 2 | ER24: 0 | ES24: 3 | ET24: - | EU24: 1 | EW24: 1 | EX24: 0 | EY24: 2 | EZ24: - | FA24: 1 | FC24: 1 | FD24: 0 | FE24: 1 | FF24: - | FG24: 1 | FI24: X | FJ24: 0 | FK24: 1 | FL24: - | FM24: 2 | FO24: 2 | FP24: 0 | FQ24: 1 | FR24: - | FS24: 2 | FU24: 2 | FV24: 0 | FW24: 2 | FX24: - | FY24: 1 | GA24: 1 | GB24: 0 | GC24: 2 | GD24: - | GE24: 0 | GG24: 1 | GH24: 0 | GI24: 1 | GJ24: - | GK24: 0 | GM24: 1 | GN24: 0 | GO24: 2 | GP24: - | GQ24: 0 | GS24: 1 | GT24: 0 | GU24: 1 | GV24: - | GW24: 1 | GY24: X | GZ24: 0 | HA24: 4 | HB24: - | HC24: 1 | HE24: 1 | HF24: 0 | HG24: 3 | HH24: - | HI24: 3 | HK24: X | HL24: 0 | HM24: 2 | HN24: - | HO24: 0 | HQ24: 1 | HR24: 0 | HS24: 2 | HT24: - | HU24: 0 | HW24: 1 | HX24: 0 | HY24: 3 | HZ24: - | IA24: 1 | IC24: 1 | ID24: 0 | IE24: 1 | IF24: - | IG24: 1 | II24: X | IJ24: 0 | IK24: 0 | IL24: - | IM24: 0 | IO24: X | IP24: 0 | IQ24: 3 | IR24: - | IS24: 1 | IU24: 1 | IV24: 0 | IW24: 2 | IX24: - | IY24: 1 | JA24: 1 | JB24: 0 | JC24: 0 | JD24: - | JE24: 1 | JG24: 2 | JH24: 0 | JI24: 0 | JJ24: - | JK24: 0 | JM24: X | JN24: 0 | JO24: 1 | JP24: - | JQ24: 2 | JS24: 2 | JT24: 0 | JU24: 2 | JV24: - | JW24: 1 | JY24: 1 | JZ24: 0 | KA24: 1 | KB24: - | KC24: 4 | KE24: 2 | KF24: 0 | KG24: 1 | KH24: - | KI24: 3 | KK24: 2 | KL24: 0 | KM24: 1 | KN24: - | KO24: 3 | KQ24: 2 | KR24: 0 | KS24: 2 | KT24: - | KU24: 1 | KW24: 1 | KX24: 0 | KY24: 1 | KZ24: - | LA24: 1 | LC24: X | LD24: 0 | LE24: 1 | LF24: - | LG24: 1 | LI24: X | LJ24: 0 | LK24: 2 | LL24: - | LM24: 1 | LO24: 1 | LP24: 0 | LQ24: 1 | LR24: - | LS24: 0 | LU24: 1 | LV24: 0 | LW24: 3 | LX24: - | LY24: 0 | MA24: 1 | MB24: 0 | MC24: 2 | MD24: - | ME24: 2 | MG24: X | MH24: 0
A25: 2018-06-22 | B25: Kl 14.00 | C25: Brasilien | D25: - | E25: Costa Rica | G25: - | J25: 0 | K25: 3 | L25: - | M25: 0 | O25: =IF(K25=M25,"X",IF(K25>M25,1,2)) -> 1 | P25: 0 | Q25: 1 | R25: - | S25: 0 | U25: 1 | V25: 0 | W25: 2 | X25: - | Y25: 1 | AA25: 1 | AB25: 0 | AC25: 3 | AD25: - | AE25: 1 | AG25: =IF(AC25=AE25,"X",IF(AC25>AE25,1,2)) -> 1 | AH25: 0 | AI25: 3 | AJ25: - | AK25: 1 | AM25: =IF(AI25=AK25,"X",IF(AI25>AK25,1,2)) -> 1 | AN25: 0 | AO25: 3 | AP25: - | AQ25: 0 | AS25: =IF(AO25=AQ25,"X",IF(AO25>AQ25,1,2)) -> 1 | AT25: 0 | AU25: 3 | AV25: - | AW25: 0 | AY25: =IF(AU25=AW25,"X",IF(AU25>AW25,1,2)) -> 1 | AZ25: 0 | BA25: 4 | BB25: - | BC25: 1 | BE25: =IF(BA25=BC25,"X",IF(BA25>BC25,1,2)) -> 1 | BF25: 0 | BG25: 4 | BH25: - | BI25: 0 | BK25: =IF(BG25=BI25,"X",IF(BG25>BI25,1,2)) -> 1 | BL25: 0 | BM25: 3 | BN25: - | BO25: 1 | BQ25: =IF(BM25=BO25,"X",IF(BM25>BO25,1,2)) -> 1 | BR25: 0 | BS25: 5 | BT25: - | BU25: 2 | BW25: =IF(BS25=BU25,"X",IF(BS25>BU25,1,2)) -> 1 | BX25: 0 | BY25: 2 | BZ25: - | CA25: 0 | CC25: =IF(BY25=CA25,"X",IF(BY25>CA25,1,2)) -> 1 | CD25: 0 | CE25: 4 | CF25: - | CG25: 1 | CI25: =IF(CE25=CG25,"X",IF(CE25>CG25,1,2)) -> 1 | CJ25: 0 | CK25: 3 | CL25: - | CM25: 1 | CO25: =IF(CK25=CM25,"X",IF(CK25>CM25,1,2)) -> 1 | CP25: 0 | CQ25: 4 | CR25: - | CS25: 0 | CU25: =IF(CQ25=CS25,"X",IF(CQ25>CS25,1,2)) -> 1 | CV25: 0 | CW25: 2 | CX25: - | CY25: 0 | DA25: =IF(CW25=CY25,"X",IF(CW25>CY25,1,2)) -> 1 | DB25: 0 | DC25: 2 | DD25: - | DE25: 1 | DG25: =IF(DC25=DE25,"X",IF(DC25>DE25,1,2)) -> 1 | DH25: 0 | DI25: 3 | DJ25: - | DK25: 2 | DM25: 1 | DN25: 0 | DO25: 1 | DP25: - | DQ25: 0 | DS25: 1 | DT25: 0 | DU25: 2 | DV25: - | DW25: 1 | DY25: =IF(DU25=DW25,"X",IF(DU25>DW25,1,2)) -> 1 | DZ25: 0 | EA25: 2 | EB25: - | EC25: 0 | EE25: =IF(EA25=EC25,"X",IF(EA25>EC25,1,2)) -> 1 | EF25: 0 | EG25: 3 | EH25: - | EI25: 1 | EK25: =IF(EG25=EI25,"X",IF(EG25>EI25,1,2)) -> 1 | EL25: 0 | EM25: 3 | EN25: - | EO25: 1 | EQ25: =IF(EM25=EO25,"X",IF(EM25>EO25,1,2)) -> 1 | ER25: 0 | ES25: 4 | ET25: - | EU25: 0 | EW25: =IF(ES25=EU25,"X",IF(ES25>EU25,1,2)) -> 1 | EX25: 0 | EY25: 3 | EZ25: - | FA25: 2 | FC25: =IF(EY25=FA25,"X",IF(EY25>FA25,1,2)) -> 1 | FD25: 0 | FE25: 3 | FF25: - | FG25: 0 | FI25: =IF(FE25=FG25,"X",IF(FE25>FG25,1,2)) -> 1 | FJ25: 0 | FK25: 2 | FL25: - | FM25: 0 | FO25: =IF(FK25=FM25,"X",IF(FK25>FM25,1,2)) -> 1 | FP25: 0 | FQ25: 2 | FR25: - | FS25: 0 | FU25: =IF(FQ25=FS25,"X",IF(FQ25>FS25,1,2)) -> 1 | FV25: 0 | FW25: 2 | FX25: - | FY25: 1 | GA25: =IF(FW25=FY25,"X",IF(FW25>FY25,1,2)) -> 1 | GB25: 0 | GC25: 3 | GD25: - | GE25: 0 | GG25: =IF(GC25=GE25,"X",IF(GC25>GE25,1,2)) -> 1 | GH25: 0 | GI25: 2 | GJ25: - | GK25: 0 | GM25: =IF(GI25=GK25,"X",IF(GI25>GK25,1,2)) -> 1 | GN25: 0 | GO25: 2 | GP25: - | GQ25: 1 | GS25: =IF(GO25=GQ25,"X",IF(GO25>GQ25,1,2)) -> 1 | GT25: 0 | GU25: 2 | GV25: - | GW25: 1 | GY25: =IF(GU25=GW25,"X",IF(GU25>GW25,1,2)) -> 1 | GZ25: 0 | HA25: 4 | HB25: - | HC25: 1 | HE25: =IF(HA25=HC25,"X",IF(HA25>HC25,1,2)) -> 1 | HF25: 0 | HG25: 2 | HH25: - | HI25: 3 | HK25: =IF(HG25=HI25,"X",IF(HG25>HI25,1,2)) -> 2 | HL25: 0 | HM25: 2 | HN25: - | HO25: 0 | HQ25: =IF(HM25=HO25,"X",IF(HM25>HO25,1,2)) -> 1 | HR25: 0 | HS25: 2 | HT25: - | HU25: 0 | HW25: 1 | HX25: 0 | HY25: 2 | HZ25: - | IA25: 2 | IC25: X | ID25: 0 | IE25: 2 | IF25: - | IG25: 1 | II25: 1 | IJ25: 0 | IK25: 1 | IL25: - | IM25: 0 | IO25: 1 | IP25: 0 | IQ25: 3 | IR25: - | IS25: 0 | IU25: 1 | IV25: 0 | IW25: 3 | IX25: - | IY25: 0 | JA25: 1 | JB25: 0 | JC25: 2 | JD25: - | JE25: 2 | JG25: X | JH25: 0 | JI25: 3 | JJ25: - | JK25: 0 | JM25: 1 | JN25: 0 | JO25: 3 | JP25: - | JQ25: 2 | JS25: 1 | JT25: 0 | JU25: 3 | JV25: - | JW25: 1 | JY25: 1 | JZ25: 0 | KA25: 4 | KB25: - | KC25: 4 | KE25: X | KF25: 0 | KG25: 4 | KH25: - | KI25: 2 | KK25: 1 | KL25: 0 | KM25: 4 | KN25: - | KO25: 4 | KQ25: X | KR25: 0 | KS25: 3 | KT25: - | KU25: 1 | KW25: 1 | KX25: 0 | KY25: 2 | KZ25: - | LA25: 1 | LC25: 1 | LD25: 0 | LE25: 2 | LF25: - | LG25: 0 | LI25: 1 | LJ25: 0 | LK25: 2 | LL25: - | LM25: 0 | LO25: 1 | LP25: 0 | LQ25: 1 | LR25: - | LS25: 3 | LU25: 2 | LV25: 0 | LW25: 2 | LX25: - | LY25: 1 | MA25: 1 | MB25: 0 | MC25: 3 | MD25: - | ME25: 1 | MG25: 1 | MH25: 0
A26: 2018-06-22 | B26: Kl 17.00 | C26: Nigeria | D26: =D25 -> - | E26: Island | G26: - | J26: =IF(F26=" ",0,IF(F26=H26,"X",IF(F26>H26,1,2))) -> 0 | K26: 0 | L26: - | M26: 1 | O26: 2 | P26: 0 | Q26: 0 | R26: - | S26: 3 | U26: 2 | V26: 0 | W26: 2 | X26: - | Y26: 1 | AA26: 1 | AB26: 0 | AC26: 2 | AD26: - | AE26: 2 | AG26: X | AH26: 0 | AI26: 0 | AJ26: - | AK26: 2 | AM26: 2 | AN26: 0 | AO26: 0 | AP26: - | AQ26: 3 | AS26: 2 | AT26: 0 | AU26: 4 | AV26: - | AW26: 2 | AY26: 1 | AZ26: 0 | BA26: 3 | BB26: - | BC26: 1 | BE26: 1 | BF26: 0 | BG26: 1 | BH26: - | BI26: 1 | BK26: X | BL26: 0 | BM26: 0 | BN26: - | BO26: 0 | BQ26: X | BR26: 0 | BS26: 1 | BT26: - | BU26: 0 | BW26: 1 | BX26: 0 | BY26: 1 | BZ26: - | CA26: 2 | CC26: 2 | CD26: 0 | CE26: 1 | CF26: - | CG26: 0 | CI26: 1 | CJ26: 0 | CK26: 1 | CL26: - | CM26: 2 | CO26: 2 | CP26: 0 | CQ26: 0 | CR26: - | CS26: 1 | CU26: 2 | CV26: 0 | CW26: 2 | CX26: - | CY26: 0 | DA26: 1 | DB26: 0 | DC26: 0 | DD26: - | DE26: 1 | DG26: 2 | DH26: 0 | DI26: 1 | DJ26: - | DK26: 1 | DM26: X | DN26: 0 | DO26: 0 | DP26: - | DQ26: 1 | DS26: 2 | DT26: 0 | DU26: 0 | DV26: - | DW26: 1 | DY26: 2 | DZ26: 0 | EA26: 1 | EB26: - | EC26: 1 | EE26: X | EF26: 0 | EG26: 0 | EH26: - | EI26: 1 | EK26: 2 | EL26: 0 | EM26: 4 | EN26: - | EO26: 3 | EQ26: 1 | ER26: 0 | ES26: 3 | ET26: - | EU26: 1 | EW26: 1 | EX26: 0 | EY26: 1 | EZ26: - | FA26: 1 | FC26: X | FD26: 0 | FE26: 2 | FF26: - | FG26: 1 | FI26: 1 | FJ26: 0 | FK26: 1 | FL26: - | FM26: 0 | FO26: 1 | FP26: 0 | FQ26: 0 | FR26: - | FS26: 0 | FU26: X | FV26: 0 | FW26: 1 | FX26: - | FY26: 2 | GA26: 2 | GB26: 0 | GC26: 1 | GD26: - | GE26: 1 | GG26: X | GH26: 0 | GI26: 1 | GJ26: - | GK26: 1 | GM26: X | GN26: 0 | GO26: 1 | GP26: - | GQ26: 2 | GS26: 2 | GT26: 0 | GU26: 1 | GV26: - | GW26: 1 | GY26: X | GZ26: 0 | HA26: 2 | HB26: - | HC26: 2 | HE26: X | HF26: 0 | HG26: 2 | HH26: - | HI26: 4 | HK26: 2 | HL26: 0 | HM26: 0 | HN26: - | HO26: 1 | HQ26: 2 | HR26: 0 | HS26: 1 | HT26: - | HU26: 1 | HW26: X | HX26: 0 | HY26: 0 | HZ26: - | IA26: 1 | IC26: 2 | ID26: 0 | IE26: 2 | IF26: - | IG26: 2 | II26: X | IJ26: 0 | IK26: 2 | IL26: - | IM26: 0 | IO26: 1 | IP26: 0 | IQ26: 1 | IR26: - | IS26: 0 | IU26: 1 | IV26: 0 | IW26: 2 | IX26: - | IY26: 1 | JA26: 1 | JB26: 0 | JC26: 0 | JD26: - | JE26: 0 | JG26: X | JH26: 0 | JI26: 1 | JJ26: - | JK26: 2 | JM26: 2 | JN26: 0 | JO26: 2 | JP26: - | JQ26: 2 | JS26: X | JT26: 0 | JU26: 0 | JV26: - | JW26: 1 | JY26: 2 | JZ26: 0 | KA26: 5 | KB26: - | KC26: 4 | KE26: 1 | KF26: 0 | KG26: 6 | KH26: - | KI26: 0 | KK26: 1 | KL26: 0 | KM26: 3 | KN26: - | KO26: 2 | KQ26: 1 | KR26: 0 | KS26: 2 | KT26: - | KU26: 0 | KW26: 1 | KX26: 0 | KY26: 2 | KZ26: - | LA26: 2 | LC26: X | LD26: 0 | LE26: 2 | LF26: - | LG26: 0 | LI26: 1 | LJ26: 0 | LK26: 1 | LL26: - | LM26: 1 | LO26: X | LP26: 0 | LQ26: 1 | LR26: - | LS26: 1 | LU26: X | LV26: 0 | LW26: 2 | LX26: - | LY26: 0 | MA26: 1 | MB26: 0 | MC26: 1 | MD26: - | ME26: 1 | MG26: X | MH26: 0
A27: 2018-06-22 | B27: Kl 20.00 | C27: Serbien | D27: - | E27: Schweiz | G27: - | J27: 0 | K27: 0 | L27: - | M27: 1 | O27: 2 | P27: =IF($F27=K27,IF($H27=M27,5,IF($J27=O27,3,0)),IF($J27=O27,3,0)) -> 0 | Q27: 3 | R27: - | S27: 2 | U27: 1 | V27: =IF($F27=Q27,IF($H27=S27,5,IF($J27=U27,3,0)),IF($J27=U27,3,0)) -> 0 | W27: 0 | X27: - | Y27: 1 | AA27: 2 | AB27: =IF($F27=W27,IF($H27=Y27,5,IF($J27=AA27,3,0)),IF($J27=AA27,3,0)) -> 0 | AC27: 1 | AD27: - | AE27: 1 | AG27: X | AH27: =IF($F27=AC27,IF($H27=AE27,5,IF($J27=AG27,3,0)),IF($J27=AG27,3,0)) -> 0 | AI27: 0 | AJ27: - | AK27: 1 | AM27: 2 | AN27: =IF($F27=AI27,IF($H27=AK27,5,IF($J27=AM27,3,0)),IF($J27=AM27,3,0)) -> 0 | AO27: 0 | AP27: - | AQ27: 0 | AS27: X | AT27: =IF($F27=AO27,IF($H27=AQ27,5,IF($J27=AS27,3,0)),IF($J27=AS27,3,0)) -> 0 | AU27: 1 | AV27: - | AW27: 1 | AY27: X | AZ27: =IF($F27=AU27,IF($H27=AW27,5,IF($J27=AY27,3,0)),IF($J27=AY27,3,0)) -> 0 | BA27: 0 | BB27: - | BC27: 0 | BE27: X | BF27: =IF($F27=BA27,IF($H27=BC27,5,IF($J27=BE27,3,0)),IF($J27=BE27,3,0)) -> 0 | BG27: 1 | BH27: - | BI27: 2 | BK27: 2 | BL27: =IF($F27=BG27,IF($H27=BI27,5,IF($J27=BK27,3,0)),IF($J27=BK27,3,0)) -> 0 | BM27: 2 | BN27: - | BO27: 1 | BQ27: 1 | BR27: =IF($F27=BM27,IF($H27=BO27,5,IF($J27=BQ27,3,0)),IF($J27=BQ27,3,0)) -> 0 | BS27: 1 | BT27: - | BU27: 3 | BW27: 2 | BX27: =IF($F27=BS27,IF($H27=BU27,5,IF($J27=BW27,3,0)),IF($J27=BW27,3,0)) -> 0 | BY27: 3 | BZ27: - | CA27: 2 | CC27: 1 | CD27: =IF($F27=BY27,IF($H27=CA27,5,IF($J27=CC27,3,0)),IF($J27=CC27,3,0)) -> 0 | CE27: 2 | CF27: - | CG27: 0 | CI27: 1 | CJ27: =IF($F27=CE27,IF($H27=CG27,5,IF($J27=CI27,3,0)),IF($J27=CI27,3,0)) -> 0 | CK27: 1 | CL27: - | CM27: 1 | CO27: X | CP27: =IF($F27=CK27,IF($H27=CM27,5,IF($J27=CO27,3,0)),IF($J27=CO27,3,0)) -> 0 | CQ27: 2 | CR27: - | CS27: 0 | CU27: 1 | CV27: =IF($F27=CQ27,IF($H27=CS27,5,IF($J27=CU27,3,0)),IF($J27=CU27,3,0)) -> 0 | CW27: 1 | CX27: - | CY27: 1 | DA27: X | DB27: =IF($F27=CW27,IF($H27=CY27,5,IF($J27=DA27,3,0)),IF($J27=DA27,3,0)) -> 0 | DC27: 1 | DD27: - | DE27: 1 | DG27: X | DH27: =IF($F27=DC27,IF($H27=DE27,5,IF($J27=DG27,3,0)),IF($J27=DG27,3,0)) -> 0 | DI27: 1 | DJ27: - | DK27: 1 | DM27: X | DN27: 0 | DO27: 2 | DP27: - | DQ27: 1 | DS27: 1 | DT27: 0 | DU27: 1 | DV27: - | DW27: 1 | DY27: X | DZ27: =IF($F27=DU27,IF($H27=DW27,5,IF($J27=DY27,3,0)),IF($J27=DY27,3,0)) -> 0 | EA27: 1 | EB27: - | EC27: 1 | EE27: X | EF27: =IF($F27=EA27,IF($H27=EC27,5,IF($J27=EE27,3,0)),IF($J27=EE27,3,0)) -> 0 | EG27: 0 | EH27: - | EI27: 1 | EK27: 2 | EL27: =IF($F27=EG27,IF($H27=EI27,5,IF($J27=EK27,3,0)),IF($J27=EK27,3,0)) -> 0 | EM27: 2 | EN27: - | EO27: 2 | EQ27: X | ER27: =IF($F27=EM27,IF($H27=EO27,5,IF($J27=EQ27,3,0)),IF($J27=EQ27,3,0)) -> 0 | ES27: 1 | ET27: - | EU27: 0 | EW27: 1 | EX27: =IF($F27=ES27,IF($H27=EU27,5,IF($J27=EW27,3,0)),IF($J27=EW27,3,0)) -> 0 | EY27: 0 | EZ27: - | FA27: 2 | FC27: 2 | FD27: =IF($F27=EY27,IF($H27=FA27,5,IF($J27=FC27,3,0)),IF($J27=FC27,3,0)) -> 0 | FE27: 1 | FF27: - | FG27: 1 | FI27: X | FJ27: =IF($F27=FE27,IF($H27=FG27,5,IF($J27=FI27,3,0)),IF($J27=FI27,3,0)) -> 0 | FK27: 2 | FL27: - | FM27: 0 | FO27: 1 | FP27: =IF($F27=FK27,IF($H27=FM27,5,IF($J27=FO27,3,0)),IF($J27=FO27,3,0)) -> 0 | FQ27: 0 | FR27: - | FS27: 1 | FU27: 2 | FV27: =IF($F27=FQ27,IF($H27=FS27,5,IF($J27=FU27,3,0)),IF($J27=FU27,3,0)) -> 0 | FW27: 0 | FX27: - | FY27: 1 | GA27: 2 | GB27: =IF($F27=FW27,IF($H27=FY27,5,IF($J27=GA27,3,0)),IF($J27=GA27,3,0)) -> 0 | GC27: 1 | GD27: - | GE27: 1 | GG27: X | GH27: =IF($F27=GC27,IF($H27=GE27,5,IF($J27=GG27,3,0)),IF($J27=GG27,3,0)) -> 0 | GI27: 0 | GJ27: - | GK27: 0 | GM27: X | GN27: =IF($F27=GI27,IF($H27=GK27,5,IF($J27=GM27,3,0)),IF($J27=GM27,3,0)) -> 0 | GO27: 1 | GP27: - | GQ27: 2 | GS27: 2 | GT27: =IF($F27=GO27,IF($H27=GQ27,5,IF($J27=GS27,3,0)),IF($J27=GS27,3,0)) -> 0 | GU27: 1 | GV27: - | GW27: 1 | GY27: X | GZ27: =IF($F27=GU27,IF($H27=GW27,5,IF($J27=GY27,3,0)),IF($J27=GY27,3,0)) -> 0 | HA27: 2 | HB27: - | HC27: 0 | HE27: 1 | HF27: =IF($F27=HA27,IF($H27=HC27,5,IF($J27=HE27,3,0)),IF($J27=HE27,3,0)) -> 0 | HG27: 1 | HH27: - | HI27: 1 | HK27: X | HL27: =IF($F27=HG27,IF($H27=HI27,5,IF($J27=HK27,3,0)),IF($J27=HK27,3,0)) -> 0 | HM27: 1 | HN27: - | HO27: 2 | HQ27: 2 | HR27: =IF($F27=HM27,IF($H27=HO27,5,IF($J27=HQ27,3,0)),IF($J27=HQ27,3,0)) -> 0 | HS27: 2 | HT27: - | HU27: 0 | HW27: 1 | HX27: 0 | HY27: 1 | HZ27: - | IA27: 1 | IC27: X | ID27: 0 | IE27: 0 | IF27: - | IG27: 1 | II27: 2 | IJ27: 0 | IK27: 2 | IL27: - | IM27: 2 | IO27: X | IP27: 0 | IQ27: 1 | IR27: - | IS27: 2 | IU27: 2 | IV27: 0 | IW27: 1 | IX27: - | IY27: 1 | JA27: X | JB27: 0 | JC27: 1 | JD27: - | JE27: 1 | JG27: X | JH27: 0 | JI27: 1 | JJ27: - | JK27: 1 | JM27: X | JN27: 0 | JO27: 0 | JP27: - | JQ27: 0 | JS27: X | JT27: 0 | JU27: 0 | JV27: - | JW27: 1 | JY27: 2 | JZ27: 0 | KA27: 1 | KB27: - | KC27: 3 | KE27: 2 | KF27: 0 | KG27: 1 | KH27: - | KI27: 3 | KK27: 2 | KL27: 0 | KM27: 2 | KN27: - | KO27: 3 | KQ27: 2 | KR27: 0 | KS27: 1 | KT27: - | KU27: 1 | KW27: X | KX27: 0 | KY27: 1 | KZ27: - | LA27: 1 | LC27: X | LD27: 0 | LE27: 0 | LF27: - | LG27: 0 | LI27: X | LJ27: 0 | LK27: 2 | LL27: - | LM27: 1 | LO27: 1 | LP27: 0 | LQ27: 0 | LR27: - | LS27: 0 | LU27: X | LV27: 0 | LW27: 1 | LX27: - | LY27: 1 | MA27: X | MB27: 0 | MC27: 0 | MD27: - | ME27: 1 | MG27: 2 | MH27: 0
A28: 2018-06-23 | B28: Kl 14.00 | C28: Belgien | D28: - | E28: Tunisien | G28: - | J28: 0 | K28: 2 | L28: - | M28: 0 | O28: 1 | P28: 0 | Q28: 2 | R28: - | S28: 0 | U28: 1 | V28: 0 | W28: 2 | X28: - | Y28: 0 | AA28: 1 | AB28: 0 | AC28: 2 | AD28: - | AE28: 2 | AG28: X | AH28: 0 | AI28: 3 | AJ28: - | AK28: 0 | AM28: 1 | AN28: 0 | AO28: 1 | AP28: - | AQ28: 0 | AS28: 1 | AT28: 0 | AU28: 2 | AV28: - | AW28: 0 | AY28: 1 | AZ28: 0 | BA28: 1 | BB28: - | BC28: 0 | BE28: 1 | BF28: 0 | BG28: 1 | BH28: - | BI28: 0 | BK28: 1 | BL28: 0 | BM28: 2 | BN28: - | BO28: 2 | BQ28: X | BR28: 0 | BS28: 2 | BT28: - | BU28: 0 | BW28: 1 | BX28: 0 | BY28: 2 | BZ28: - | CA28: 0 | CC28: 1 | CD28: 0 | CE28: 3 | CF28: - | CG28: 1 | CI28: 1 | CJ28: 0 | CK28: 0 | CL28: - | CM28: 0 | CO28: X | CP28: 0 | CQ28: 3 | CR28: - | CS28: 1 | CU28: 1 | CV28: 0 | CW28: 0 | CX28: - | CY28: 0 | DA28: X | DB28: 0 | DC28: 1 | DD28: - | DE28: 1 | DG28: X | DH28: 0 | DI28: 2 | DJ28: - | DK28: 1 | DM28: 1 | DN28: 0 | DO28: 3 | DP28: - | DQ28: 1 | DS28: 1 | DT28: 0 | DU28: 1 | DV28: - | DW28: 0 | DY28: 1 | DZ28: 0 | EA28: 2 | EB28: - | EC28: 0 | EE28: 1 | EF28: 0 | EG28: 0 | EH28: - | EI28: 1 | EK28: 2 | EL28: 0 | EM28: 2 | EN28: - | EO28: 1 | EQ28: 1 | ER28: 0 | ES28: 3 | ET28: - | EU28: 0 | EW28: 1 | EX28: 0 | EY28: 3 | EZ28: - | FA28: 1 | FC28: 1 | FD28: 0 | FE28: 3 | FF28: - | FG28: 1 | FI28: 1 | FJ28: 0 | FK28: 5 | FL28: - | FM28: 0 | FO28: 1 | FP28: 0 | FQ28: 2 | FR28: - | FS28: 0 | FU28: 1 | FV28: 0 | FW28: 1 | FX28: - | FY28: 0 | GA28: 1 | GB28: 0 | GC28: 2 | GD28: - | GE28: 0 | GG28: 1 | GH28: 0 | GI28: 4 | GJ28: - | GK28: 1 | GM28: 1 | GN28: 0 | GO28: 2 | GP28: - | GQ28: 0 | GS28: 1 | GT28: 0 | GU28: 2 | GV28: - | GW28: 1 | GY28: 1 | GZ28: 0 | HA28: 3 | HB28: - | HC28: 1 | HE28: 1 | HF28: 0 | HG28: 3 | HH28: - | HI28: 0 | HK28: 1 | HL28: 0 | HM28: 2 | HN28: - | HO28: 0 | HQ28: 1 | HR28: 0 | HS28: 0 | HT28: - | HU28: 0 | HW28: X | HX28: 0 | HY28: 1 | HZ28: - | IA28: 1 | IC28: X | ID28: 0 | IE28: 0 | IF28: - | IG28: 2 | II28: 2 | IJ28: 0 | IK28: 3 | IL28: - | IM28: 1 | IO28: 1 | IP28: 0 | IQ28: 2 | IR28: - | IS28: 0 | IU28: 1 | IV28: 0 | IW28: 2 | IX28: - | IY28: 0 | JA28: 1 | JB28: 0 | JC28: 2 | JD28: - | JE28: 0 | JG28: 1 | JH28: 0 | JI28: 2 | JJ28: - | JK28: 1 | JM28: 1 | JN28: 0 | JO28: 0 | JP28: - | JQ28: 2 | JS28: 2 | JT28: 0 | JU28: 0 | JV28: - | JW28: 1 | JY28: 2 | JZ28: 0 | KA28: 1 | KB28: - | KC28: 1 | KE28: X | KF28: 0 | KG28: 3 | KH28: - | KI28: 1 | KK28: 1 | KL28: 0 | KM28: 1 | KN28: - | KO28: 4 | KQ28: 2 | KR28: 0 | KS28: 2 | KT28: - | KU28: 0 | KW28: 1 | KX28: 0 | KY28: 2 | KZ28: - | LA28: 1 | LC28: 1 | LD28: 0 | LE28: 3 | LF28: - | LG28: 0 | LI28: 1 | LJ28: 0 | LK28: 2 | LL28: - | LM28: 0 | LO28: 1 | LP28: 0 | LQ28: 1 | LR28: - | LS28: 1 | LU28: X | LV28: 0 | LW28: 2 | LX28: - | LY28: 1 | MA28: 1 | MB28: 0 | MC28: 0 | MD28: - | ME28: 0 | MG28: X | MH28: 0
A29: 2018-06-23 | B29: Kl 17.00 | C29: Sydkorea | D29: - | E29: Mexiko | G29: - | J29: 0 | K29: 2 | L29: - | M29: 2 | O29: X | P29: 0 | Q29: 0 | R29: - | S29: 1 | U29: 2 | V29: 0 | W29: 0 | X29: - | Y29: 1 | AA29: 2 | AB29: 0 | AC29: 2 | AD29: - | AE29: 1 | AG29: 1 | AH29: 0 | AI29: 3 | AJ29: - | AK29: 0 | AM29: 1 | AN29: 0 | AO29: 0 | AP29: - | AQ29: 2 | AS29: 2 | AT29: 0 | AU29: 0 | AV29: - | AW29: 3 | AY29: 2 | AZ29: 0 | BA29: 0 | BB29: - | BC29: 2 | BE29: 2 | BF29: 0 | BG29: 1 | BH29: - | BI29: 3 | BK29: 2 | BL29: 0 | BM29: 2 | BN29: - | BO29: 1 | BQ29: 1 | BR29: 0 | BS29: 0 | BT29: - | BU29: 3 | BW29: 2 | BX29: 0 | BY29: 2 | BZ29: - | CA29: 2 | CC29: X | CD29: 0 | CE29: 1 | CF29: - | CG29: 3 | CI29: 2 | CJ29: 0 | CK29: 1 | CL29: - | CM29: 1 | CO29: X | CP29: 0 | CQ29: 0 | CR29: - | CS29: 2 | CU29: 2 | CV29: 0 | CW29: 0 | CX29: - | CY29: 2 | DA29: 2 | DB29: 0 | DC29: 1 | DD29: - | DE29: 2 | DG29: 2 | DH29: 0 | DI29: 1 | DJ29: - | DK29: 1 | DM29: X | DN29: 0 | DO29: 2 | DP29: - | DQ29: 2 | DS29: X | DT29: 0 | DU29: 0 | DV29: - | DW29: 1 | DY29: 2 | DZ29: 0 | EA29: 0 | EB29: - | EC29: 2 | EE29: 2 | EF29: 0 | EG29: 2 | EH29: - | EI29: 1 | EK29: 1 | EL29: 0 | EM29: 1 | EN29: - | EO29: 2 | EQ29: 2 | ER29: 0 | ES29: 1 | ET29: - | EU29: 2 | EW29: 2 | EX29: 0 | EY29: 0 | EZ29: - | FA29: 0 | FC29: X | FD29: 0 | FE29: 1 | FF29: - | FG29: 3 | FI29: 2 | FJ29: 0 | FK29: 1 | FL29: - | FM29: 3 | FO29: 2 | FP29: 0 | FQ29: 1 | FR29: - | FS29: 1 | FU29: X | FV29: 0 | FW29: 0 | FX29: - | FY29: 1 | GA29: 2 | GB29: 0 | GC29: 0 | GD29: - | GE29: 2 | GG29: 2 | GH29: 0 | GI29: 1 | GJ29: - | GK29: 3 | GM29: 2 | GN29: 0 | GO29: 0 | GP29: - | GQ29: 1 | GS29: 2 | GT29: 0 | GU29: 1 | GV29: - | GW29: 2 | GY29: 2 | GZ29: 0 | HA29: 0 | HB29: - | HC29: 2 | HE29: 2 | HF29: 0 | HG29: 4 | HH29: - | HI29: 2 | HK29: 1 | HL29: 0 | HM29: 0 | HN29: - | HO29: 1 | HQ29: 2 | HR29: 0 | HS29: 2 | HT29: - | HU29: 1 | HW29: 1 | HX29: 0 | HY29: 1 | HZ29: - | IA29: 1 | IC29: X | ID29: 0 | IE29: 0 | IF29: - | IG29: 0 | II29: X | IJ29: 0 | IK29: 1 | IL29: - | IM29: 2 | IO29: 2 | IP29: 0 | IQ29: 1 | IR29: - | IS29: 1 | IU29: X | IV29: 0 | IW29: 1 | IX29: - | IY29: 1 | JA29: X | JB29: 0 | JC29: 0 | JD29: - | JE29: 1 | JG29: 2 | JH29: 0 | JI29: 1 | JJ29: - | JK29: 1 | JM29: X | JN29: 0 | JO29: 1 | JP29: - | JQ29: 2 | JS29: 2 | JT29: 0 | JU29: 2 | JV29: - | JW29: 1 | JY29: 1 | JZ29: 0 | KA29: 1 | KB29: - | KC29: 1 | KE29: X | KF29: 0 | KG29: 2 | KH29: - | KI29: 3 | KK29: 2 | KL29: 0 | KM29: 3 | KN29: - | KO29: 3 | KQ29: X | KR29: 0 | KS29: 1 | KT29: - | KU29: 2 | KW29: 2 | KX29: 0 | KY29: 1 | KZ29: - | LA29: 1 | LC29: X | LD29: 0 | LE29: 0 | LF29: - | LG29: 2 | LI29: 2 | LJ29: 0 | LK29: 0 | LL29: - | LM29: 1 | LO29: 2 | LP29: 0 | LQ29: 1 | LR29: - | LS29: 3 | LU29: 2 | LV29: 0 | LW29: 1 | LX29: - | LY29: 2 | MA29: 2 | MB29: 0 | MC29: 2 | MD29: - | ME29: 1 | MG29: 1 | MH29: 0
A30: 2018-06-23 | B30: Kl 20.00 | C30: Tyskland | D30: - | E30: Sverige | G30: - | J30: 0 | K30: 1 | L30: - | M30: 2 | O30: 2 | P30: 0 | Q30: 1 | R30: - | S30: 0 | U30: 1 | V30: 0 | W30: 2 | X30: - | Y30: 0 | AA30: 1 | AB30: 0 | AC30: 2 | AD30: - | AE30: 2 | AG30: X | AH30: 0 | AI30: 1 | AJ30: - | AK30: 0 | AM30: 1 | AN30: 0 | AO30: 2 | AP30: - | AQ30: 1 | AS30: 1 | AT30: 0 | AU30: 2 | AV30: - | AW30: 0 | AY30: 1 | AZ30: 0 | BA30: 4 | BB30: - | BC30: 0 | BE30: 1 | BF30: 0 | BG30: 2 | BH30: - | BI30: 1 | BK30: 1 | BL30: 0 | BM30: 3 | BN30: - | BO30: 2 | BQ30: 1 | BR30: 0 | BS30: 3 | BT30: - | BU30: 0 | BW30: 1 | BX30: 0 | BY30: 2 | BZ30: - | CA30: 1 | CC30: 1 | CD30: 0 | CE30: 2 | CF30: - | CG30: 3 | CI30: 2 | CJ30: 0 | CK30: 1 | CL30: - | CM30: 1 | CO30: X | CP30: 0 | CQ30: 2 | CR30: - | CS30: 3 | CU30: 2 | CV30: 0 | CW30: 1 | CX30: - | CY30: 1 | DA30: X | DB30: 0 | DC30: 3 | DD30: - | DE30: 1 | DG30: 1 | DH30: 0 | DI30: 2 | DJ30: - | DK30: 1 | DM30: 1 | DN30: 0 | DO30: 2 | DP30: - | DQ30: 1 | DS30: 1 | DT30: 0 | DU30: 3 | DV30: - | DW30: 0 | DY30: 1 | DZ30: 0 | EA30: 1 | EB30: - | EC30: 1 | EE30: X | EF30: 0 | EG30: 2 | EH30: - | EI30: 2 | EK30: X | EL30: 0 | EM30: 3 | EN30: - | EO30: 1 | EQ30: 1 | ER30: 0 | ES30: 3 | ET30: - | EU30: 1 | EW30: 1 | EX30: 0 | EY30: 1 | EZ30: - | FA30: 1 | FC30: X | FD30: 0 | FE30: 3 | FF30: - | FG30: 1 | FI30: 1 | FJ30: 0 | FK30: 4 | FL30: - | FM30: 0 | FO30: 1 | FP30: 0 | FQ30: 1 | FR30: - | FS30: 2 | FU30: 2 | FV30: 0 | FW30: 2 | FX30: - | FY30: 0 | GA30: 1 | GB30: 0 | GC30: 3 | GD30: - | GE30: 1 | GG30: 1 | GH30: 0 | GI30: 5 | GJ30: - | GK30: 1 | GM30: 1 | GN30: 0 | GO30: 2 | GP30: - | GQ30: 1 | GS30: 1 | GT30: 0 | GU30: 2 | GV30: - | GW30: 0 | GY30: 1 | GZ30: 0 | HA30: 4 | HB30: - | HC30: 3 | HE30: 1 | HF30: 0 | HG30: 4 | HH30: - | HI30: 3 | HK30: 1 | HL30: 0 | HM30: 2 | HN30: - | HO30: 0 | HQ30: 1 | HR30: 0 | HS30: 1 | HT30: - | HU30: 1 | HW30: X | HX30: 0 | HY30: 0 | HZ30: - | IA30: 1 | IC30: 2 | ID30: 0 | IE30: 1 | IF30: - | IG30: 0 | II30: 1 | IJ30: 0 | IK30: 1 | IL30: - | IM30: 0 | IO30: 1 | IP30: 0 | IQ30: 2 | IR30: - | IS30: 1 | IU30: 1 | IV30: 0 | IW30: 2 | IX30: - | IY30: 0 | JA30: 1 | JB30: 0 | JC30: 1 | JD30: - | JE30: 1 | JG30: X | JH30: 0 | JI30: 2 | JJ30: - | JK30: 1 | JM30: 1 | JN30: 0 | JO30: 2 | JP30: - | JQ30: 3 | JS30: 2 | JT30: 0 | JU30: 2 | JV30: - | JW30: 2 | JY30: X | JZ30: 0 | KA30: 3 | KB30: - | KC30: 2 | KE30: 1 | KF30: 0 | KG30: 1 | KH30: - | KI30: 1 | KK30: X | KL30: 0 | KM30: 3 | KN30: - | KO30: 3 | KQ30: X | KR30: 0 | KS30: 2 | KT30: - | KU30: 1 | KW30: 1 | KX30: 0 | KY30: 0 | KZ30: - | LA30: 0 | LC30: X | LD30: 0 | LE30: 3 | LF30: - | LG30: 1 | LI30: 1 | LJ30: 0 | LK30: 2 | LL30: - | LM30: 0 | LO30: 1 | LP30: 0 | LQ30: 2 | LR30: - | LS30: 0 | LU30: 1 | LV30: 0 | LW30: 0 | LX30: - | LY30: 1 | MA30: 2 | MB30: 0 | MC30: 1 | MD30: - | ME30: 2 | MG30: 2 | MH30: 0
A31: 2018-06-24 | B31: Kl 14.00 | C31: England | D31: - | E31: Panama | G31: - | J31: 0 | K31: 2 | L31: - | M31: 0 | O31: 1 | P31: 0 | Q31: 0 | R31: - | S31: 2 | U31: 2 | V31: 0 | W31: 1 | X31: - | Y31: 0 | AA31: 1 | AB31: 0 | AC31: 3 | AD31: - | AE31: 1 | AG31: 1 | AH31: 0 | AI31: 0 | AJ31: - | AK31: 2 | AM31: 2 | AN31: 0 | AO31: 2 | AP31: - | AQ31: 0 | AS31: 1 | AT31: 0 | AU31: 3 | AV31: - | AW31: 0 | AY31: 1 | AZ31: 0 | BA31: 3 | BB31: - | BC31: 0 | BE31: 1 | BF31: 0 | BG31: 3 | BH31: - | BI31: 0 | BK31: 1 | BL31: 0 | BM31: 2 | BN31: - | BO31: 0 | BQ31: 1 | BR31: 0 | BS31: 1 | BT31: - | BU31: 1 | BW31: X | BX31: 0 | BY31: 3 | BZ31: - | CA31: 0 | CC31: 1 | CD31: 0 | CE31: 3 | CF31: - | CG31: 1 | CI31: 1 | CJ31: 0 | CK31: 2 | CL31: - | CM31: 0 | CO31: 1 | CP31: 0 | CQ31: 4 | CR31: - | CS31: 1 | CU31: 1 | CV31: 0 | CW31: 2 | CX31: - | CY31: 0 | DA31: 1 | DB31: 0 | DC31: 1 | DD31: - | DE31: 0 | DG31: 1 | DH31: 0 | DI31: 2 | DJ31: - | DK31: 0 | DM31: 1 | DN31: 0 | DO31: 3 | DP31: - | DQ31: 1 | DS31: 1 | DT31: 0 | DU31: 1 | DV31: - | DW31: 0 | DY31: 1 | DZ31: 0 | EA31: 2 | EB31: - | EC31: 1 | EE31: 1 | EF31: 0 | EG31: 1 | EH31: - | EI31: 0 | EK31: 1 | EL31: 0 | EM31: 4 | EN31: - | EO31: 2 | EQ31: 1 | ER31: 0 | ES31: 3 | ET31: - | EU31: 0 | EW31: 1 | EX31: 0 | EY31: 1 | EZ31: - | FA31: 0 | FC31: 1 | FD31: 0 | FE31: 3 | FF31: - | FG31: 0 | FI31: 1 | FJ31: 0 | FK31: 6 | FL31: - | FM31: 0 | FO31: 1 | FP31: 0 | FQ31: 1 | FR31: - | FS31: 0 | FU31: 1 | FV31: 0 | FW31: 1 | FX31: - | FY31: 1 | GA31: X | GB31: 0 | GC31: 3 | GD31: - | GE31: 0 | GG31: 1 | GH31: 0 | GI31: 3 | GJ31: - | GK31: 1 | GM31: 1 | GN31: 0 | GO31: 2 | GP31: - | GQ31: 0 | GS31: 1 | GT31: 0 | GU31: 1 | GV31: - | GW31: 0 | GY31: 1 | GZ31: 0 | HA31: 3 | HB31: - | HC31: 1 | HE31: 1 | HF31: 0 | HG31: 3 | HH31: - | HI31: 1 | HK31: 1 | HL31: 0 | HM31: 3 | HN31: - | HO31: 0 | HQ31: 1 | HR31: 0 | HS31: 2 | HT31: - | HU31: 0 | HW31: 1 | HX31: 0 | HY31: 1 | HZ31: - | IA31: 1 | IC31: X | ID31: 0 | IE31: 1 | IF31: - | IG31: 0 | II31: 1 | IJ31: 0 | IK31: 2 | IL31: - | IM31: 0 | IO31: 1 | IP31: 0 | IQ31: 3 | IR31: - | IS31: 1 | IU31: 1 | IV31: 0 | IW31: 2 | IX31: - | IY31: 0 | JA31: 1 | JB31: 0 | JC31: 2 | JD31: - | JE31: 0 | JG31: 1 | JH31: 0 | JI31: 2 | JJ31: - | JK31: 0 | JM31: 1 | JN31: 0 | JO31: 3 | JP31: - | JQ31: 1 | JS31: 1 | JT31: 0 | JU31: 1 | JV31: - | JW31: 0 | JY31: 1 | JZ31: 0 | KA31: 4 | KB31: - | KC31: 1 | KE31: 1 | KF31: 0 | KG31: 4 | KH31: - | KI31: 4 | KK31: X | KL31: 0 | KM31: 1 | KN31: - | KO31: 5 | KQ31: 2 | KR31: 0 | KS31: 3 | KT31: - | KU31: 0 | KW31: 1 | KX31: 0 | KY31: 2 | KZ31: - | LA31: 0 | LC31: 1 | LD31: 0 | LE31: 1 | LF31: - | LG31: 0 | LI31: 1 | LJ31: 0 | LK31: 2 | LL31: - | LM31: 0 | LO31: 1 | LP31: 0 | LQ31: 3 | LR31: - | LS31: 1 | LU31: 1 | LV31: 0 | LW31: 3 | LX31: - | LY31: 1 | MA31: 1 | MB31: 0 | MC31: 3 | MD31: - | ME31: 1 | MG31: 1 | MH31: 0
A32: 2018-06-24 | B32: Kl 17.00 | C32: Japan | D32: - | E32: Senegal | G32: - | J32: 0 | K32: 0 | L32: - | M32: 1 | O32: 2 | P32: 0 | Q32: 2 | R32: - | S32: 2 | U32: X | V32: 0 | W32: 0 | X32: - | Y32: 0 | AA32: X | AB32: 0 | AC32: 1 | AD32: - | AE32: 1 | AG32: X | AH32: 0 | AI32: 1 | AJ32: - | AK32: 0 | AM32: 1 | AN32: 0 | AO32: 1 | AP32: - | AQ32: 0 | AS32: 1 | AT32: 0 | AU32: 1 | AV32: - | AW32: 1 | AY32: X | AZ32: 0 | BA32: 2 | BB32: - | BC32: 2 | BE32: X | BF32: 0 | BG32: 2 | BH32: - | BI32: 2 | BK32: X | BL32: 0 | BM32: 0 | BN32: - | BO32: 0 | BQ32: X | BR32: 0 | BS32: 1 | BT32: - | BU32: 2 | BW32: 2 | BX32: 0 | BY32: 1 | BZ32: - | CA32: 2 | CC32: 2 | CD32: 0 | CE32: 2 | CF32: - | CG32: 1 | CI32: 1 | CJ32: 0 | CK32: 1 | CL32: - | CM32: 0 | CO32: 1 | CP32: 0 | CQ32: 1 | CR32: - | CS32: 1 | CU32: X | CV32: 0 | CW32: 0 | CX32: - | CY32: 1 | DA32: 2 | DB32: 0 | DC32: 0 | DD32: - | DE32: 2 | DG32: 2 | DH32: 0 | DI32: 2 | DJ32: - | DK32: 1 | DM32: 1 | DN32: 0 | DO32: 2 | DP32: - | DQ32: 2 | DS32: X | DT32: 0 | DU32: 0 | DV32: - | DW32: 0 | DY32: X | DZ32: 0 | EA32: 1 | EB32: - | EC32: 1 | EE32: X | EF32: 0 | EG32: 1 | EH32: - | EI32: 2 | EK32: 2 | EL32: 0 | EM32: 1 | EN32: - | EO32: 0 | EQ32: 1 | ER32: 0 | ES32: 1 | ET32: - | EU32: 1 | EW32: X | EX32: 0 | EY32: 2 | EZ32: - | FA32: 2 | FC32: X | FD32: 0 | FE32: 1 | FF32: - | FG32: 2 | FI32: 2 | FJ32: 0 | FK32: 1 | FL32: - | FM32: 1 | FO32: X | FP32: 0 | FQ32: 2 | FR32: - | FS32: 1 | FU32: 1 | FV32: 0 | FW32: 1 | FX32: - | FY32: 2 | GA32: 2 | GB32: 0 | GC32: 0 | GD32: - | GE32: 0 | GG32: X | GH32: 0 | GI32: 1 | GJ32: - | GK32: 1 | GM32: X | GN32: 0 | GO32: 1 | GP32: - | GQ32: 3 | GS32: 2 | GT32: 0 | GU32: 1 | GV32: - | GW32: 1 | GY32: X | GZ32: 0 | HA32: 2 | HB32: - | HC32: 2 | HE32: X | HF32: 0 | HG32: 2 | HH32: - | HI32: 2 | HK32: X | HL32: 0 | HM32: 2 | HN32: - | HO32: 0 | HQ32: 1 | HR32: 0 | HS32: 1 | HT32: - | HU32: 1 | HW32: X | HX32: 0 | HY32: 0 | HZ32: - | IA32: 2 | IC32: 2 | ID32: 0 | IE32: 2 | IF32: - | IG32: 1 | II32: 1 | IJ32: 0 | IK32: 1 | IL32: - | IM32: 1 | IO32: X | IP32: 0 | IQ32: 1 | IR32: - | IS32: 1 | IU32: X | IV32: 0 | IW32: 1 | IX32: - | IY32: 1 | JA32: X | JB32: 0 | JC32: 0 | JD32: - | JE32: 0 | JG32: X | JH32: 0 | JI32: 1 | JJ32: - | JK32: 1 | JM32: X | JN32: 0 | JO32: 0 | JP32: - | JQ32: 1 | JS32: 2 | JT32: 0 | JU32: 1 | JV32: - | JW32: 2 | JY32: 2 | JZ32: 0 | KA32: 4 | KB32: - | KC32: 0 | KE32: 1 | KF32: 0 | KG32: 1 | KH32: - | KI32: 2 | KK32: 2 | KL32: 0 | KM32: 2 | KN32: - | KO32: 1 | KQ32: 1 | KR32: 0 | KS32: 1 | KT32: - | KU32: 2 | KW32: 2 | KX32: 0 | KY32: 1 | KZ32: - | LA32: 0 | LC32: 1 | LD32: 0 | LE32: 0 | LF32: - | LG32: 2 | LI32: 2 | LJ32: 0 | LK32: 1 | LL32: - | LM32: 0 | LO32: 1 | LP32: 0 | LQ32: 1 | LR32: - | LS32: 0 | LU32: 1 | LV32: 0 | LW32: 1 | LX32: - | LY32: 2 | MA32: 2 | MB32: 0 | MC32: 2 | MD32: - | ME32: 2 | MG32: X | MH32: 0
A33: 2018-06-24 | B33: Kl 20.00 | C33: Polen | D33: - | E33: Colombia | G33: - | J33: 0 | K33: 0 | L33: - | M33: 1 | O33: 2 | P33: 0 | Q33: 2 | R33: - | S33: 1 | U33: 1 | V33: 0 | W33: 0 | X33: - | Y33: 1 | AA33: 2 | AB33: 0 | AC33: 1 | AD33: - | AE33: 2 | AG33: 2 | AH33: 0 | AI33: 2 | AJ33: - | AK33: 1 | AM33: 1 | AN33: 0 | AO33: 2 | AP33: - | AQ33: 0 | AS33: 1 | AT33: 0 | AU33: 1 | AV33: - | AW33: 2 | AY33: 2 | AZ33: 0 | BA33: 0 | BB33: - | BC33: 3 | BE33: 2 | BF33: 0 | BG33: 0 | BH33: - | BI33: 0 | BK33: X | BL33: 0 | BM33: 2 | BN33: - | BO33: 2 | BQ33: X | BR33: 0 | BS33: 1 | BT33: - | BU33: 2 | BW33: 2 | BX33: 0 | BY33: 2 | BZ33: - | CA33: 1 | CC33: 1 | CD33: 0 | CE33: 1 | CF33: - | CG33: 1 | CI33: X | CJ33: 0 | CK33: 1 | CL33: - | CM33: 1 | CO33: X | CP33: 0 | CQ33: 2 | CR33: - | CS33: 2 | CU33: X | CV33: 0 | CW33: 1 | CX33: - | CY33: 1 | DA33: X | DB33: 0 | DC33: 1 | DD33: - | DE33: 1 | DG33: X | DH33: 0 | DI33: 2 | DJ33: - | DK33: 1 | DM33: 1 | DN33: 0 | DO33: 2 | DP33: - | DQ33: 1 | DS33: 1 | DT33: 0 | DU33: 0 | DV33: - | DW33: 1 | DY33: 2 | DZ33: 0 | EA33: 0 | EB33: - | EC33: 1 | EE33: 2 | EF33: 0 | EG33: 1 | EH33: - | EI33: 2 | EK33: 2 | EL33: 0 | EM33: 0 | EN33: - | EO33: 0 | EQ33: X | ER33: 0 | ES33: 1 | ET33: - | EU33: 2 | EW33: 2 | EX33: 0 | EY33: 0 | EZ33: - | FA33: 1 | FC33: 2 | FD33: 0 | FE33: 1 | FF33: - | FG33: 0 | FI33: 1 | FJ33: 0 | FK33: 3 | FL33: - | FM33: 2 | FO33: 1 | FP33: 0 | FQ33: 1 | FR33: - | FS33: 1 | FU33: X | FV33: 0 | FW33: 1 | FX33: - | FY33: 1 | GA33: X | GB33: 0 | GC33: 1 | GD33: - | GE33: 0 | GG33: 1 | GH33: 0 | GI33: 1 | GJ33: - | GK33: 0 | GM33: 1 | GN33: 0 | GO33: 1 | GP33: - | GQ33: 1 | GS33: X | GT33: 0 | GU33: 1 | GV33: - | GW33: 1 | GY33: X | GZ33: 0 | HA33: 1 | HB33: - | HC33: 1 | HE33: X | HF33: 0 | HG33: 3 | HH33: - | HI33: 2 | HK33: 1 | HL33: 0 | HM33: 2 | HN33: - | HO33: 0 | HQ33: 1 | HR33: 0 | HS33: 1 | HT33: - | HU33: 1 | HW33: X | HX33: 0 | HY33: 0 | HZ33: - | IA33: 1 | IC33: 2 | ID33: 0 | IE33: 2 | IF33: - | IG33: 1 | II33: 1 | IJ33: 0 | IK33: 0 | IL33: - | IM33: 0 | IO33: X | IP33: 0 | IQ33: 1 | IR33: - | IS33: 2 | IU33: 2 | IV33: 0 | IW33: 1 | IX33: - | IY33: 1 | JA33: X | JB33: 0 | JC33: 0 | JD33: - | JE33: 0 | JG33: X | JH33: 0 | JI33: 1 | JJ33: - | JK33: 1 | JM33: X | JN33: 0 | JO33: 2 | JP33: - | JQ33: 2 | JS33: X | JT33: 0 | JU33: 1 | JV33: - | JW33: 2 | JY33: 2 | JZ33: 0 | KA33: 3 | KB33: - | KC33: 0 | KE33: 1 | KF33: 0 | KG33: 3 | KH33: - | KI33: 3 | KK33: X | KL33: 0 | KM33: 1 | KN33: - | KO33: 2 | KQ33: 2 | KR33: 0 | KS33: 2 | KT33: - | KU33: 1 | KW33: 1 | KX33: 0 | KY33: 2 | KZ33: - | LA33: 2 | LC33: X | LD33: 0 | LE33: 0 | LF33: - | LG33: 1 | LI33: 2 | LJ33: 0 | LK33: 1 | LL33: - | LM33: 2 | LO33: 2 | LP33: 0 | LQ33: 2 | LR33: - | LS33: 1 | LU33: 1 | LV33: 0 | LW33: 1 | LX33: - | LY33: 1 | MA33: X | MB33: 0 | MC33: 1 | MD33: - | ME33: 2 | MG33: 2 | MH33: 0
A34: 2018-06-25 | B34: Kl 16.00 | C34: Saudiarbien | D34: - | E34: Egypten | G34: - | J34: 0 | K34: 1 | L34: - | M34: 2 | O34: 2 | P34: 0 | Q34: 1 | R34: - | S34: 0 | U34: 1 | V34: 0 | W34: 1 | X34: - | Y34: 2 | AA34: 2 | AB34: 0 | AC34: 0 | AD34: - | AE34: 0 | AG34: X | AH34: 0 | AI34: 2 | AJ34: - | AK34: 1 | AM34: 1 | AN34: 0 | AO34: 1 | AP34: - | AQ34: 1 | AS34: X | AT34: 0 | AU34: 0 | AV34: - | AW34: 4 | AY34: 2 | AZ34: 0 | BA34: 1 | BB34: - | BC34: 2 | BE34: 2 | BF34: 0 | BG34: 1 | BH34: - | BI34: 3 | BK34: 2 | BL34: 0 | BM34: 2 | BN34: - | BO34: 1 | BQ34: 1 | BR34: 0 | BS34: 0 | BT34: - | BU34: 2 | BW34: 2 | BX34: 0 | BY34: 1 | BZ34: - | CA34: 3 | CC34: 2 | CD34: 0 | CE34: 2 | CF34: - | CG34: 2 | CI34: X | CJ34: 0 | CK34: 1 | CL34: - | CM34: 1 | CO34: X | CP34: 0 | CQ34: 3 | CR34: - | CS34: 1 | CU34: 1 | CV34: 0 | CW34: 0 | CX34: - | CY34: 1 | DA34: 2 | DB34: 0 | DC34: 1 | DD34: - | DE34: 1 | DG34: X | DH34: 0 | DI34: 1 | DJ34: - | DK34: 1 | DM34: X | DN34: 0 | DO34: 0 | DP34: - | DQ34: 1 | DS34: 2 | DT34: 0 | DU34: 1 | DV34: - | DW34: 2 | DY34: 2 | DZ34: 0 | EA34: 0 | EB34: - | EC34: 0 | EE34: X | EF34: 0 | EG34: 0 | EH34: - | EI34: 3 | EK34: 2 | EL34: 0 | EM34: 3 | EN34: - | EO34: 3 | EQ34: X | ER34: 0 | ES34: 0 | ET34: - | EU34: 1 | EW34: 2 | EX34: 0 | EY34: 2 | EZ34: - | FA34: 2 | FC34: X | FD34: 0 | FE34: 1 | FF34: - | FG34: 1 | FI34: X | FJ34: 0 | FK34: 1 | FL34: - | FM34: 3 | FO34: 2 | FP34: 0 | FQ34: 1 | FR34: - | FS34: 1 | FU34: X | FV34: 0 | FW34: 2 | FX34: - | FY34: 2 | GA34: X | GB34: 0 | GC34: 0 | GD34: - | GE34: 2 | GG34: 2 | GH34: 0 | GI34: 0 | GJ34: - | GK34: 1 | GM34: 2 | GN34: 0 | GO34: 1 | GP34: - | GQ34: 1 | GS34: X | GT34: 0 | GU34: 0 | GV34: - | GW34: 0 | GY34: X | GZ34: 0 | HA34: 2 | HB34: - | HC34: 2 | HE34: X | HF34: 0 | HG34: 1 | HH34: - | HI34: 1 | HK34: X | HL34: 0 | HM34: 1 | HN34: - | HO34: 1 | HQ34: X | HR34: 0 | HS34: 0 | HT34: - | HU34: 0 | HW34: X | HX34: 0 | HY34: 1 | HZ34: - | IA34: 3 | IC34: 2 | ID34: 0 | IE34: 3 | IF34: - | IG34: 1 | II34: 1 | IJ34: 0 | IK34: 0 | IL34: - | IM34: 0 | IO34: X | IP34: 0 | IQ34: 2 | IR34: - | IS34: 2 | IU34: X | IV34: 0 | IW34: 0 | IX34: - | IY34: 0 | JA34: X | JB34: 0 | JC34: 1 | JD34: - | JE34: 1 | JG34: X | JH34: 0 | JI34: 2 | JJ34: - | JK34: 1 | JM34: 1 | JN34: 0 | JO34: 3 | JP34: - | JQ34: 0 | JS34: 1 | JT34: 0 | JU34: 0 | JV34: - | JW34: 3 | JY34: 2 | JZ34: 0 | KA34: 0 | KB34: - | KC34: 3 | KE34: 2 | KF34: 0 | KG34: 2 | KH34: - | KI34: 2 | KK34: X | KL34: 0 | KM34: 0 | KN34: - | KO34: 3 | KQ34: 2 | KR34: 0 | KS34: 1 | KT34: - | KU34: 3 | KW34: 2 | KX34: 0 | KY34: 0 | KZ34: - | LA34: 0 | LC34: X | LD34: 0 | LE34: 1 | LF34: - | LG34: 1 | LI34: X | LJ34: 0 | LK34: 0 | LL34: - | LM34: 2 | LO34: 2 | LP34: 0 | LQ34: 1 | LR34: - | LS34: 1 | LU34: X | LV34: 0 | LW34: 0 | LX34: - | LY34: 0 | MA34: X | MB34: 0 | MC34: 2 | MD34: - | ME34: 3 | MG34: 2 | MH34: 0
A35: 2018-06-25 | B35: Kl 16.00 | C35: Uruguay | D35: - | E35: Ryssland | G35: - | J35: 0 | K35: 0 | L35: - | M35: 0 | O35: X | P35: 0 | Q35: 0 | R35: - | S35: 2 | U35: 2 | V35: 0 | W35: 0 | X35: - | Y35: 2 | AA35: 2 | AB35: 0 | AC35: 1 | AD35: - | AE35: 2 | AG35: 2 | AH35: 0 | AI35: 0 | AJ35: - | AK35: 2 | AM35: 2 | AN35: 0 | AO35: 0 | AP35: - | AQ35: 3 | AS35: 2 | AT35: 0 | AU35: 0 | AV35: - | AW35: 0 | AY35: X | AZ35: 0 | BA35: 1 | BB35: - | BC35: 1 | BE35: X | BF35: 0 | BG35: 0 | BH35: - | BI35: 1 | BK35: 2 | BL35: 0 | BM35: 3 | BN35: - | BO35: 2 | BQ35: 1 | BR35: 0 | BS35: 1 | BT35: - | BU35: 2 | BW35: 2 | BX35: 0 | BY35: 2 | BZ35: - | CA35: 3 | CC35: 2 | CD35: 0 | CE35: 1 | CF35: - | CG35: 2 | CI35: 2 | CJ35: 0 | CK35: 2 | CL35: - | CM35: 2 | CO35: X | CP35: 0 | CQ35: 2 | CR35: - | CS35: 3 | CU35: 2 | CV35: 0 | CW35: 2 | CX35: - | CY35: 1 | DA35: 1 | DB35: 0 | DC35: 1 | DD35: - | DE35: 1 | DG35: X | DH35: 0 | DI35: 0 | DJ35: - | DK35: 2 | DM35: 2 | DN35: 0 | DO35: 1 | DP35: - | DQ35: 2 | DS35: 2 | DT35: 0 | DU35: 2 | DV35: - | DW35: 1 | DY35: 1 | DZ35: 0 | EA35: 1 | EB35: - | EC35: 0 | EE35: 1 | EF35: 0 | EG35: 0 | EH35: - | EI35: 1 | EK35: 2 | EL35: 0 | EM35: 1 | EN35: - | EO35: 3 | EQ35: 2 | ER35: 0 | ES35: 3 | ET35: - | EU35: 2 | EW35: 1 | EX35: 0 | EY35: 2 | EZ35: - | FA35: 1 | FC35: 1 | FD35: 0 | FE35: 1 | FF35: - | FG35: 0 | FI35: 1 | FJ35: 0 | FK35: 1 | FL35: - | FM35: 2 | FO35: 2 | FP35: 0 | FQ35: 0 | FR35: - | FS35: 0 | FU35: X | FV35: 0 | FW35: 2 | FX35: - | FY35: 1 | GA35: 1 | GB35: 0 | GC35: 1 | GD35: - | GE35: 1 | GG35: X | GH35: 0 | GI35: 1 | GJ35: - | GK35: 0 | GM35: 1 | GN35: 0 | GO35: 1 | GP35: - | GQ35: 2 | GS35: 2 | GT35: 0 | GU35: 2 | GV35: - | GW35: 1 | GY35: 1 | GZ35: 0 | HA35: 1 | HB35: - | HC35: 2 | HE35: 2 | HF35: 0 | HG35: 2 | HH35: - | HI35: 3 | HK35: 2 | HL35: 0 | HM35: 2 | HN35: - | HO35: 1 | HQ35: 1 | HR35: 0 | HS35: 2 | HT35: - | HU35: 2 | HW35: X | HX35: 0 | HY35: 1 | HZ35: - | IA35: 2 | IC35: 2 | ID35: 0 | IE35: 0 | IF35: - | IG35: 3 | II35: 2 | IJ35: 0 | IK35: 1 | IL35: - | IM35: 1 | IO35: X | IP35: 0 | IQ35: 1 | IR35: - | IS35: 1 | IU35: X | IV35: 0 | IW35: 1 | IX35: - | IY35: 0 | JA35: 1 | JB35: 0 | JC35: 0 | JD35: - | JE35: 0 | JG35: X | JH35: 0 | JI35: 1 | JJ35: - | JK35: 2 | JM35: 2 | JN35: 0 | JO35: 2 | JP35: - | JQ35: 2 | JS35: X | JT35: 0 | JU35: 0 | JV35: - | JW35: 1 | JY35: 2 | JZ35: 0 | KA35: 0 | KB35: - | KC35: 7 | KE35: 2 | KF35: 0 | KG35: 2 | KH35: - | KI35: 2 | KK35: X | KL35: 0 | KM35: 1 | KN35: - | KO35: 0 | KQ35: 1 | KR35: 0 | KS35: 2 | KT35: - | KU35: 2 | KW35: X | KX35: 0 | KY35: 1 | KZ35: - | LA35: 1 | LC35: X | LD35: 0 | LE35: 1 | LF35: - | LG35: 2 | LI35: 2 | LJ35: 0 | LK35: 2 | LL35: - | LM35: 0 | LO35: 1 | LP35: 0 | LQ35: 1 | LR35: - | LS35: 3 | LU35: 2 | LV35: 0 | LW35: 1 | LX35: - | LY35: 2 | MA35: 2 | MB35: 0 | MC35: 1 | MD35: - | ME35: 1 | MG35: X | MH35: 0
A36: 2018-06-25 | B36: Kl 20.00 | C36: Spanien | D36: - | E36: Marocko | G36: - | J36: 0 | K36: 2 | L36: - | M36: 0 | O36: 1 | P36: 0 | Q36: 2 | R36: - | S36: 1 | U36: 1 | V36: 0 | W36: 2 | X36: - | Y36: 1 | AA36: 1 | AB36: 0 | AC36: 3 | AD36: - | AE36: 1 | AG36: 1 | AH36: 0 | AI36: 0 | AJ36: - | AK36: 1 | AM36: 2 | AN36: 0 | AO36: 2 | AP36: - | AQ36: 0 | AS36: 1 | AT36: 0 | AU36: 2 | AV36: - | AW36: 0 | AY36: 1 | AZ36: 0 | BA36: 4 | BB36: - | BC36: 0 | BE36: 1 | BF36: 0 | BG36: 4 | BH36: - | BI36: 2 | BK36: 1 | BL36: 0 | BM36: 4 | BN36: - | BO36: 1 | BQ36: 1 | BR36: 0 | BS36: 2 | BT36: - | BU36: 0 | BW36: 1 | BX36: 0 | BY36: 4 | BZ36: - | CA36: 1 | CC36: 1 | CD36: 0 | CE36: 3 | CF36: - | CG36: 1 | CI36: 1 | CJ36: 0 | CK36: 2 | CL36: - | CM36: 0 | CO36: 1 | CP36: 0 | CQ36: 3 | CR36: - | CS36: 0 | CU36: 1 | CV36: 0 | CW36: 2 | CX36: - | CY36: 0 | DA36: 1 | DB36: 0 | DC36: 2 | DD36: - | DE36: 0 | DG36: 1 | DH36: 0 | DI36: 2 | DJ36: - | DK36: 1 | DM36: 1 | DN36: 0 | DO36: 3 | DP36: - | DQ36: 1 | DS36: 1 | DT36: 0 | DU36: 2 | DV36: - | DW36: 0 | DY36: 1 | DZ36: 0 | EA36: 3 | EB36: - | EC36: 1 | EE36: 1 | EF36: 0 | EG36: 3 | EH36: - | EI36: 0 | EK36: 1 | EL36: 0 | EM36: 2 | EN36: - | EO36: 3 | EQ36: 2 | ER36: 0 | ES36: 3 | ET36: - | EU36: 0 | EW36: 1 | EX36: 0 | EY36: 3 | EZ36: - | FA36: 1 | FC36: 1 | FD36: 0 | FE36: 4 | FF36: - | FG36: 1 | FI36: 1 | FJ36: 0 | FK36: 3 | FL36: - | FM36: 0 | FO36: 1 | FP36: 0 | FQ36: 2 | FR36: - | FS36: 0 | FU36: 1 | FV36: 0 | FW36: 3 | FX36: - | FY36: 0 | GA36: 1 | GB36: 0 | GC36: 2 | GD36: - | GE36: 0 | GG36: 1 | GH36: 0 | GI36: 2 | GJ36: - | GK36: 0 | GM36: 1 | GN36: 0 | GO36: 2 | GP36: - | GQ36: 1 | GS36: 1 | GT36: 0 | GU36: 2 | GV36: - | GW36: 1 | GY36: 1 | GZ36: 0 | HA36: 4 | HB36: - | HC36: 1 | HE36: 1 | HF36: 0 | HG36: 3 | HH36: - | HI36: 1 | HK36: 1 | HL36: 0 | HM36: 3 | HN36: - | HO36: 0 | HQ36: 1 | HR36: 0 | HS36: 2 | HT36: - | HU36: 0 | HW36: 1 | HX36: 0 | HY36: 1 | HZ36: - | IA36: 1 | IC36: X | ID36: 0 | IE36: 1 | IF36: - | IG36: 0 | II36: 1 | IJ36: 0 | IK36: 2 | IL36: - | IM36: 0 | IO36: 1 | IP36: 0 | IQ36: 2 | IR36: - | IS36: 0 | IU36: 1 | IV36: 0 | IW36: 2 | IX36: - | IY36: 0 | JA36: 1 | JB36: 0 | JC36: 3 | JD36: - | JE36: 0 | JG36: 1 | JH36: 0 | JI36: 2 | JJ36: - | JK36: 0 | JM36: 1 | JN36: 0 | JO36: 2 | JP36: - | JQ36: 0 | JS36: 1 | JT36: 0 | JU36: 3 | JV36: - | JW36: 0 | JY36: 1 | JZ36: 0 | KA36: 5 | KB36: - | KC36: 1 | KE36: 1 | KF36: 0 | KG36: 1 | KH36: - | KI36: 3 | KK36: 2 | KL36: 0 | KM36: 4 | KN36: - | KO36: 1 | KQ36: 1 | KR36: 0 | KS36: 4 | KT36: - | KU36: 2 | KW36: 1 | KX36: 0 | KY36: 3 | KZ36: - | LA36: 1 | LC36: 1 | LD36: 0 | LE36: 2 | LF36: - | LG36: 0 | LI36: 1 | LJ36: 0 | LK36: 2 | LL36: - | LM36: 0 | LO36: 1 | LP36: 0 | LQ36: 1 | LR36: - | LS36: 2 | LU36: 2 | LV36: 0 | LW36: 3 | LX36: - | LY36: 0 | MA36: 1 | MB36: 0 | MC36: 3 | MD36: - | ME36: 0 | MG36: 1 | MH36: 0
A37: 2018-06-25 | B37: Kl 20.00 | C37: Iran | D37: - | E37: Portugal | G37: - | J37: 0 | K37: 0 | L37: - | M37: 2 | O37: 2 | P37: 0 | Q37: 1 | R37: - | S37: 0 | U37: 1 | V37: 0 | W37: 0 | X37: - | Y37: 1 | AA37: 2 | AB37: 0 | AC37: 1 | AD37: - | AE37: 4 | AG37: 2 | AH37: 0 | AI37: 0 | AJ37: - | AK37: 1 | AM37: 2 | AN37: 0 | AO37: 0 | AP37: - | AQ37: 2 | AS37: 2 | AT37: 0 | AU37: 0 | AV37: - | AW37: 4 | AY37: 2 | AZ37: 0 | BA37: 0 | BB37: - | BC37: 2 | BE37: 2 | BF37: 0 | BG37: 1 | BH37: - | BI37: 3 | BK37: 2 | BL37: 0 | BM37: 1 | BN37: - | BO37: 3 | BQ37: 2 | BR37: 0 | BS37: 0 | BT37: - | BU37: 2 | BW37: 2 | BX37: 0 | BY37: 1 | BZ37: - | CA37: 3 | CC37: 2 | CD37: 0 | CE37: 1 | CF37: - | CG37: 0 | CI37: 1 | CJ37: 0 | CK37: 1 | CL37: - | CM37: 1 | CO37: X | CP37: 0 | CQ37: 0 | CR37: - | CS37: 4 | CU37: 2 | CV37: 0 | CW37: 0 | CX37: - | CY37: 3 | DA37: 2 | DB37: 0 | DC37: 0 | DD37: - | DE37: 1 | DG37: 2 | DH37: 0 | DI37: 1 | DJ37: - | DK37: 2 | DM37: 2 | DN37: 0 | DO37: 0 | DP37: - | DQ37: 2 | DS37: 2 | DT37: 0 | DU37: 1 | DV37: - | DW37: 3 | DY37: 2 | DZ37: 0 | EA37: 1 | EB37: - | EC37: 2 | EE37: 2 | EF37: 0 | EG37: 1 | EH37: - | EI37: 2 | EK37: 2 | EL37: 0 | EM37: 0 | EN37: - | EO37: 1 | EQ37: 2 | ER37: 0 | ES37: 0 | ET37: - | EU37: 3 | EW37: 2 | EX37: 0 | EY37: 0 | EZ37: - | FA37: 3 | FC37: 2 | FD37: 0 | FE37: 0 | FF37: - | FG37: 1 | FI37: 2 | FJ37: 0 | FK37: 0 | FL37: - | FM37: 2 | FO37: 2 | FP37: 0 | FQ37: 0 | FR37: - | FS37: 3 | FU37: 2 | FV37: 0 | FW37: 1 | FX37: - | FY37: 2 | GA37: 2 | GB37: 0 | GC37: 0 | GD37: - | GE37: 3 | GG37: 2 | GH37: 0 | GI37: 0 | GJ37: - | GK37: 3 | GM37: 2 | GN37: 0 | GO37: 0 | GP37: - | GQ37: 2 | GS37: 2 | GT37: 0 | GU37: 0 | GV37: - | GW37: 2 | GY37: 2 | GZ37: 0 | HA37: 1 | HB37: - | HC37: 2 | HE37: 2 | HF37: 0 | HG37: 2 | HH37: - | HI37: 3 | HK37: 2 | HL37: 0 | HM37: 0 | HN37: - | HO37: 2 | HQ37: 2 | HR37: 0 | HS37: 2 | HT37: - | HU37: 2 | HW37: X | HX37: 0 | HY37: 1 | HZ37: - | IA37: 1 | IC37: X | ID37: 0 | IE37: 0 | IF37: - | IG37: 1 | II37: 2 | IJ37: 0 | IK37: 0 | IL37: - | IM37: 3 | IO37: 2 | IP37: 0 | IQ37: 1 | IR37: - | IS37: 3 | IU37: 2 | IV37: 0 | IW37: 0 | IX37: - | IY37: 1 | JA37: 2 | JB37: 0 | JC37: 1 | JD37: - | JE37: 2 | JG37: 2 | JH37: 0 | JI37: 0 | JJ37: - | JK37: 2 | JM37: 2 | JN37: 0 | JO37: 0 | JP37: - | JQ37: 3 | JS37: 2 | JT37: 0 | JU37: 1 | JV37: - | JW37: 2 | JY37: 2 | JZ37: 0 | KA37: 1 | KB37: - | KC37: 4 | KE37: 2 | KF37: 0 | KG37: 2 | KH37: - | KI37: 4 | KK37: 2 | KL37: 0 | KM37: 1 | KN37: - | KO37: 3 | KQ37: 2 | KR37: 0 | KS37: 1 | KT37: - | KU37: 3 | KW37: 2 | KX37: 0 | KY37: 0 | KZ37: - | LA37: 2 | LC37: 2 | LD37: 0 | LE37: 0 | LF37: - | LG37: 3 | LI37: 2 | LJ37: 0 | LK37: 0 | LL37: - | LM37: 1 | LO37: 2 | LP37: 0 | LQ37: 1 | LR37: - | LS37: 3 | LU37: 2 | LV37: 0 | LW37: 1 | LX37: - | LY37: 1 | MA37: X | MB37: 0 | MC37: 1 | MD37: - | ME37: 4 | MG37: 2 | MH37: 0
A38: 2018-06-26 | B38: Kl 16.00 | C38: Danmark | D38: - | E38: Frankrike | G38: - | J38: 0 | K38: 1 | L38: - | M38: 2 | O38: 2 | P38: 0 | Q38: 0 | R38: - | S38: 1 | U38: 2 | V38: 0 | W38: 0 | X38: - | Y38: 2 | AA38: 2 | AB38: 0 | AC38: 1 | AD38: - | AE38: 3 | AG38: 2 | AH38: 0 | AI38: 0 | AJ38: - | AK38: 1 | AM38: 2 | AN38: 0 | AO38: 1 | AP38: - | AQ38: 3 | AS38: 2 | AT38: 0 | AU38: 2 | AV38: - | AW38: 2 | AY38: X | AZ38: 0 | BA38: 1 | BB38: - | BC38: 1 | BE38: X | BF38: 0 | BG38: 1 | BH38: - | BI38: 2 | BK38: 2 | BL38: 0 | BM38: 2 | BN38: - | BO38: 4 | BQ38: 2 | BR38: 0 | BS38: 1 | BT38: - | BU38: 3 | BW38: 2 | BX38: 0 | BY38: 2 | BZ38: - | CA38: 2 | CC38: X | CD38: 0 | CE38: 1 | CF38: - | CG38: 1 | CI38: X | CJ38: 0 | CK38: 1 | CL38: - | CM38: 1 | CO38: X | CP38: 0 | CQ38: 2 | CR38: - | CS38: 1 | CU38: 1 | CV38: 0 | CW38: 1 | CX38: - | CY38: 2 | DA38: 2 | DB38: 0 | DC38: 1 | DD38: - | DE38: 1 | DG38: X | DH38: 0 | DI38: 1 | DJ38: - | DK38: 2 | DM38: 2 | DN38: 0 | DO38: 1 | DP38: - | DQ38: 3 | DS38: 2 | DT38: 0 | DU38: 3 | DV38: - | DW38: 1 | DY38: 1 | DZ38: 0 | EA38: 1 | EB38: - | EC38: 1 | EE38: X | EF38: 0 | EG38: 2 | EH38: - | EI38: 3 | EK38: 2 | EL38: 0 | EM38: 0 | EN38: - | EO38: 2 | EQ38: 2 | ER38: 0 | ES38: 1 | ET38: - | EU38: 3 | EW38: 2 | EX38: 0 | EY38: 0 | EZ38: - | FA38: 2 | FC38: 2 | FD38: 0 | FE38: 1 | FF38: - | FG38: 2 | FI38: 2 | FJ38: 0 | FK38: 0 | FL38: - | FM38: 1 | FO38: 2 | FP38: 0 | FQ38: 0 | FR38: - | FS38: 1 | FU38: 2 | FV38: 0 | FW38: 0 | FX38: - | FY38: 1 | GA38: 2 | GB38: 0 | GC38: 1 | GD38: - | GE38: 3 | GG38: 2 | GH38: 0 | GI38: 0 | GJ38: - | GK38: 1 | GM38: 2 | GN38: 0 | GO38: 1 | GP38: - | GQ38: 1 | GS38: X | GT38: 0 | GU38: 1 | GV38: - | GW38: 1 | GY38: X | GZ38: 0 | HA38: 0 | HB38: - | HC38: 1 | HE38: 2 | HF38: 0 | HG38: 3 | HH38: - | HI38: 2 | HK38: 1 | HL38: 0 | HM38: 0 | HN38: - | HO38: 2 | HQ38: 2 | HR38: 0 | HS38: 2 | HT38: - | HU38: 2 | HW38: X | HX38: 0 | HY38: 1 | HZ38: - | IA38: 0 | IC38: 1 | ID38: 0 | IE38: 0 | IF38: - | IG38: 1 | II38: 2 | IJ38: 0 | IK38: 1 | IL38: - | IM38: 1 | IO38: X | IP38: 0 | IQ38: 1 | IR38: - | IS38: 3 | IU38: 2 | IV38: 0 | IW38: 1 | IX38: - | IY38: 1 | JA38: X | JB38: 0 | JC38: 1 | JD38: - | JE38: 2 | JG38: 2 | JH38: 0 | JI38: 1 | JJ38: - | JK38: 1 | JM38: X | JN38: 0 | JO38: 1 | JP38: - | JQ38: 3 | JS38: 2 | JT38: 0 | JU38: 2 | JV38: - | JW38: 3 | JY38: 2 | JZ38: 0 | KA38: 1 | KB38: - | KC38: 1 | KE38: X | KF38: 0 | KG38: 5 | KH38: - | KI38: 4 | KK38: 1 | KL38: 0 | KM38: 1 | KN38: - | KO38: 1 | KQ38: X | KR38: 0 | KS38: 2 | KT38: - | KU38: 3 | KW38: 2 | KX38: 0 | KY38: 1 | KZ38: - | LA38: 1 | LC38: X | LD38: 0 | LE38: 0 | LF38: - | LG38: 2 | LI38: 2 | LJ38: 0 | LK38: 1 | LL38: - | LM38: 2 | LO38: 2 | LP38: 0 | LQ38: 2 | LR38: - | LS38: 0 | LU38: 1 | LV38: 0 | LW38: 2 | LX38: - | LY38: 1 | MA38: 1 | MB38: 0 | MC38: 1 | MD38: - | ME38: 2 | MG38: 2 | MH38: 0
A39: 2018-06-26 | B39: Kl 16.00 | C39: Australien | D39: - | E39: Peru | G39: - | J39: 0 | K39: 1 | L39: - | M39: 0 | O39: 1 | P39: 0 | Q39: 1 | R39: - | S39: 0 | U39: 1 | V39: 0 | W39: 0 | X39: - | Y39: 1 | AA39: 2 | AB39: 0 | AC39: 3 | AD39: - | AE39: 1 | AG39: 1 | AH39: 0 | AI39: 1 | AJ39: - | AK39: 0 | AM39: 1 | AN39: 0 | AO39: 0 | AP39: - | AQ39: 1 | AS39: 2 | AT39: 0 | AU39: 1 | AV39: - | AW39: 0 | AY39: 1 | AZ39: 0 | BA39: 2 | BB39: - | BC39: 0 | BE39: 1 | BF39: 0 | BG39: 0 | BH39: - | BI39: 1 | BK39: 2 | BL39: 0 | BM39: 2 | BN39: - | BO39: 2 | BQ39: X | BR39: 0 | BS39: 1 | BT39: - | BU39: 0 | BW39: 1 | BX39: 0 | BY39: 1 | BZ39: - | CA39: 0 | CC39: 1 | CD39: 0 | CE39: 2 | CF39: - | CG39: 1 | CI39: 1 | CJ39: 0 | CK39: 0 | CL39: - | CM39: 0 | CO39: X | CP39: 0 | CQ39: 2 | CR39: - | CS39: 2 | CU39: X | CV39: 0 | CW39: 1 | CX39: - | CY39: 1 | DA39: X | DB39: 0 | DC39: 2 | DD39: - | DE39: 3 | DG39: 2 | DH39: 0 | DI39: 2 | DJ39: - | DK39: 1 | DM39: 1 | DN39: 0 | DO39: 1 | DP39: - | DQ39: 0 | DS39: 1 | DT39: 0 | DU39: 1 | DV39: - | DW39: 0 | DY39: 1 | DZ39: 0 | EA39: 0 | EB39: - | EC39: 0 | EE39: X | EF39: 0 | EG39: 2 | EH39: - | EI39: 1 | EK39: 1 | EL39: 0 | EM39: 1 | EN39: - | EO39: 1 | EQ39: X | ER39: 0 | ES39: 1 | ET39: - | EU39: 1 | EW39: X | EX39: 0 | EY39: 0 | EZ39: - | FA39: 2 | FC39: 2 | FD39: 0 | FE39: 1 | FF39: - | FG39: 0 | FI39: 1 | FJ39: 0 | FK39: 1 | FL39: - | FM39: 1 | FO39: X | FP39: 0 | FQ39: 0 | FR39: - | FS39: 2 | FU39: 2 | FV39: 0 | FW39: 0 | FX39: - | FY39: 2 | GA39: 2 | GB39: 0 | GC39: 0 | GD39: - | GE39: 1 | GG39: 2 | GH39: 0 | GI39: 0 | GJ39: - | GK39: 2 | GM39: 2 | GN39: 0 | GO39: 0 | GP39: - | GQ39: 2 | GS39: 2 | GT39: 0 | GU39: 1 | GV39: - | GW39: 1 | GY39: X | GZ39: 0 | HA39: 1 | HB39: - | HC39: 1 | HE39: X | HF39: 0 | HG39: 2 | HH39: - | HI39: 1 | HK39: 1 | HL39: 0 | HM39: 0 | HN39: - | HO39: 2 | HQ39: 2 | HR39: 0 | HS39: 0 | HT39: - | HU39: 0 | HW39: X | HX39: 0 | HY39: 2 | HZ39: - | IA39: 1 | IC39: 1 | ID39: 0 | IE39: 1 | IF39: - | IG39: 2 | II39: 2 | IJ39: 0 | IK39: 1 | IL39: - | IM39: 1 | IO39: X | IP39: 0 | IQ39: 1 | IR39: - | IS39: 2 | IU39: 2 | IV39: 0 | IW39: 1 | IX39: - | IY39: 1 | JA39: X | JB39: 0 | JC39: 1 | JD39: - | JE39: 1 | JG39: X | JH39: 0 | JI39: 2 | JJ39: - | JK39: 1 | JM39: 1 | JN39: 0 | JO39: 2 | JP39: - | JQ39: 1 | JS39: 1 | JT39: 0 | JU39: 2 | JV39: - | JW39: 1 | JY39: 1 | JZ39: 0 | KA39: 0 | KB39: - | KC39: 3 | KE39: 2 | KF39: 0 | KG39: 1 | KH39: - | KI39: 3 | KK39: 2 | KL39: 0 | KM39: 2 | KN39: - | KO39: 1 | KQ39: 1 | KR39: 0 | KS39: 2 | KT39: - | KU39: 0 | KW39: 1 | KX39: 0 | KY39: 2 | KZ39: - | LA39: 2 | LC39: X | LD39: 0 | LE39: 1 | LF39: - | LG39: 2 | LI39: 2 | LJ39: 0 | LK39: 1 | LL39: - | LM39: 1 | LO39: X | LP39: 0 | LQ39: 1 | LR39: - | LS39: 0 | LU39: 1 | LV39: 0 | LW39: 1 | LX39: - | LY39: 2 | MA39: 2 | MB39: 0 | MC39: 0 | MD39: - | ME39: 1 | MG39: 2 | MH39: 0
A40: 2018-06-26 | B40: Kl 20.00 | C40: Island | D40: - | E40: Krotien | G40: - | J40: 0 | K40: 2 | L40: - | M40: 1 | O40: 1 | P40: 0 | Q40: 0 | R40: - | S40: 1 | U40: 2 | V40: 0 | W40: 0 | X40: - | Y40: 2 | AA40: 2 | AB40: 0 | AC40: 3 | AD40: - | AE40: 1 | AG40: 1 | AH40: 0 | AI40: 1 | AJ40: - | AK40: 0 | AM40: 1 | AN40: 0 | AO40: 2 | AP40: - | AQ40: 0 | AS40: 1 | AT40: 0 | AU40: 1 | AV40: - | AW40: 2 | AY40: 2 | AZ40: 0 | BA40: 1 | BB40: - | BC40: 3 | BE40: 2 | BF40: 0 | BG40: 1 | BH40: - | BI40: 1 | BK40: X | BL40: 0 | BM40: 3 | BN40: - | BO40: 1 | BQ40: 1 | BR40: 0 | BS40: 2 | BT40: - | BU40: 2 | BW40: X | BX40: 0 | BY40: 1 | BZ40: - | CA40: 2 | CC40: 2 | CD40: 0 | CE40: 1 | CF40: - | CG40: 3 | CI40: 2 | CJ40: 0 | CK40: 1 | CL40: - | CM40: 0 | CO40: 1 | CP40: 0 | CQ40: 2 | CR40: - | CS40: 0 | CU40: 1 | CV40: 0 | CW40: 1 | CX40: - | CY40: 3 | DA40: 2 | DB40: 0 | DC40: 0 | DD40: - | DE40: 1 | DG40: 2 | DH40: 0 | DI40: 1 | DJ40: - | DK40: 1 | DM40: X | DN40: 0 | DO40: 0 | DP40: - | DQ40: 2 | DS40: 2 | DT40: 0 | DU40: 1 | DV40: - | DW40: 2 | DY40: 2 | DZ40: 0 | EA40: 0 | EB40: - | EC40: 1 | EE40: 2 | EF40: 0 | EG40: 1 | EH40: - | EI40: 2 | EK40: 2 | EL40: 0 | EM40: 1 | EN40: - | EO40: 3 | EQ40: 2 | ER40: 0 | ES40: 0 | ET40: - | EU40: 2 | EW40: 2 | EX40: 0 | EY40: 2 | EZ40: - | FA40: 1 | FC40: 1 | FD40: 0 | FE40: 1 | FF40: - | FG40: 2 | FI40: 2 | FJ40: 0 | FK40: 2 | FL40: - | FM40: 2 | FO40: X | FP40: 0 | FQ40: 1 | FR40: - | FS40: 0 | FU40: 1 | FV40: 0 | FW40: 1 | FX40: - | FY40: 1 | GA40: X | GB40: 0 | GC40: 1 | GD40: - | GE40: 2 | GG40: 2 | GH40: 0 | GI40: 2 | GJ40: - | GK40: 2 | GM40: X | GN40: 0 | GO40: 1 | GP40: - | GQ40: 1 | GS40: X | GT40: 0 | GU40: 1 | GV40: - | GW40: 2 | GY40: 2 | GZ40: 0 | HA40: 2 | HB40: - | HC40: 1 | HE40: 1 | HF40: 0 | HG40: 2 | HH40: - | HI40: 1 | HK40: 1 | HL40: 0 | HM40: 0 | HN40: - | HO40: 2 | HQ40: 2 | HR40: 0 | HS40: 1 | HT40: - | HU40: 1 | HW40: X | HX40: 0 | HY40: 0 | HZ40: - | IA40: 1 | IC40: 2 | ID40: 0 | IE40: 0 | IF40: - | IG40: 0 | II40: X | IJ40: 0 | IK40: 0 | IL40: - | IM40: 0 | IO40: X | IP40: 0 | IQ40: 1 | IR40: - | IS40: 2 | IU40: 2 | IV40: 0 | IW40: 1 | IX40: - | IY40: 2 | JA40: 2 | JB40: 0 | JC40: 1 | JD40: - | JE40: 1 | JG40: X | JH40: 0 | JI40: 1 | JJ40: - | JK40: 1 | JM40: X | JN40: 0 | JO40: 1 | JP40: - | JQ40: 1 | JS40: X | JT40: 0 | JU40: 1 | JV40: - | JW40: 2 | JY40: 2 | JZ40: 0 | KA40: 3 | KB40: - | KC40: 2 | KE40: 1 | KF40: 0 | KG40: 2 | KH40: - | KI40: 2 | KK40: X | KL40: 0 | KM40: 1 | KN40: - | KO40: 2 | KQ40: 2 | KR40: 0 | KS40: 2 | KT40: - | KU40: 1 | KW40: 1 | KX40: 0 | KY40: 1 | KZ40: - | LA40: 2 | LC40: 2 | LD40: 0 | LE40: 0 | LF40: - | LG40: 1 | LI40: 2 | LJ40: 0 | LK40: 0 | LL40: - | LM40: 1 | LO40: 2 | LP40: 0 | LQ40: 1 | LR40: - | LS40: 1 | LU40: X | LV40: 0 | LW40: 1 | LX40: - | LY40: 2 | MA40: 2 | MB40: 0 | MC40: 3 | MD40: - | ME40: 1 | MG40: 1 | MH40: 0
A41: 2018-06-26 | B41: Kl 20.00 | C41: Nigeria | D41: - | E41: Argentina | G41: - | J41: 0 | K41: 1 | L41: - | M41: 2 | O41: 2 | P41: 0 | Q41: 1 | R41: - | S41: 2 | U41: 2 | V41: 0 | W41: 2 | X41: - | Y41: 1 | AA41: 1 | AB41: 0 | AC41: 0 | AD41: - | AE41: 2 | AG41: 2 | AH41: 0 | AI41: 1 | AJ41: - | AK41: 0 | AM41: 1 | AN41: 0 | AO41: 0 | AP41: - | AQ41: 2 | AS41: 2 | AT41: 0 | AU41: 1 | AV41: - | AW41: 3 | AY41: 2 | AZ41: 0 | BA41: 2 | BB41: - | BC41: 4 | BE41: 2 | BF41: 0 | BG41: 1 | BH41: - | BI41: 3 | BK41: 2 | BL41: 0 | BM41: 2 | BN41: - | BO41: 3 | BQ41: 2 | BR41: 0 | BS41: 1 | BT41: - | BU41: 1 | BW41: X | BX41: 0 | BY41: 2 | BZ41: - | CA41: 4 | CC41: 2 | CD41: 0 | CE41: 0 | CF41: - | CG41: 2 | CI41: 2 | CJ41: 0 | CK41: 1 | CL41: - | CM41: 2 | CO41: 2 | CP41: 0 | CQ41: 1 | CR41: - | CS41: 4 | CU41: 2 | CV41: 0 | CW41: 0 | CX41: - | CY41: 2 | DA41: 2 | DB41: 0 | DC41: 1 | DD41: - | DE41: 2 | DG41: 2 | DH41: 0 | DI41: 1 | DJ41: - | DK41: 2 | DM41: 2 | DN41: 0 | DO41: 1 | DP41: - | DQ41: 2 | DS41: 2 | DT41: 0 | DU41: 0 | DV41: - | DW41: 2 | DY41: 2 | DZ41: 0 | EA41: 0 | EB41: - | EC41: 3 | EE41: 2 | EF41: 0 | EG41: 2 | EH41: - | EI41: 3 | EK41: 2 | EL41: 0 | EM41: 4 | EN41: - | EO41: 2 | EQ41: 1 | ER41: 0 | ES41: 1 | ET41: - | EU41: 2 | EW41: 2 | EX41: 0 | EY41: 1 | EZ41: - | FA41: 3 | FC41: 2 | FD41: 0 | FE41: 2 | FF41: - | FG41: 1 | FI41: 1 | FJ41: 0 | FK41: 1 | FL41: - | FM41: 2 | FO41: 2 | FP41: 0 | FQ41: 1 | FR41: - | FS41: 1 | FU41: X | FV41: 0 | FW41: 0 | FX41: - | FY41: 2 | GA41: 2 | GB41: 0 | GC41: 0 | GD41: - | GE41: 3 | GG41: 2 | GH41: 0 | GI41: 1 | GJ41: - | GK41: 4 | GM41: 2 | GN41: 0 | GO41: 0 | GP41: - | GQ41: 2 | GS41: 2 | GT41: 0 | GU41: 1 | GV41: - | GW41: 2 | GY41: 2 | GZ41: 0 | HA41: 1 | HB41: - | HC41: 3 | HE41: 2 | HF41: 0 | HG41: 2 | HH41: - | HI41: 2 | HK41: X | HL41: 0 | HM41: 0 | HN41: - | HO41: 3 | HQ41: 2 | HR41: 0 | HS41: 1 | HT41: - | HU41: 3 | HW41: 2 | HX41: 0 | HY41: 0 | HZ41: - | IA41: 4 | IC41: 2 | ID41: 0 | IE41: 2 | IF41: - | IG41: 2 | II41: X | IJ41: 0 | IK41: 0 | IL41: - | IM41: 2 | IO41: 2 | IP41: 0 | IQ41: 1 | IR41: - | IS41: 3 | IU41: 2 | IV41: 0 | IW41: 1 | IX41: - | IY41: 2 | JA41: 2 | JB41: 0 | JC41: 0 | JD41: - | JE41: 2 | JG41: 2 | JH41: 0 | JI41: 0 | JJ41: - | JK41: 2 | JM41: 2 | JN41: 0 | JO41: 1 | JP41: - | JQ41: 1 | JS41: X | JT41: 0 | JU41: 2 | JV41: - | JW41: 3 | JY41: 2 | JZ41: 0 | KA41: 6 | KB41: - | KC41: 6 | KE41: X | KF41: 0 | KG41: 2 | KH41: - | KI41: 2 | KK41: X | KL41: 0 | KM41: 1 | KN41: - | KO41: 5 | KQ41: 2 | KR41: 0 | KS41: 2 | KT41: - | KU41: 4 | KW41: 2 | KX41: 0 | KY41: 0 | KZ41: - | LA41: 2 | LC41: 2 | LD41: 0 | LE41: 1 | LF41: - | LG41: 3 | LI41: 2 | LJ41: 0 | LK41: 1 | LL41: - | LM41: 2 | LO41: 2 | LP41: 0 | LQ41: 1 | LR41: - | LS41: 1 | LU41: X | LV41: 0 | LW41: 1 | LX41: - | LY41: 3 | MA41: 2 | MB41: 0 | MC41: 1 | MD41: - | ME41: 1 | MG41: X | MH41: 0
A42: 2018-06-27 | B42: Kl 16.00 | C42: Mexiko | D42: - | E42: Sverige | G42: - | J42: 0 | K42: 0 | L42: - | M42: 1 | O42: 2 | P42: 0 | Q42: 2 | R42: - | S42: 2 | U42: X | V42: 0 | W42: 0 | X42: - | Y42: 1 | AA42: 2 | AB42: 0 | AC42: 1 | AD42: - | AE42: 4 | AG42: 2 | AH42: 0 | AI42: 1 | AJ42: - | AK42: 0 | AM42: 1 | AN42: 0 | AO42: 1 | AP42: - | AQ42: 3 | AS42: 2 | AT42: 0 | AU42: 1 | AV42: - | AW42: 1 | AY42: X | AZ42: 0 | BA42: 2 | BB42: - | BC42: 2 | BE42: X | BF42: 0 | BG42: 2 | BH42: - | BI42: 0 | BK42: 1 | BL42: 0 | BM42: 3 | BN42: - | BO42: 3 | BQ42: X | BR42: 0 | BS42: 1 | BT42: - | BU42: 0 | BW42: 1 | BX42: 0 | BY42: 1 | BZ42: - | CA42: 3 | CC42: 2 | CD42: 0 | CE42: 1 | CF42: - | CG42: 3 | CI42: 2 | CJ42: 0 | CK42: 1 | CL42: - | CM42: 2 | CO42: 2 | CP42: 0 | CQ42: 2 | CR42: - | CS42: 2 | CU42: X | CV42: 0 | CW42: 1 | CX42: - | CY42: 2 | DA42: 2 | DB42: 0 | DC42: 1 | DD42: - | DE42: 1 | DG42: X | DH42: 0 | DI42: 1 | DJ42: - | DK42: 1 | DM42: X | DN42: 0 | DO42: 0 | DP42: - | DQ42: 2 | DS42: 2 | DT42: 0 | DU42: 1 | DV42: - | DW42: 2 | DY42: 2 | DZ42: 0 | EA42: 1 | EB42: - | EC42: 2 | EE42: 2 | EF42: 0 | EG42: 1 | EH42: - | EI42: 2 | EK42: 2 | EL42: 0 | EM42: 2 | EN42: - | EO42: 3 | EQ42: 2 | ER42: 0 | ES42: 1 | ET42: - | EU42: 2 | EW42: 2 | EX42: 0 | EY42: 1 | EZ42: - | FA42: 2 | FC42: 2 | FD42: 0 | FE42: 1 | FF42: - | FG42: 2 | FI42: 2 | FJ42: 0 | FK42: 1 | FL42: - | FM42: 1 | FO42: X | FP42: 0 | FQ42: 1 | FR42: - | FS42: 2 | FU42: 2 | FV42: 0 | FW42: 1 | FX42: - | FY42: 1 | GA42: X | GB42: 0 | GC42: 1 | GD42: - | GE42: 0 | GG42: 1 | GH42: 0 | GI42: 2 | GJ42: - | GK42: 2 | GM42: X | GN42: 0 | GO42: 1 | GP42: - | GQ42: 2 | GS42: 2 | GT42: 0 | GU42: 2 | GV42: - | GW42: 1 | GY42: 1 | GZ42: 0 | HA42: 1 | HB42: - | HC42: 1 | HE42: X | HF42: 0 | HG42: 2 | HH42: - | HI42: 3 | HK42: 2 | HL42: 0 | HM42: 1 | HN42: - | HO42: 1 | HQ42: X | HR42: 0 | HS42: 1 | HT42: - | HU42: 1 | HW42: X | HX42: 0 | HY42: 0 | HZ42: - | IA42: 1 | IC42: 2 | ID42: 0 | IE42: 2 | IF42: - | IG42: 0 | II42: 1 | IJ42: 0 | IK42: 1 | IL42: - | IM42: 2 | IO42: 2 | IP42: 0 | IQ42: 0 | IR42: - | IS42: 2 | IU42: 2 | IV42: 0 | IW42: 1 | IX42: - | IY42: 0 | JA42: 1 | JB42: 0 | JC42: 1 | JD42: - | JE42: 3 | JG42: 2 | JH42: 0 | JI42: 0 | JJ42: - | JK42: 2 | JM42: 2 | JN42: 0 | JO42: 0 | JP42: - | JQ42: 3 | JS42: 2 | JT42: 0 | JU42: 1 | JV42: - | JW42: 2 | JY42: 2 | JZ42: 0 | KA42: 3 | KB42: - | KC42: 0 | KE42: 1 | KF42: 0 | KG42: 0 | KH42: - | KI42: 1 | KK42: 2 | KL42: 0 | KM42: 2 | KN42: - | KO42: 2 | KQ42: X | KR42: 0 | KS42: 1 | KT42: - | KU42: 2 | KW42: 2 | KX42: 0 | KY42: 1 | KZ42: - | LA42: 2 | LC42: 2 | LD42: 0 | LE42: 1 | LF42: - | LG42: 0 | LI42: 1 | LJ42: 0 | LK42: 1 | LL42: - | LM42: 0 | LO42: 1 | LP42: 0 | LQ42: 2 | LR42: - | LS42: 0 | LU42: 1 | LV42: 0 | LW42: 1 | LX42: - | LY42: 2 | MA42: 2 | MB42: 0 | MC42: 1 | MD42: - | ME42: 3 | MG42: 2 | MH42: 0
A43: 2018-06-27 | B43: Kl 16.00 | C43: Sydkorea | D43: - | E43: Tyskland | G43: - | J43: 0 | K43: 0 | L43: - | M43: 2 | O43: 2 | P43: 0 | Q43: 2 | R43: - | S43: 1 | U43: 1 | V43: 0 | W43: 0 | X43: - | Y43: 2 | AA43: 2 | AB43: 0 | AC43: 2 | AD43: - | AE43: 3 | AG43: 2 | AH43: 0 | AI43: 2 | AJ43: - | AK43: 3 | AM43: 2 | AN43: 0 | AO43: 0 | AP43: - | AQ43: 2 | AS43: 2 | AT43: 0 | AU43: 0 | AV43: - | AW43: 4 | AY43: 2 | AZ43: 0 | BA43: 0 | BB43: - | BC43: 5 | BE43: 2 | BF43: 0 | BG43: 1 | BH43: - | BI43: 5 | BK43: 2 | BL43: 0 | BM43: 1 | BN43: - | BO43: 4 | BQ43: 2 | BR43: 0 | BS43: 0 | BT43: - | BU43: 2 | BW43: 2 | BX43: 0 | BY43: 1 | BZ43: - | CA43: 3 | CC43: 2 | CD43: 0 | CE43: 1 | CF43: - | CG43: 2 | CI43: 2 | CJ43: 0 | CK43: 0 | CL43: - | CM43: 2 | CO43: 2 | CP43: 0 | CQ43: 0 | CR43: - | CS43: 5 | CU43: 2 | CV43: 0 | CW43: 0 | CX43: - | CY43: 4 | DA43: 2 | DB43: 0 | DC43: 1 | DD43: - | DE43: 2 | DG43: 2 | DH43: 0 | DI43: 0 | DJ43: - | DK43: 2 | DM43: 2 | DN43: 0 | DO43: 0 | DP43: - | DQ43: 3 | DS43: 2 | DT43: 0 | DU43: 0 | DV43: - | DW43: 3 | DY43: 2 | DZ43: 0 | EA43: 0 | EB43: - | EC43: 3 | EE43: 2 | EF43: 0 | EG43: 1 | EH43: - | EI43: 3 | EK43: 2 | EL43: 0 | EM43: 1 | EN43: - | EO43: 4 | EQ43: 2 | ER43: 0 | ES43: 0 | ET43: - | EU43: 4 | EW43: 2 | EX43: 0 | EY43: 0 | EZ43: - | FA43: 3 | FC43: 2 | FD43: 0 | FE43: 0 | FF43: - | FG43: 4 | FI43: 2 | FJ43: 0 | FK43: 0 | FL43: - | FM43: 3 | FO43: 2 | FP43: 0 | FQ43: 0 | FR43: - | FS43: 2 | FU43: 2 | FV43: 0 | FW43: 0 | FX43: - | FY43: 3 | GA43: 2 | GB43: 0 | GC43: 0 | GD43: - | GE43: 3 | GG43: 2 | GH43: 0 | GI43: 1 | GJ43: - | GK43: 5 | GM43: 2 | GN43: 0 | GO43: 0 | GP43: - | GQ43: 2 | GS43: 2 | GT43: 0 | GU43: 0 | GV43: - | GW43: 2 | GY43: 2 | GZ43: 0 | HA43: 1 | HB43: - | HC43: 3 | HE43: 2 | HF43: 0 | HG43: 2 | HH43: - | HI43: 4 | HK43: 2 | HL43: 0 | HM43: 0 | HN43: - | HO43: 2 | HQ43: 2 | HR43: 0 | HS43: 1 | HT43: - | HU43: 1 | HW43: X | HX43: 0 | HY43: 0 | HZ43: - | IA43: 1 | IC43: 2 | ID43: 0 | IE43: 1 | IF43: - | IG43: 0 | II43: 1 | IJ43: 0 | IK43: 1 | IL43: - | IM43: 4 | IO43: 2 | IP43: 0 | IQ43: 0 | IR43: - | IS43: 2 | IU43: 2 | IV43: 0 | IW43: 0 | IX43: - | IY43: 2 | JA43: 2 | JB43: 0 | JC43: 1 | JD43: - | JE43: 3 | JG43: 2 | JH43: 0 | JI43: 1 | JJ43: - | JK43: 3 | JM43: 2 | JN43: 0 | JO43: 0 | JP43: - | JQ43: 4 | JS43: 2 | JT43: 0 | JU43: 1 | JV43: - | JW43: 3 | JY43: 2 | JZ43: 0 | KA43: 0 | KB43: - | KC43: 3 | KE43: 2 | KF43: 0 | KG43: 1 | KH43: - | KI43: 6 | KK43: 2 | KL43: 0 | KM43: 1 | KN43: - | KO43: 1 | KQ43: X | KR43: 0 | KS43: 1 | KT43: - | KU43: 3 | KW43: 2 | KX43: 0 | KY43: 0 | KZ43: - | LA43: 2 | LC43: 2 | LD43: 0 | LE43: 0 | LF43: - | LG43: 1 | LI43: 2 | LJ43: 0 | LK43: 0 | LL43: - | LM43: 2 | LO43: 2 | LP43: 0 | LQ43: 1 | LR43: - | LS43: 3 | LU43: 2 | LV43: 0 | LW43: 0 | LX43: - | LY43: 4 | MA43: 2 | MB43: 0 | MC43: 0 | MD43: - | ME43: 3 | MG43: 2 | MH43: 0
A44: 2018-06-27 | B44: Kl 20.00 | C44: Serbien | D44: - | E44: Brasilien | G44: - | J44: 0 | K44: 1 | L44: - | M44: 3 | O44: 2 | P44: 0 | Q44: 1 | R44: - | S44: 0 | U44: 1 | V44: 0 | W44: 0 | X44: - | Y44: 2 | AA44: 2 | AB44: 0 | AC44: 0 | AD44: - | AE44: 2 | AG44: 2 | AH44: 0 | AI44: 1 | AJ44: - | AK44: 2 | AM44: 2 | AN44: 0 | AO44: 0 | AP44: - | AQ44: 2 | AS44: 2 | AT44: 0 | AU44: 1 | AV44: - | AW44: 3 | AY44: 2 | AZ44: 0 | BA44: 0 | BB44: - | BC44: 2 | BE44: 2 | BF44: 0 | BG44: 1 | BH44: - | BI44: 4 | BK44: 2 | BL44: 0 | BM44: 1 | BN44: - | BO44: 2 | BQ44: 2 | BR44: 0 | BS44: 0 | BT44: - | BU44: 3 | BW44: 2 | BX44: 0 | BY44: 2 | BZ44: - | CA44: 3 | CC44: 2 | CD44: 0 | CE44: 1 | CF44: - | CG44: 3 | CI44: 2 | CJ44: 0 | CK44: 1 | CL44: - | CM44: 3 | CO44: 2 | CP44: 0 | CQ44: 0 | CR44: - | CS44: 4 | CU44: 2 | CV44: 0 | CW44: 1 | CX44: - | CY44: 3 | DA44: 2 | DB44: 0 | DC44: 1 | DD44: - | DE44: 2 | DG44: 2 | DH44: 0 | DI44: 0 | DJ44: - | DK44: 2 | DM44: 2 | DN44: 0 | DO44: 1 | DP44: - | DQ44: 2 | DS44: 2 | DT44: 0 | DU44: 0 | DV44: - | DW44: 2 | DY44: 2 | DZ44: 0 | EA44: 1 | EB44: - | EC44: 4 | EE44: 2 | EF44: 0 | EG44: 1 | EH44: - | EI44: 2 | EK44: 2 | EL44: 0 | EM44: 1 | EN44: - | EO44: 5 | EQ44: 2 | ER44: 0 | ES44: 0 | ET44: - | EU44: 3 | EW44: 2 | EX44: 0 | EY44: 1 | EZ44: - | FA44: 4 | FC44: 2 | FD44: 0 | FE44: 1 | FF44: - | FG44: 1 | FI44: X | FJ44: 0 | FK44: 2 | FL44: - | FM44: 3 | FO44: 2 | FP44: 0 | FQ44: 1 | FR44: - | FS44: 2 | FU44: 2 | FV44: 0 | FW44: 0 | FX44: - | FY44: 2 | GA44: 2 | GB44: 0 | GC44: 0 | GD44: - | GE44: 2 | GG44: 2 | GH44: 0 | GI44: 1 | GJ44: - | GK44: 2 | GM44: 2 | GN44: 0 | GO44: 1 | GP44: - | GQ44: 2 | GS44: 2 | GT44: 0 | GU44: 1 | GV44: - | GW44: 2 | GY44: 2 | GZ44: 0 | HA44: 1 | HB44: - | HC44: 4 | HE44: 2 | HF44: 0 | HG44: 3 | HH44: - | HI44: 2 | HK44: 1 | HL44: 0 | HM44: 0 | HN44: - | HO44: 2 | HQ44: 2 | HR44: 0 | HS44: 2 | HT44: - | HU44: 3 | HW44: 2 | HX44: 0 | HY44: 0 | HZ44: - | IA44: 1 | IC44: 2 | ID44: 0 | IE44: 0 | IF44: - | IG44: 0 | II44: X | IJ44: 0 | IK44: 1 | IL44: - | IM44: 2 | IO44: 2 | IP44: 0 | IQ44: 1 | IR44: - | IS44: 2 | IU44: 2 | IV44: 0 | IW44: 1 | IX44: - | IY44: 2 | JA44: 2 | JB44: 0 | JC44: 0 | JD44: - | JE44: 3 | JG44: 2 | JH44: 0 | JI44: 0 | JJ44: - | JK44: 3 | JM44: 2 | JN44: 0 | JO44: 2 | JP44: - | JQ44: 1 | JS44: 1 | JT44: 0 | JU44: 1 | JV44: - | JW44: 2 | JY44: 2 | JZ44: 0 | KA44: 2 | KB44: - | KC44: 4 | KE44: 2 | KF44: 0 | KG44: 2 | KH44: - | KI44: 5 | KK44: 2 | KL44: 0 | KM44: 1 | KN44: - | KO44: 3 | KQ44: 2 | KR44: 0 | KS44: 1 | KT44: - | KU44: 2 | KW44: 2 | KX44: 0 | KY44: 0 | KZ44: - | LA44: 2 | LC44: 2 | LD44: 0 | LE44: 1 | LF44: - | LG44: 2 | LI44: 2 | LJ44: 0 | LK44: 0 | LL44: - | LM44: 2 | LO44: 2 | LP44: 0 | LQ44: 1 | LR44: - | LS44: 3 | LU44: 2 | LV44: 0 | LW44: 1 | LX44: - | LY44: 3 | MA44: 2 | MB44: 0 | MC44: 1 | MD44: - | ME44: 2 | MG44: 2 | MH44: 0
A45: 2018-06-27 | B45: Kl 20.00 | C45: Schweiz | D45: - | E45: Costa Rica | G45: - | J45: 0 | K45: 2 | L45: - | M45: 0 | O45: 1 | P45: 0 | Q45: 0 | R45: - | S45: 0 | U45: X | V45: 0 | W45: 1 | X45: - | Y45: 1 | AA45: X | AB45: 0 | AC45: 2 | AD45: - | AE45: 0 | AG45: 1 | AH45: 0 | AI45: 1 | AJ45: - | AK45: 0 | AM45: 1 | AN45: 0 | AO45: 1 | AP45: - | AQ45: 2 | AS45: 2 | AT45: 0 | AU45: 2 | AV45: - | AW45: 0 | AY45: 1 | AZ45: 0 | BA45: 2 | BB45: - | BC45: 0 | BE45: 1 | BF45: 0 | BG45: 0 | BH45: - | BI45: 0 | BK45: X | BL45: 0 | BM45: 1 | BN45: - | BO45: 3 | BQ45: 2 | BR45: 0 | BS45: 1 | BT45: - | BU45: 0 | BW45: 1 | BX45: 0 | BY45: 1 | BZ45: - | CA45: 1 | CC45: X | CD45: 0 | CE45: 1 | CF45: - | CG45: 1 | CI45: X | CJ45: 0 | CK45: 1 | CL45: - | CM45: 1 | CO45: X | CP45: 0 | CQ45: 1 | CR45: - | CS45: 0 | CU45: 1 | CV45: 0 | CW45: 1 | CX45: - | CY45: 1 | DA45: X | DB45: 0 | DC45: 1 | DD45: - | DE45: 2 | DG45: 2 | DH45: 0 | DI45: 2 | DJ45: - | DK45: 0 | DM45: 1 | DN45: 0 | DO45: 1 | DP45: - | DQ45: 1 | DS45: X | DT45: 0 | DU45: 0 | DV45: - | DW45: 1 | DY45: 2 | DZ45: 0 | EA45: 0 | EB45: - | EC45: 3 | EE45: 2 | EF45: 0 | EG45: 1 | EH45: - | EI45: 1 | EK45: X | EL45: 0 | EM45: 0 | EN45: - | EO45: 2 | EQ45: 2 | ER45: 0 | ES45: 1 | ET45: - | EU45: 1 | EW45: X | EX45: 0 | EY45: 2 | EZ45: - | FA45: 2 | FC45: X | FD45: 0 | FE45: 1 | FF45: - | FG45: 1 | FI45: X | FJ45: 0 | FK45: 2 | FL45: - | FM45: 1 | FO45: 1 | FP45: 0 | FQ45: 0 | FR45: - | FS45: 0 | FU45: X | FV45: 0 | FW45: 1 | FX45: - | FY45: 1 | GA45: X | GB45: 0 | GC45: 2 | GD45: - | GE45: 0 | GG45: 1 | GH45: 0 | GI45: 2 | GJ45: - | GK45: 0 | GM45: 1 | GN45: 0 | GO45: 2 | GP45: - | GQ45: 0 | GS45: 1 | GT45: 0 | GU45: 1 | GV45: - | GW45: 0 | GY45: 1 | GZ45: 0 | HA45: 0 | HB45: - | HC45: 0 | HE45: X | HF45: 0 | HG45: 3 | HH45: - | HI45: 1 | HK45: 1 | HL45: 0 | HM45: 1 | HN45: - | HO45: 0 | HQ45: 1 | HR45: 0 | HS45: 1 | HT45: - | HU45: 1 | HW45: X | HX45: 0 | HY45: 2 | HZ45: - | IA45: 1 | IC45: 1 | ID45: 0 | IE45: 1 | IF45: - | IG45: 2 | II45: 2 | IJ45: 0 | IK45: 1 | IL45: - | IM45: 0 | IO45: 1 | IP45: 0 | IQ45: 1 | IR45: - | IS45: 0 | IU45: 1 | IV45: 0 | IW45: 2 | IX45: - | IY45: 0 | JA45: 1 | JB45: 0 | JC45: 2 | JD45: - | JE45: 1 | JG45: 1 | JH45: 0 | JI45: 1 | JJ45: - | JK45: 1 | JM45: X | JN45: 0 | JO45: 2 | JP45: - | JQ45: 1 | JS45: 1 | JT45: 0 | JU45: 1 | JV45: - | JW45: 1 | JY45: X | JZ45: 0 | KA45: 2 | KB45: - | KC45: 3 | KE45: 2 | KF45: 0 | KG45: 6 | KH45: - | KI45: 6 | KK45: X | KL45: 0 | KM45: 2 | KN45: - | KO45: 0 | KQ45: 1 | KR45: 0 | KS45: 3 | KT45: - | KU45: 1 | KW45: 1 | KX45: 0 | KY45: 2 | KZ45: - | LA45: 0 | LC45: 1 | LD45: 0 | LE45: 0 | LF45: - | LG45: 1 | LI45: 2 | LJ45: 0 | LK45: 1 | LL45: - | LM45: 0 | LO45: 1 | LP45: 0 | LQ45: 1 | LR45: - | LS45: 3 | LU45: 2 | LV45: 0 | LW45: 1 | LX45: - | LY45: 2 | MA45: 2 | MB45: 0 | MC45: 2 | MD45: - | ME45: 2 | MG45: X | MH45: 0
A46: 2018-06-28 | B46: Kl 16.00 | C46: Japan | D46: - | E46: Polen | G46: - | J46: 0 | K46: 1 | L46: - | M46: 1 | O46: X | P46: 0 | Q46: 0 | R46: - | S46: 2 | U46: 2 | V46: 0 | W46: 0 | X46: - | Y46: 1 | AA46: 2 | AB46: 0 | AC46: 1 | AD46: - | AE46: 2 | AG46: 2 | AH46: 0 | AI46: 2 | AJ46: - | AK46: 0 | AM46: 1 | AN46: 0 | AO46: 0 | AP46: - | AQ46: 2 | AS46: 2 | AT46: 0 | AU46: 0 | AV46: - | AW46: 0 | AY46: X | AZ46: 0 | BA46: 1 | BB46: - | BC46: 1 | BE46: X | BF46: 0 | BG46: 1 | BH46: - | BI46: 1 | BK46: X | BL46: 0 | BM46: 2 | BN46: - | BO46: 1 | BQ46: 1 | BR46: 0 | BS46: 0 | BT46: - | BU46: 0 | BW46: X | BX46: 0 | BY46: 1 | BZ46: - | CA46: 1 | CC46: X | CD46: 0 | CE46: 2 | CF46: - | CG46: 1 | CI46: 1 | CJ46: 0 | CK46: 0 | CL46: - | CM46: 0 | CO46: X | CP46: 0 | CQ46: 2 | CR46: - | CS46: 2 | CU46: X | CV46: 0 | CW46: 1 | CX46: - | CY46: 1 | DA46: X | DB46: 0 | DC46: 1 | DD46: - | DE46: 0 | DG46: 1 | DH46: 0 | DI46: 0 | DJ46: - | DK46: 2 | DM46: 2 | DN46: 0 | DO46: 0 | DP46: - | DQ46: 1 | DS46: 2 | DT46: 0 | DU46: 0 | DV46: - | DW46: 1 | DY46: 2 | DZ46: 0 | EA46: 1 | EB46: - | EC46: 2 | EE46: 2 | EF46: 0 | EG46: 2 | EH46: - | EI46: 1 | EK46: 1 | EL46: 0 | EM46: 1 | EN46: - | EO46: 1 | EQ46: X | ER46: 0 | ES46: 0 | ET46: - | EU46: 2 | EW46: 2 | EX46: 0 | EY46: 1 | EZ46: - | FA46: 1 | FC46: X | FD46: 0 | FE46: 1 | FF46: - | FG46: 2 | FI46: 2 | FJ46: 0 | FK46: 0 | FL46: - | FM46: 1 | FO46: 2 | FP46: 0 | FQ46: 1 | FR46: - | FS46: 0 | FU46: 1 | FV46: 0 | FW46: 1 | FX46: - | FY46: 2 | GA46: 2 | GB46: 0 | GC46: 0 | GD46: - | GE46: 2 | GG46: 2 | GH46: 0 | GI46: 1 | GJ46: - | GK46: 2 | GM46: 2 | GN46: 0 | GO46: 1 | GP46: - | GQ46: 2 | GS46: 2 | GT46: 0 | GU46: 1 | GV46: - | GW46: 1 | GY46: X | GZ46: 0 | HA46: 1 | HB46: - | HC46: 1 | HE46: X | HF46: 0 | HG46: 2 | HH46: - | HI46: 3 | HK46: 2 | HL46: 0 | HM46: 0 | HN46: - | HO46: 2 | HQ46: 2 | HR46: 0 | HS46: 2 | HT46: - | HU46: 2 | HW46: X | HX46: 0 | HY46: 0 | HZ46: - | IA46: 1 | IC46: 2 | ID46: 0 | IE46: 1 | IF46: - | IG46: 0 | II46: 1 | IJ46: 0 | IK46: 2 | IL46: - | IM46: 2 | IO46: X | IP46: 0 | IQ46: 0 | IR46: - | IS46: 0 | IU46: X | IV46: 0 | IW46: 1 | IX46: - | IY46: 2 | JA46: 2 | JB46: 0 | JC46: 1 | JD46: - | JE46: 1 | JG46: X | JH46: 0 | JI46: 0 | JJ46: - | JK46: 1 | JM46: 2 | JN46: 0 | JO46: 3 | JP46: - | JQ46: 0 | JS46: 1 | JT46: 0 | JU46: 2 | JV46: - | JW46: 1 | JY46: 1 | JZ46: 0 | KA46: 6 | KB46: - | KC46: 1 | KE46: 1 | KF46: 0 | KG46: 5 | KH46: - | KI46: 3 | KK46: 1 | KL46: 0 | KM46: 2 | KN46: - | KO46: 2 | KQ46: X | KR46: 0 | KS46: 1 | KT46: - | KU46: 1 | KW46: X | KX46: 0 | KY46: 1 | KZ46: - | LA46: 1 | LC46: X | LD46: 0 | LE46: 0 | LF46: - | LG46: 1 | LI46: 2 | LJ46: 0 | LK46: 1 | LL46: - | LM46: 1 | LO46: X | LP46: 0 | LQ46: 1 | LR46: - | LS46: 3 | LU46: 2 | LV46: 0 | LW46: 0 | LX46: - | LY46: 1 | MA46: 2 | MB46: 0 | MC46: 1 | MD46: - | ME46: 1 | MG46: X | MH46: 0
A47: 2018-06-28 | B47: Kl 16.00 | C47: Senegal | D47: - | E47: Colombia | G47: - | J47: 0 | K47: 2 | L47: - | M47: 1 | O47: =IF(K47=M47,"X",IF(K47>M47,1,2)) -> 1 | P47: =IF($F47=K47,IF($H47=M47,5,IF($J47=O47,3,0)),IF($J47=O47,3,0)) -> 0 | Q47: 2 | R47: - | S47: 1 | U47: =IF(Q47=S47,"X",IF(Q47>S47,1,2)) -> 1 | V47: =IF($F47=Q47,IF($H47=S47,5,IF($J47=U47,3,0)),IF($J47=U47,3,0)) -> 0 | W47: 0 | X47: - | Y47: 1 | AA47: =IF(W47=Y47,"X",IF(W47>Y47,1,2)) -> 2 | AB47: =IF($F47=W47,IF($H47=Y47,5,IF($J47=AA47,3,0)),IF($J47=AA47,3,0)) -> 0 | AC47: 1 | AD47: - | AE47: 2 | AG47: =IF(AC47=AE47,"X",IF(AC47>AE47,1,2)) -> 2 | AH47: =IF($F47=AC47,IF($H47=AE47,5,IF($J47=AG47,3,0)),IF($J47=AG47,3,0)) -> 0 | AI47: 1 | AJ47: - | AK47: 2 | AM47: =IF(AI47=AK47,"X",IF(AI47>AK47,1,2)) -> 2 | AN47: =IF($F47=AI47,IF($H47=AK47,5,IF($J47=AM47,3,0)),IF($J47=AM47,3,0)) -> 0 | AO47: 0 | AP47: - | AQ47: 3 | AS47: =IF(AO47=AQ47,"X",IF(AO47>AQ47,1,2)) -> 2 | AT47: =IF($F47=AO47,IF($H47=AQ47,5,IF($J47=AS47,3,0)),IF($J47=AS47,3,0)) -> 0 | AU47: 3 | AV47: - | AW47: 0 | AY47: =IF(AU47=AW47,"X",IF(AU47>AW47,1,2)) -> 1 | AZ47: =IF($F47=AU47,IF($H47=AW47,5,IF($J47=AY47,3,0)),IF($J47=AY47,3,0)) -> 0 | BA47: 3 | BB47: - | BC47: 2 | BE47: =IF(BA47=BC47,"X",IF(BA47>BC47,1,2)) -> 1 | BF47: =IF($F47=BA47,IF($H47=BC47,5,IF($J47=BE47,3,0)),IF($J47=BE47,3,0)) -> 0 | BG47: 0 | BH47: - | BI47: 2 | BK47: =IF(BG47=BI47,"X",IF(BG47>BI47,1,2)) -> 2 | BL47: =IF($F47=BG47,IF($H47=BI47,5,IF($J47=BK47,3,0)),IF($J47=BK47,3,0)) -> 0 | BM47: 3 | BN47: - | BO47: 1 | BQ47: =IF(BM47=BO47,"X",IF(BM47>BO47,1,2)) -> 1 | BR47: =IF($F47=BM47,IF($H47=BO47,5,IF($J47=BQ47,3,0)),IF($J47=BQ47,3,0)) -> 0 | BS47: 1 | BT47: - | BU47: 1 | BW47: =IF(BS47=BU47,"X",IF(BS47>BU47,1,2)) -> X | BX47: =IF($F47=BS47,IF($H47=BU47,5,IF($J47=BW47,3,0)),IF($J47=BW47,3,0)) -> 0 | BY47: 1 | BZ47: - | CA47: 2 | CC47: =IF(BY47=CA47,"X",IF(BY47>CA47,1,2)) -> 2 | CD47: =IF($F47=BY47,IF($H47=CA47,5,IF($J47=CC47,3,0)),IF($J47=CC47,3,0)) -> 0 | CE47: 1 | CF47: - | CG47: 0 | CI47: =IF(CE47=CG47,"X",IF(CE47>CG47,1,2)) -> 1 | CJ47: =IF($F47=CE47,IF($H47=CG47,5,IF($J47=CI47,3,0)),IF($J47=CI47,3,0)) -> 0 | CK47: 1 | CL47: - | CM47: 2 | CO47: =IF(CK47=CM47,"X",IF(CK47>CM47,1,2)) -> 2 | CP47: =IF($F47=CK47,IF($H47=CM47,5,IF($J47=CO47,3,0)),IF($J47=CO47,3,0)) -> 0 | CQ47: 1 | CR47: - | CS47: 1 | CU47: =IF(CQ47=CS47,"X",IF(CQ47>CS47,1,2)) -> X | CV47: =IF($F47=CQ47,IF($H47=CS47,5,IF($J47=CU47,3,0)),IF($J47=CU47,3,0)) -> 0 | CW47: 1 | CX47: - | CY47: 2 | DA47: =IF(CW47=CY47,"X",IF(CW47>CY47,1,2)) -> 2 | DB47: =IF($F47=CW47,IF($H47=CY47,5,IF($J47=DA47,3,0)),IF($J47=DA47,3,0)) -> 0 | DC47: 1 | DD47: - | DE47: 1 | DG47: =IF(DC47=DE47,"X",IF(DC47>DE47,1,2)) -> X | DH47: =IF($F47=DC47,IF($H47=DE47,5,IF($J47=DG47,3,0)),IF($J47=DG47,3,0)) -> 0 | DI47: 0 | DJ47: - | DK47: 1 | DM47: =IF(DI47=DK47,"X",IF(DI47>DK47,1,2)) -> 2 | DN47: 0 | DO47: 0 | DP47: - | DQ47: 1 | DS47: =IF(DO47=DQ47,"X",IF(DO47>DQ47,1,2)) -> 2 | DT47: =IF($F47=DO47,IF($H47=DQ47,5,IF($J47=DS47,3,0)),IF($J47=DS47,3,0)) -> 0 | DU47: 1 | DV47: - | DW47: 1 | DY47: =IF(DU47=DW47,"X",IF(DU47>DW47,1,2)) -> X | DZ47: =IF($F47=DU47,IF($H47=DW47,5,IF($J47=DY47,3,0)),IF($J47=DY47,3,0)) -> 0 | EA47: 0 | EB47: - | EC47: 2 | EE47: =IF(EA47=EC47,"X",IF(EA47>EC47,1,2)) -> 2 | EF47: =IF($F47=EA47,IF($H47=EC47,5,IF($J47=EE47,3,0)),IF($J47=EE47,3,0)) -> 0 | EG47: 3 | EH47: - | EI47: 4 | EK47: =IF(EG47=EI47,"X",IF(EG47>EI47,1,2)) -> 2 | EL47: =IF($F47=EG47,IF($H47=EI47,5,IF($J47=EK47,3,0)),IF($J47=EK47,3,0)) -> 0 | EM47: 1 | EN47: - | EO47: 2 | EQ47: =IF(EM47=EO47,"X",IF(EM47>EO47,1,2)) -> 2 | ER47: =IF($F47=EM47,IF($H47=EO47,5,IF($J47=EQ47,3,0)),IF($J47=EQ47,3,0)) -> 0 | ES47: 1 | ET47: - | EU47: 1 | EW47: =IF(ES47=EU47,"X",IF(ES47>EU47,1,2)) -> X | EX47: =IF($F47=ES47,IF($H47=EU47,5,IF($J47=EW47,3,0)),IF($J47=EW47,3,0)) -> 0 | EY47: 0 | EZ47: - | FA47: 3 | FC47: =IF(EY47=FA47,"X",IF(EY47>FA47,1,2)) -> 2 | FD47: =IF($F47=EY47,IF($H47=FA47,5,IF($J47=FC47,3,0)),IF($J47=FC47,3,0)) -> 0 | FE47: 2 | FF47: - | FG47: 2 | FI47: =IF(FE47=FG47,"X",IF(FE47>FG47,1,2)) -> X | FJ47: =IF($F47=FE47,IF($H47=FG47,5,IF($J47=FI47,3,0)),IF($J47=FI47,3,0)) -> 0 | FK47: 2 | FL47: - | FM47: 1 | FO47: =IF(FK47=FM47,"X",IF(FK47>FM47,1,2)) -> 1 | FP47: =IF($F47=FK47,IF($H47=FM47,5,IF($J47=FO47,3,0)),IF($J47=FO47,3,0)) -> 0 | FQ47: 2 | FR47: - | FS47: 1 | FU47: =IF(FQ47=FS47,"X",IF(FQ47>FS47,1,2)) -> 1 | FV47: =IF($F47=FQ47,IF($H47=FS47,5,IF($J47=FU47,3,0)),IF($J47=FU47,3,0)) -> 0 | FW47: 1 | FX47: - | FY47: 1 | GA47: =IF(FW47=FY47,"X",IF(FW47>FY47,1,2)) -> X | GB47: =IF($F47=FW47,IF($H47=FY47,5,IF($J47=GA47,3,0)),IF($J47=GA47,3,0)) -> 0 | GC47: 0 | GD47: - | GE47: 1 | GG47: =IF(GC47=GE47,"X",IF(GC47>GE47,1,2)) -> 2 | GH47: =IF($F47=GC47,IF($H47=GE47,5,IF($J47=GG47,3,0)),IF($J47=GG47,3,0)) -> 0 | GI47: 0 | GJ47: - | GK47: 1 | GM47: =IF(GI47=GK47,"X",IF(GI47>GK47,1,2)) -> 2 | GN47: =IF($F47=GI47,IF($H47=GK47,5,IF($J47=GM47,3,0)),IF($J47=GM47,3,0)) -> 0 | GO47: 2 | GP47: - | GQ47: 0 | GS47: =IF(GO47=GQ47,"X",IF(GO47>GQ47,1,2)) -> 1 | GT47: =IF($F47=GO47,IF($H47=GQ47,5,IF($J47=GS47,3,0)),IF($J47=GS47,3,0)) -> 0 | GU47: 0 | GV47: - | GW47: 1 | GY47: =IF(GU47=GW47,"X",IF(GU47>GW47,1,2)) -> 2 | GZ47: =IF($F47=GU47,IF($H47=GW47,5,IF($J47=GY47,3,0)),IF($J47=GY47,3,0)) -> 0 | HA47: 1 | HB47: - | HC47: 2 | HE47: =IF(HA47=HC47,"X",IF(HA47>HC47,1,2)) -> 2 | HF47: =IF($F47=HA47,IF($H47=HC47,5,IF($J47=HE47,3,0)),IF($J47=HE47,3,0)) -> 0 | HG47: 1 | HH47: - | HI47: 3 | HK47: =IF(HG47=HI47,"X",IF(HG47>HI47,1,2)) -> 2 | HL47: =IF($F47=HG47,IF($H47=HI47,5,IF($J47=HK47,3,0)),IF($J47=HK47,3,0)) -> 0 | HM47: 1 | HN47: - | HO47: 2 | HQ47: =IF(HM47=HO47,"X",IF(HM47>HO47,1,2)) -> 2 | HR47: =IF($F47=HM47,IF($H47=HO47,5,IF($J47=HQ47,3,0)),IF($J47=HQ47,3,0)) -> 0 | HS47: 2 | HT47: - | HU47: 0 | HW47: =IF(HS47=HU47,"X",IF(HS47>HU47,1,2)) -> 1 | HX47: =IF($F47=HS47,IF($H47=HU47,5,IF($J47=HW47,3,0)),IF($J47=HW47,3,0)) -> 0 | HY47: 3 | HZ47: - | IA47: 0 | IC47: =IF(HY47=IA47,"X",IF(HY47>IA47,1,2)) -> 1 | ID47: =IF($F47=HY47,IF($H47=IA47,5,IF($J47=IC47,3,0)),IF($J47=IC47,3,0)) -> 0 | IE47: 0 | IF47: - | IG47: 3 | II47: =IF(IE47=IG47,"X",IF(IE47>IG47,1,2)) -> 2 | IJ47: =IF($F47=IE47,IF($H47=IG47,5,IF($J47=II47,3,0)),IF($J47=II47,3,0)) -> 0 | IK47: 1 | IL47: - | IM47: 1 | IO47: =IF(IK47=IM47,"X",IF(IK47>IM47,1,2)) -> X | IP47: =IF($F47=IK47,IF($H47=IM47,5,IF($J47=IO47,3,0)),IF($J47=IO47,3,0)) -> 0 | IQ47: 1 | IR47: - | IS47: 4 | IU47: =IF(IQ47=IS47,"X",IF(IQ47>IS47,1,2)) -> 2 | IV47: =IF($F47=IQ47,IF($H47=IS47,5,IF($J47=IU47,3,0)),IF($J47=IU47,3,0)) -> 0 | IW47: 1 | IX47: - | IY47: 1 | JA47: =IF(IW47=IY47,"X",IF(IW47>IY47,1,2)) -> X | JB47: =IF($F47=IW47,IF($H47=IY47,5,IF($J47=JA47,3,0)),IF($J47=JA47,3,0)) -> 0 | JC47: 0 | JD47: - | JE47: 2 | JG47: =IF(JC47=JE47,"X",IF(JC47>JE47,1,2)) -> 2 | JH47: =IF($F47=JC47,IF($H47=JE47,5,IF($J47=JG47,3,0)),IF($J47=JG47,3,0)) -> 0 | JI47: 1 | JJ47: - | JK47: 2 | JM47: =IF(JI47=JK47,"X",IF(JI47>JK47,1,2)) -> 2 | JN47: =IF($F47=JI47,IF($H47=JK47,5,IF($J47=JM47,3,0)),IF($J47=JM47,3,0)) -> 0 | JO47: 0 | JP47: - | JQ47: 0 | JS47: =IF(JO47=JQ47,"X",IF(JO47>JQ47,1,2)) -> X | JT47: =IF($F47=JO47,IF($H47=JQ47,5,IF($J47=JS47,3,0)),IF($J47=JS47,3,0)) -> 0 | JU47: 3 | JV47: - | JW47: 4 | JY47: =IF(JU47=JW47,"X",IF(JU47>JW47,1,2)) -> 2 | JZ47: =IF($F47=JU47,IF($H47=JW47,5,IF($J47=JY47,3,0)),IF($J47=JY47,3,0)) -> 0 | KA47: 4 | KB47: - | KC47: 4 | KE47: =IF(KA47=KC47,"X",IF(KA47>KC47,1,2)) -> X | KF47: =IF($F47=KA47,IF($H47=KC47,5,IF($J47=KE47,3,0)),IF($J47=KE47,3,0)) -> 0 | KG47: 3 | KH47: - | KI47: 2 | KK47: =IF(KG47=KI47,"X",IF(KG47>KI47,1,2)) -> 1 | KL47: =IF($F47=KG47,IF($H47=KI47,5,IF($J47=KK47,3,0)),IF($J47=KK47,3,0)) -> 0 | KM47: 1 | KN47: - | KO47: 1 | KQ47: =IF(KM47=KO47,"X",IF(KM47>KO47,1,2)) -> X | KR47: =IF($F47=KM47,IF($H47=KO47,5,IF($J47=KQ47,3,0)),IF($J47=KQ47,3,0)) -> 0 | KS47: 2 | KT47: - | KU47: 2 | KW47: =IF(KS47=KU47,"X",IF(KS47>KU47,1,2)) -> X | KX47: =IF($F47=KS47,IF($H47=KU47,5,IF($J47=KW47,3,0)),IF($J47=KW47,3,0)) -> 0 | KY47: 2 | KZ47: - | LA47: 2 | LC47: =IF(KY47=LA47,"X",IF(KY47>LA47,1,2)) -> X | LD47: =IF($F47=KY47,IF($H47=LA47,5,IF($J47=LC47,3,0)),IF($J47=LC47,3,0)) -> 0 | LE47: 0 | LF47: - | LG47: 3 | LI47: =IF(LE47=LG47,"X",IF(LE47>LG47,1,2)) -> 2 | LJ47: =IF($F47=LE47,IF($H47=LG47,5,IF($J47=LI47,3,0)),IF($J47=LI47,3,0)) -> 0 | LK47: 0 | LL47: - | LM47: 2 | LO47: =IF(LK47=LM47,"X",IF(LK47>LM47,1,2)) -> 2 | LP47: =IF($F47=LK47,IF($H47=LM47,5,IF($J47=LO47,3,0)),IF($J47=LO47,3,0)) -> 0 | LQ47: 2 | LR47: - | LS47: 0 | LU47: =IF(LQ47=LS47,"X",IF(LQ47>LS47,1,2)) -> 1 | LV47: =IF($F47=LQ47,IF($H47=LS47,5,IF($J47=LU47,3,0)),IF($J47=LU47,3,0)) -> 0 | LW47: 1 | LX47: - | LY47: 1 | MA47: =IF(LW47=LY47,"X",IF(LW47>LY47,1,2)) -> X | MB47: =IF($F47=LW47,IF($H47=LY47,5,IF($J47=MA47,3,0)),IF($J47=MA47,3,0)) -> 0 | MC47: 2 | MD47: - | ME47: 1 | MG47: =IF(MC47=ME47,"X",IF(MC47>ME47,1,2)) -> 1 | MH47: =IF($F47=MC47,IF($H47=ME47,5,IF($J47=MG47,3,0)),IF($J47=MG47,3,0)) -> 0
A48: 2018-06-28 | B48: Kl 20.00 | C48: Panama | D48: - | E48: Tunisien | G48: - | J48: 0 | K48: 0 | L48: - | M48: 1 | O48: 2 | P48: 0 | Q48: 1 | R48: - | S48: 2 | U48: 2 | V48: 0 | W48: 1 | X48: - | Y48: 1 | AA48: X | AB48: 0 | AC48: 0 | AD48: - | AE48: 2 | AG48: 2 | AH48: 0 | AI48: 0 | AJ48: - | AK48: 1 | AM48: 2 | AN48: 0 | AO48: 1 | AP48: - | AQ48: 1 | AS48: X | AT48: 0 | AU48: 0 | AV48: - | AW48: 1 | AY48: 2 | AZ48: 0 | BA48: 0 | BB48: - | BC48: 2 | BE48: 2 | BF48: 0 | BG48: 1 | BH48: - | BI48: 1 | BK48: X | BL48: 0 | BM48: 1 | BN48: - | BO48: 1 | BQ48: X | BR48: 0 | BS48: 0 | BT48: - | BU48: 2 | BW48: 2 | BX48: 0 | BY48: 0 | BZ48: - | CA48: 1 | CC48: 2 | CD48: 0 | CE48: 2 | CF48: - | CG48: 1 | CI48: 1 | CJ48: 0 | CK48: 0 | CL48: - | CM48: 0 | CO48: X | CP48: 0 | CQ48: 0 | CR48: - | CS48: 0 | CU48: X | CV48: 0 | CW48: 1 | CX48: - | CY48: 1 | DA48: X | DB48: 0 | DC48: 2 | DD48: - | DE48: 1 | DG48: 1 | DH48: 0 | DI48: 2 | DJ48: - | DK48: 2 | DM48: X | DN48: 0 | DO48: 2 | DP48: - | DQ48: 2 | DS48: X | DT48: 0 | DU48: 1 | DV48: - | DW48: 1 | DY48: X | DZ48: 0 | EA48: 1 | EB48: - | EC48: 1 | EE48: X | EF48: 0 | EG48: 1 | EH48: - | EI48: 3 | EK48: 2 | EL48: 0 | EM48: 2 | EN48: - | EO48: 1 | EQ48: 1 | ER48: 0 | ES48: 0 | ET48: - | EU48: 2 | EW48: 2 | EX48: 0 | EY48: 2 | EZ48: - | FA48: 3 | FC48: 2 | FD48: 0 | FE48: 0 | FF48: - | FG48: 3 | FI48: 2 | FJ48: 0 | FK48: 1 | FL48: - | FM48: 3 | FO48: 2 | FP48: 0 | FQ48: 1 | FR48: - | FS48: 1 | FU48: X | FV48: 0 | FW48: 1 | FX48: - | FY48: 2 | GA48: 2 | GB48: 0 | GC48: 1 | GD48: - | GE48: 2 | GG48: 2 | GH48: 0 | GI48: 0 | GJ48: - | GK48: 2 | GM48: 2 | GN48: 0 | GO48: 1 | GP48: - | GQ48: 2 | GS48: 2 | GT48: 0 | GU48: 0 | GV48: - | GW48: 0 | GY48: X | GZ48: 0 | HA48: 1 | HB48: - | HC48: 0 | HE48: 1 | HF48: 0 | HG48: 2 | HH48: - | HI48: 3 | HK48: 2 | HL48: 0 | HM48: 0 | HN48: - | HO48: 2 | HQ48: 2 | HR48: 0 | HS48: 2 | HT48: - | HU48: 2 | HW48: =IF(HS48=HU48,"X",IF(HS48>HU48,1,2)) -> X | HX48: =IF($F48=HS48,IF($H48=HU48,5,IF($J48=HW48,3,0)),IF($J48=HW48,3,0)) -> 0 | HY48: 1 | HZ48: - | IA48: 1 | IC48: =IF(HY48=IA48,"X",IF(HY48>IA48,1,2)) -> X | ID48: =IF($F48=HY48,IF($H48=IA48,5,IF($J48=IC48,3,0)),IF($J48=IC48,3,0)) -> 0 | IE48: 1 | IF48: - | IG48: 3 | II48: =IF(IE48=IG48,"X",IF(IE48>IG48,1,2)) -> 2 | IJ48: =IF($F48=IE48,IF($H48=IG48,5,IF($J48=II48,3,0)),IF($J48=II48,3,0)) -> 0 | IK48: 1 | IL48: - | IM48: 2 | IO48: =IF(IK48=IM48,"X",IF(IK48>IM48,1,2)) -> 2 | IP48: =IF($F48=IK48,IF($H48=IM48,5,IF($J48=IO48,3,0)),IF($J48=IO48,3,0)) -> 0 | IQ48: 1 | IR48: - | IS48: 1 | IU48: =IF(IQ48=IS48,"X",IF(IQ48>IS48,1,2)) -> X | IV48: =IF($F48=IQ48,IF($H48=IS48,5,IF($J48=IU48,3,0)),IF($J48=IU48,3,0)) -> 0 | IW48: 1 | IX48: - | IY48: 1 | JA48: =IF(IW48=IY48,"X",IF(IW48>IY48,1,2)) -> X | JB48: =IF($F48=IW48,IF($H48=IY48,5,IF($J48=JA48,3,0)),IF($J48=JA48,3,0)) -> 0 | JC48: 2 | JD48: - | JE48: 2 | JG48: =IF(JC48=JE48,"X",IF(JC48>JE48,1,2)) -> X | JH48: =IF($F48=JC48,IF($H48=JE48,5,IF($J48=JG48,3,0)),IF($J48=JG48,3,0)) -> 0 | JI48: 1 | JJ48: - | JK48: 1 | JM48: =IF(JI48=JK48,"X",IF(JI48>JK48,1,2)) -> X | JN48: =IF($F48=JI48,IF($H48=JK48,5,IF($J48=JM48,3,0)),IF($J48=JM48,3,0)) -> 0 | JO48: 2 | JP48: - | JQ48: 1 | JS48: =IF(JO48=JQ48,"X",IF(JO48>JQ48,1,2)) -> 1 | JT48: =IF($F48=JO48,IF($H48=JQ48,5,IF($J48=JS48,3,0)),IF($J48=JS48,3,0)) -> 0 | JU48: 1 | JV48: - | JW48: 3 | JY48: =IF(JU48=JW48,"X",IF(JU48>JW48,1,2)) -> 2 | JZ48: =IF($F48=JU48,IF($H48=JW48,5,IF($J48=JY48,3,0)),IF($J48=JY48,3,0)) -> 0 | KA48: 0 | KB48: - | KC48: 6 | KE48: =IF(KA48=KC48,"X",IF(KA48>KC48,1,2)) -> 2 | KF48: =IF($F48=KA48,IF($H48=KC48,5,IF($J48=KE48,3,0)),IF($J48=KE48,3,0)) -> 0 | KG48: 2 | KH48: - | KI48: 5 | KK48: =IF(KG48=KI48,"X",IF(KG48>KI48,1,2)) -> 2 | KL48: =IF($F48=KG48,IF($H48=KI48,5,IF($J48=KK48,3,0)),IF($J48=KK48,3,0)) -> 0 | KM48: 2 | KN48: - | KO48: 0 | KQ48: =IF(KM48=KO48,"X",IF(KM48>KO48,1,2)) -> 1 | KR48: =IF($F48=KM48,IF($H48=KO48,5,IF($J48=KQ48,3,0)),IF($J48=KQ48,3,0)) -> 0 | KS48: 1 | KT48: - | KU48: 0 | KW48: =IF(KS48=KU48,"X",IF(KS48>KU48,1,2)) -> 1 | KX48: =IF($F48=KS48,IF($H48=KU48,5,IF($J48=KW48,3,0)),IF($J48=KW48,3,0)) -> 0 | KY48: 0 | KZ48: - | LA48: 0 | LC48: =IF(KY48=LA48,"X",IF(KY48>LA48,1,2)) -> X | LD48: =IF($F48=KY48,IF($H48=LA48,5,IF($J48=LC48,3,0)),IF($J48=LC48,3,0)) -> 0 | LE48: 2 | LF48: - | LG48: 1 | LI48: =IF(LE48=LG48,"X",IF(LE48>LG48,1,2)) -> 1 | LJ48: =IF($F48=LE48,IF($H48=LG48,5,IF($J48=LI48,3,0)),IF($J48=LI48,3,0)) -> 0 | LK48: 0 | LL48: - | LM48: 0 | LO48: =IF(LK48=LM48,"X",IF(LK48>LM48,1,2)) -> X | LP48: =IF($F48=LK48,IF($H48=LM48,5,IF($J48=LO48,3,0)),IF($J48=LO48,3,0)) -> 0 | LQ48: 1 | LR48: - | LS48: 0 | LU48: =IF(LQ48=LS48,"X",IF(LQ48>LS48,1,2)) -> 1 | LV48: =IF($F48=LQ48,IF($H48=LS48,5,IF($J48=LU48,3,0)),IF($J48=LU48,3,0)) -> 0 | LW48: 1 | LX48: - | LY48: 1 | MA48: =IF(LW48=LY48,"X",IF(LW48>LY48,1,2)) -> X | MB48: =IF($F48=LW48,IF($H48=LY48,5,IF($J48=MA48,3,0)),IF($J48=MA48,3,0)) -> 0 | MC48: 3 | MD48: - | ME48: 2 | MG48: =IF(MC48=ME48,"X",IF(MC48>ME48,1,2)) -> 1 | MH48: =IF($F48=MC48,IF($H48=ME48,5,IF($J48=MG48,3,0)),IF($J48=MG48,3,0)) -> 0
A49: 2018-06-28 | B49: Kl 20.00 | C49: England | E49: Belgien | G49: - | J49: 0 | K49: 1 | L49: - | M49: 1 | O49: X | P49: =IF($F49=K49,IF($H49=M49,5,IF($J49=O49,3,0)),IF($J49=O49,3,0)) -> 0 | Q49: 2 | R49: - | S49: 1 | U49: 1 | V49: =IF($F49=Q49,IF($H49=S49,5,IF($J49=U49,3,0)),IF($J49=U49,3,0)) -> 0 | W49: 0 | X49: - | Y49: 1 | AA49: 2 | AB49: =IF($F49=W49,IF($H49=Y49,5,IF($J49=AA49,3,0)),IF($J49=AA49,3,0)) -> 0 | AC49: 3 | AD49: - | AE49: 1 | AG49: 1 | AH49: =IF($F49=AC49,IF($H49=AE49,5,IF($J49=AG49,3,0)),IF($J49=AG49,3,0)) -> 0 | AI49: 0 | AJ49: - | AK49: 1 | AM49: 2 | AN49: =IF($F49=AI49,IF($H49=AK49,5,IF($J49=AM49,3,0)),IF($J49=AM49,3,0)) -> 0 | AO49: 3 | AP49: - | AQ49: 1 | AS49: 1 | AT49: =IF($F49=AO49,IF($H49=AQ49,5,IF($J49=AS49,3,0)),IF($J49=AS49,3,0)) -> 0 | AU49: 0 | AV49: - | AW49: 3 | AY49: 2 | AZ49: =IF($F49=AU49,IF($H49=AW49,5,IF($J49=AY49,3,0)),IF($J49=AY49,3,0)) -> 0 | BA49: 0 | BB49: - | BC49: 2 | BE49: 2 | BF49: =IF($F49=BA49,IF($H49=BC49,5,IF($J49=BE49,3,0)),IF($J49=BE49,3,0)) -> 0 | BG49: 1 | BH49: - | BI49: 1 | BK49: X | BL49: =IF($F49=BG49,IF($H49=BI49,5,IF($J49=BK49,3,0)),IF($J49=BK49,3,0)) -> 0 | BM49: 3 | BN49: - | BO49: 1 | BQ49: 1 | BR49: =IF($F49=BM49,IF($H49=BO49,5,IF($J49=BQ49,3,0)),IF($J49=BQ49,3,0)) -> 0 | BS49: 0 | BT49: - | BU49: 0 | BW49: X | BX49: =IF($F49=BS49,IF($H49=BU49,5,IF($J49=BW49,3,0)),IF($J49=BW49,3,0)) -> 0 | BY49: 2 | BZ49: - | CA49: 1 | CC49: 1 | CD49: =IF($F49=BY49,IF($H49=CA49,5,IF($J49=CC49,3,0)),IF($J49=CC49,3,0)) -> 0 | CE49: 2 | CF49: - | CG49: 1 | CI49: 1 | CJ49: =IF($F49=CE49,IF($H49=CG49,5,IF($J49=CI49,3,0)),IF($J49=CI49,3,0)) -> 0 | CK49: 3 | CL49: - | CM49: 1 | CO49: 1 | CP49: =IF($F49=CK49,IF($H49=CM49,5,IF($J49=CO49,3,0)),IF($J49=CO49,3,0)) -> 0 | CQ49: 4 | CR49: - | CS49: 1 | CU49: 1 | CV49: =IF($F49=CQ49,IF($H49=CS49,5,IF($J49=CU49,3,0)),IF($J49=CU49,3,0)) -> 0 | CW49: 2 | CX49: - | CY49: 1 | DA49: 1 | DB49: =IF($F49=CW49,IF($H49=CY49,5,IF($J49=DA49,3,0)),IF($J49=DA49,3,0)) -> 0 | DC49: 1 | DD49: - | DE49: 1 | DG49: X | DH49: =IF($F49=DC49,IF($H49=DE49,5,IF($J49=DG49,3,0)),IF($J49=DG49,3,0)) -> 0 | DI49: 1 | DJ49: - | DK49: 1 | DM49: X | DN49: 0 | DO49: 2 | DP49: - | DQ49: 3 | DS49: 2 | DT49: =IF($F49=DO49,IF($H49=DQ49,5,IF($J49=DS49,3,0)),IF($J49=DS49,3,0)) -> 0 | DU49: 2 | DV49: - | DW49: 2 | DY49: X | DZ49: =IF($F49=DU49,IF($H49=DW49,5,IF($J49=DY49,3,0)),IF($J49=DY49,3,0)) -> 0 | EA49: 2 | EB49: - | EC49: 1 | EE49: 1 | EF49: =IF($F49=EA49,IF($H49=EC49,5,IF($J49=EE49,3,0)),IF($J49=EE49,3,0)) -> 0 | EG49: 1 | EH49: - | EI49: 2 | EK49: 2 | EL49: =IF($F49=EG49,IF($H49=EI49,5,IF($J49=EK49,3,0)),IF($J49=EK49,3,0)) -> 0 | EM49: 3 | EN49: - | EO49: 1 | EQ49: 1 | ER49: =IF($F49=EM49,IF($H49=EO49,5,IF($J49=EQ49,3,0)),IF($J49=EQ49,3,0)) -> 0 | ES49: 1 | ET49: - | EU49: 3 | EW49: 2 | EX49: =IF($F49=ES49,IF($H49=EU49,5,IF($J49=EW49,3,0)),IF($J49=EW49,3,0)) -> 0 | EY49: 2 | EZ49: - | FA49: 2 | FC49: X | FD49: =IF($F49=EY49,IF($H49=FA49,5,IF($J49=FC49,3,0)),IF($J49=FC49,3,0)) -> 0 | FE49: 1 | FF49: - | FG49: 1 | FI49: X | FJ49: =IF($F49=FE49,IF($H49=FG49,5,IF($J49=FI49,3,0)),IF($J49=FI49,3,0)) -> 0 | FK49: 2 | FL49: - | FM49: 1 | FO49: 1 | FP49: =IF($F49=FK49,IF($H49=FM49,5,IF($J49=FO49,3,0)),IF($J49=FO49,3,0)) -> 0 | FQ49: 1 | FR49: - | FS49: 2 | FU49: 2 | FV49: =IF($F49=FQ49,IF($H49=FS49,5,IF($J49=FU49,3,0)),IF($J49=FU49,3,0)) -> 0 | FW49: 1 | FX49: - | FY49: 2 | GA49: 2 | GB49: =IF($F49=FW49,IF($H49=FY49,5,IF($J49=GA49,3,0)),IF($J49=GA49,3,0)) -> 0 | GC49: 1 | GD49: - | GE49: 2 | GG49: 2 | GH49: =IF($F49=GC49,IF($H49=GE49,5,IF($J49=GG49,3,0)),IF($J49=GG49,3,0)) -> 0 | GI49: 1 | GJ49: - | GK49: 2 | GM49: 2 | GN49: =IF($F49=GI49,IF($H49=GK49,5,IF($J49=GM49,3,0)),IF($J49=GM49,3,0)) -> 0 | GO49: 1 | GP49: - | GQ49: 1 | GS49: X | GT49: =IF($F49=GO49,IF($H49=GQ49,5,IF($J49=GS49,3,0)),IF($J49=GS49,3,0)) -> 0 | GU49: 1 | GV49: - | GW49: 1 | GY49: X | GZ49: =IF($F49=GU49,IF($H49=GW49,5,IF($J49=GY49,3,0)),IF($J49=GY49,3,0)) -> 0 | HA49: 1 | HB49: - | HC49: 1 | HE49: X | HF49: =IF($F49=HA49,IF($H49=HC49,5,IF($J49=HE49,3,0)),IF($J49=HE49,3,0)) -> 0 | HG49: 4 | HH49: - | HI49: 2 | HK49: 1 | HL49: =IF($F49=HG49,IF($H49=HI49,5,IF($J49=HK49,3,0)),IF($J49=HK49,3,0)) -> 0 | HM49: 1 | HN49: - | HO49: 1 | HQ49: X | HR49: =IF($F49=HM49,IF($H49=HO49,5,IF($J49=HQ49,3,0)),IF($J49=HQ49,3,0)) -> 0 | HS49: 2 | HT49: - | HU49: 1 | HW49: 1 | HX49: =IF($F49=HS49,IF($H49=HU49,5,IF($J49=HW49,3,0)),IF($J49=HW49,3,0)) -> 0 | HY49: 3 | HZ49: - | IA49: 0 | IC49: 1 | ID49: =IF($F49=HY49,IF($H49=IA49,5,IF($J49=IC49,3,0)),IF($J49=IC49,3,0)) -> 0 | IE49: 0 | IF49: - | IG49: 2 | II49: 2 | IJ49: =IF($F49=IE49,IF($H49=IG49,5,IF($J49=II49,3,0)),IF($J49=II49,3,0)) -> 0 | IK49: 1 | IL49: - | IM49: 2 | IO49: 2 | IP49: =IF($F49=IK49,IF($H49=IM49,5,IF($J49=IO49,3,0)),IF($J49=IO49,3,0)) -> 0 | IQ49: 1 | IR49: - | IS49: 0 | IU49: 1 | IV49: =IF($F49=IQ49,IF($H49=IS49,5,IF($J49=IU49,3,0)),IF($J49=IU49,3,0)) -> 0 | IW49: 1 | IX49: - | IY49: 1 | JA49: X | JB49: =IF($F49=IW49,IF($H49=IY49,5,IF($J49=JA49,3,0)),IF($J49=JA49,3,0)) -> 0 | JC49: 2 | JD49: - | JE49: 1 | JG49: 1 | JH49: =IF($F49=JC49,IF($H49=JE49,5,IF($J49=JG49,3,0)),IF($J49=JG49,3,0)) -> 0 | JI49: 1 | JJ49: - | JK49: 2 | JM49: 2 | JN49: =IF($F49=JI49,IF($H49=JK49,5,IF($J49=JM49,3,0)),IF($J49=JM49,3,0)) -> 0 | JO49: 2 | JP49: - | JQ49: 0 | JS49: 1 | JT49: =IF($F49=JO49,IF($H49=JQ49,5,IF($J49=JS49,3,0)),IF($J49=JS49,3,0)) -> 0 | JU49: 1 | JV49: - | JW49: 2 | JY49: 2 | JZ49: =IF($F49=JU49,IF($H49=JW49,5,IF($J49=JY49,3,0)),IF($J49=JY49,3,0)) -> 0 | KA49: 2 | KB49: - | KC49: 2 | KE49: X | KF49: =IF($F49=KA49,IF($H49=KC49,5,IF($J49=KE49,3,0)),IF($J49=KE49,3,0)) -> 0 | KG49: 3 | KH49: - | KI49: 3 | KK49: X | KL49: =IF($F49=KG49,IF($H49=KI49,5,IF($J49=KK49,3,0)),IF($J49=KK49,3,0)) -> 0 | KM49: 2 | KN49: - | KO49: 1 | KQ49: 1 | KR49: =IF($F49=KM49,IF($H49=KO49,5,IF($J49=KQ49,3,0)),IF($J49=KQ49,3,0)) -> 0 | KS49: 3 | KT49: - | KU49: 2 | KW49: 1 | KX49: =IF($F49=KS49,IF($H49=KU49,5,IF($J49=KW49,3,0)),IF($J49=KW49,3,0)) -> 0 | KY49: 0 | KZ49: - | LA49: 0 | LC49: X | LD49: =IF($F49=KY49,IF($H49=LA49,5,IF($J49=LC49,3,0)),IF($J49=LC49,3,0)) -> 0 | LE49: 1 | LF49: - | LG49: 1 | LI49: X | LJ49: =IF($F49=LE49,IF($H49=LG49,5,IF($J49=LI49,3,0)),IF($J49=LI49,3,0)) -> 0 | LK49: 1 | LL49: - | LM49: 2 | LO49: 2 | LP49: =IF($F49=LK49,IF($H49=LM49,5,IF($J49=LO49,3,0)),IF($J49=LO49,3,0)) -> 0 | LQ49: 2 | LR49: - | LS49: 0 | LU49: 1 | LV49: =IF($F49=LQ49,IF($H49=LS49,5,IF($J49=LU49,3,0)),IF($J49=LU49,3,0)) -> 0 | LW49: 1 | LX49: - | LY49: 2 | MA49: 2 | MB49: =IF($F49=LW49,IF($H49=LY49,5,IF($J49=MA49,3,0)),IF($J49=MA49,3,0)) -> 0 | MC49: 3 | MD49: - | ME49: 1 | MG49: 1 | MH49: =IF($F49=MC49,IF($H49=ME49,5,IF($J49=MG49,3,0)),IF($J49=MG49,3,0)) -> 0
K50: Argentina | O50: 1 | P50: =IF($F50=K50,10,0) -> 0 | Q50: Tyskland | U50: =IF(Q50=S50,"X",IF(Q50>S50,1,2)) -> 1 | V50: =IF($F50=Q50,10,0) -> 0 | W50: Tyskland | AA50: =IF(W50=Y50,"X",IF(W50>Y50,1,2)) -> 1 | AB50: =IF($F50=W50,10,0) -> 0 | AC50: Frankrike | AG50: 1 | AH50: =IF($F50=AC50,10,0) -> 0 | AI50: Brasilien | AM50: 1 | AN50: =IF($F50=AI50,10,0) -> 0 | AO50: Frankrike | AS50: 1 | AT50: =IF($F50=AO50,10,0) -> 0 | AU50: Tyskland | AY50: 1 | AZ50: =IF($F50=AU50,10,0) -> 0 | BA50: Tyskland | BE50: 1 | BF50: =IF($F50=BA50,10,0) -> 0 | BG50: Brasilien | BK50: 1 | BL50: =IF($F50=BG50,10,0) -> 0 | BM50: Tyskland | BQ50: 1 | BR50: =IF($F50=BM50,10,0) -> 0 | BS50: Frankrike | BW50: 1 | BX50: =IF($F50=BS50,10,0) -> 0 | BY50: Tyskland | CC50: 1 | CD50: =IF($F50=BY50,10,0) -> 0 | CE50: Spanien | CI50: 1 | CJ50: =IF($F50=CE50,10,0) -> 0 | CK50: Tyskland | CO50: 1 | CP50: =IF($F50=CK50,10,0) -> 0 | CQ50: Argentina | CU50: 1 | CV50: =IF($F50=CQ50,10,0) -> 0 | CW50: Spanien | DA50: 1 | DB50: =IF($F50=CW50,10,0) -> 0 | DC50: Tyskland | DG50: 1 | DH50: =IF($F50=DC50,10,0) -> 0 | DI50: Frankrike | DM50: 1 | DN50: =IF($F50=DI50,10,0) -> 0 | DO50: England | DS50: 1 | DT50: =IF($F50=DO50,10,0) -> 0 | DU50: Frankrike | DY50: 1 | DZ50: =IF($F50=DU50,10,0) -> 0 | EA50: Frankrike | EE50: 1 | EF50: =IF($F50=EA50,10,0) -> 0 | EG50: Tyskland | EK50: 1 | EL50: =IF($F50=EG50,10,0) -> 0 | EM50: Sverige | EQ50: 1 | ER50: =IF($F50=EM50,10,0) -> 0 | ES50: Tyskland | EW50: 1 | EX50: =IF($F50=ES50,10,0) -> 0 | EY50: Tyskland | FC50: 1 | FD50: =IF($F50=EY50,10,0) -> 0 | FE50: Belgien | FI50: 1 | FJ50: =IF($F50=FE50,10,0) -> 0 | FK50: Tyskland | FO50: 1 | FP50: =IF($F50=FK50,10,0) -> 0 | FQ50: Belgien | FU50: 1 | FV50: =IF($F50=FQ50,10,0) -> 0 | FW50: Belgien | GA50: 1 | GB50: =IF($F50=FW50,10,0) -> 0 | GC50: Tyskland | GG50: 1 | GH50: =IF($F50=GC50,10,0) -> 0 | GI50: Tyskalnd | GM50: 1 | GN50: =IF($F50=GI50,10,0) -> 0 | GO50: Tyskland | GS50: 1 | GT50: =IF($F50=GO50,10,0) -> 0 | GU50: Brasilien | GY50: 1 | GZ50: =IF($F50=GU50,10,0) -> 0 | HA50: Frankrike | HE50: 1 | HF50: =IF($F50=HA50,10,0) -> 0 | HG50: Tyskland | HK50: 1 | HL50: =IF($F50=HG50,10,0) -> 0 | HM50: Argentina | HQ50: 1 | HR50: =IF($F50=HM50,10,0) -> 0 | HS50: Danmark | HW50: 1 | HX50: =IF($F50=HS50,10,0) -> 0 | HY50: Tyskland | IC50: 1 | ID50: =IF($F50=HY50,10,0) -> 0 | IE50: Argentina | II50: 1 | IJ50: =IF($F50=IE50,10,0) -> 0 | IK50: Spanien | IO50: 1 | IP50: =IF($F50=IK50,10,0) -> 0 | IQ50: Spanien | IU50: 1 | IV50: =IF($F50=IQ50,10,0) -> 0 | IW50: Argentina | JA50: 1 | JB50: =IF($F50=IW50,10,0) -> 0 | JC50: Spanien | JG50: 1 | JH50: =IF($F50=JC50,10,0) -> 0 | JI50: Tyskland | JM50: 1 | JN50: =IF($F50=JI50,10,0) -> 0 | JO50: Tyskalnd | JS50: 1 | JT50: =IF($F50=JO50,10,0) -> 0 | JU50: Frankrike | JY50: 1 | JZ50: =IF($F50=JU50,10,0) -> 0 | KA50: Mexico | KE50: 1 | KF50: =IF($F50=KA50,10,0) -> 0 | KG50: Sverige | KK50: 1 | KL50: =IF($F50=KG50,10,0) -> 0 | KM50: Sverige | KQ50: 1 | KR50: =IF($F50=KM50,10,0) -> 0 | KS50: Tyskland | KW50: 1 | KX50: =IF($F50=KS50,10,0) -> 0 | KY50: Tyskland | LC50: 1 | LD50: =IF($F50=KY50,10,0) -> 0 | LE50: Portugal | LI50: 1 | LJ50: =IF($F50=LE50,10,0) -> 0 | LK50: Brasilien | LO50: 1 | LP50: =IF($F50=LK50,10,0) -> 0 | LQ50: Brasilien | LU50: 1 | LV50: =IF($F50=LQ50,10,0) -> 0 | LW50: Tyskland | MA50: 1 | MB50: =IF($F50=LW50,10,0) -> 0 | MC50: Spanien | MG50: 1 | MH50: =IF($F50=MC50,10,0) -> 0
K51: =K1 -> Christian | P51: =SUM(P2:P50) -> 11 | Q51: =Q1 -> Manfreed | V51: =SUM(V2:V50) -> 3 | W51: =W1 -> Jessica | AB51: =SUM(AB2:AB50) -> 8 | AC51: =AC1 -> Mia E | AH51: =SUM(AH2:AH50) -> 9 | AI51: =AI1 -> Till minne av Esbjörn | AN51: =SUM(AN2:AN50) -> 8 | AO51: =AO1 -> Lars L | AT51: =SUM(AT2:AT50) -> 11 | AU51: =AU1 -> Roger W | AZ51: =SUM(AZ2:AZ50) -> 6 | BA51: =BA1 -> Roger W 2 | BF51: =SUM(BF2:BF50) -> 6 | BG51: =BG1 -> Tommy T 1 | BL51: =SUM(BL2:BL50) -> 9 | BM51: =BM1 -> Tommy T 2 | BR51: =SUM(BR2:BR50) -> 14 | BS51: =BS1 -> Tommy T 3 | BX51: =SUM(BX2:BX50) -> 3 | BY51: =BY1 -> Reino | CD51: =SUM(CD2:CD50) -> 9 | CE51: =CE1 -> Lars Haglund | CJ51: =SUM(CJ2:CJ50) -> 6 | CK51: =CK1 -> Bo Fransson | CP51: =SUM(CP2:CP50) -> 3 | CQ51: =CQ1 -> Arne E | CV51: =SUM(CV2:CV50) -> 6 | CW51: =CW1 -> Jonny E | DB51: =SUM(DB2:DB50) -> 9 | DC51: =DC1 -> Jonte | DH51: =SUM(DH2:DH50) -> 6 | DI51: =DI1 -> Mats-ola | DN51: =SUM(DN2:DN50) -> 11 | DO51: =DO1 -> Mika | DT51: =SUM(DT2:DT50) -> 3 | DU51: =DU1 -> Romee | DZ51: =SUM(DZ2:DZ50) -> 9 | EA51: =EA1 -> Anitha | EF51: =SUM(EF2:EF50) -> 12 | EG51: =EG1 -> Ludde | EL51: =SUM(EL2:EL50) -> 11 | EM51: =EM1 -> Jonas M | ER51: =SUM(ER2:ER50) -> 6 | ES51: =ES1 -> Johan G | EX51: =SUM(EX2:EX50) -> 6 | EY51: =EY1 -> Pernilla | FD51: =SUM(FD2:FD50) -> 14 | FE51: =FE1 -> Christer 1 | FJ51: =SUM(FJ2:FJ50) -> 0 | FK51: =FK1 -> Christer 2 | FP51: =SUM(FP2:FP50) -> 9 | FQ51: =FQ1 -> Tina | FV51: =SUM(FV2:FV50) -> 9 | FW51: =FW1 -> Monika A | GB51: =SUM(GB2:GB50) -> 9 | GC51: =GC1 -> Edvin A | GH51: =SUM(GH2:GH50) -> 6 | GI51: =GI1 -> Gustav | GN51: =SUM(GN2:GN50) -> 8 | GO51: =GO1 -> Torvald | GT51: =SUM(GT2:GT50) -> 9 | GU51: =GU1 -> Stefan L | GZ51: =SUM(GZ2:GZ50) -> 9 | HA51: =HA1 -> Dick W1 | HF51: =SUM(HF2:HF50) -> 6 | HG51: =HG1 -> Dick W2 | HL51: =SUM(HL2:HL50) -> 6 | HM51: =HM1 -> Bo Jansson | HR51: =SUM(HR2:HR50) -> 6 | HS51: =HS1 -> Lennart C1 | HX51: =SUM(HX2:HX50) -> 9 | HY51: =HY1 -> Lennart C2 | ID51: =SUM(ID2:ID50) -> 0 | IE51: =IE1 -> Lennart C3 | IJ51: =SUM(IJ2:IJ50) -> 6 | IK51: =IK1 -> Sonny | IP51: =SUM(IP2:IP50) -> 6 | IQ51: =IQ1 -> Jappe | IV51: =SUM(IV2:IV50) -> 3 | IW51: =IW1 -> Hans Modh | JB51: =SUM(JB2:JB50) -> 11 | JC51: =JC1 -> Monica Modh | JH51: =SUM(JH2:JH50) -> 6 | JI51: =JI1 -> Gille | JN51: =SUM(JN2:JN50) -> 3 | JO51: =JO1 -> Andreas | JT51: =SUM(JT2:JT50) -> 9 | JU51: =JU1 -> Ludde 2 | JZ51: =SUM(JZ2:JZ50) -> 11 | KA51: =KA1 -> Alf B | KF51: =SUM(KF2:KF50) -> 6 | KG51: =KG1 -> Maria I | KL51: =SUM(KL2:KL50) -> 3 | KM51: =KM1 -> Anne-Marie I | KR51: =SUM(KR2:KR50) -> 6 | KS51: =KS1 -> Lars, Kjell, Rolf | KX51: =SUM(KX2:KX50) -> 6 | KY51: =KY1 -> Jan E | LD51: =SUM(LD2:LD50) -> 8 | LE51: =LE1 -> Rune Tjotta | LJ51: =SUM(LJ2:LJ50) -> 9 | LK51: =LK1 -> Wiking | LP51: =SUM(LP2:LP50) -> 8 | LQ51: =LQ1 -> Janne L | LV51: =SUM(LV2:LV50) -> 6 | LW51: =LW1 -> Eva W | MB51: =SUM(MB2:MB50) -> 3 | MC51: =MC1 -> Emma | MH51: =SUM(MH2:MH50) -> 8
M52: =K51 -> Christian | N52: =L51 -> 0 | O52: 0 | P52: 0 | Q52: 0 | R52: 11 | S52: Manfreed | T52: 0 | U52: 0 | V52: 0 | W52: 0 | X52: 3 | Y52: Jessica | Z52: 0 | AA52: 0 | AB52: 0 | AC52: 0 | AD52: 8 | AE52: Mia E | AF52: 0 | AG52: 0 | AH52: 0 | AI52: 0 | AJ52: 9 | AK52: Till minne av Esbjörn | AL52: 0 | AM52: 0 | AN52: 0 | AO52: 0 | AP52: 8 | AQ52: Lars L | AR52: 0 | AS52: 0 | AT52: 0 | AU52: 0 | AV52: 11 | AW52: Roger W | AX52: 0 | AY52: 0 | AZ52: 0 | BA52: 0 | BB52: 6 | BC52: Roger W 2 | BD52: 0 | BE52: 0 | BF52: 0 | BG52: 0 | BH52: 6 | BI52: Tommy T 1 | BJ52: 0 | BK52: 0 | BL52: 0 | BM52: 0 | BN52: 9 | BO52: Tommy T 2 | BP52: 0 | BQ52: 0 | BR52: 0 | BS52: 0 | BT52: 14 | BU52: Tommy T 3 | BV52: 0 | BW52: 0 | BX52: 0 | BY52: 0 | BZ52: =BX51 -> 3 | CA52: Reino | CB52: 0 | CC52: 0 | CD52: 0 | CE52: 0 | CF52: 9 | CG52: Lars Haglund | CH52: 0 | CI52: 0 | CJ52: 0 | CK52: 0 | CL52: 6 | CM52: Bo Fransson | CN52: 0 | CO52: 0 | CP52: 0 | CQ52: 0 | CR52: 3 | CS52: Arne E | CT52: 0 | CU52: 0 | CV52: 0 | CW52: 0 | CX52: 6 | CY52: Jonny E | CZ52: 0 | DA52: 0 | DB52: 0 | DC52: 0 | DD52: 9 | DE52: Jonte | DF52: 0 | DG52: 0 | DH52: 0 | DI52: 0 | DJ52: 6 | DK52: Mats-ola | DL52: 0 | DM52: 0 | DN52: 3 | DO52: 0 | DP52: 11 | DQ52: Mika | DR52: 0 | DS52: 0 | DT52: 0 | DU52: 0 | DV52: 3 | DW52: Romee | DX52: 0 | DY52: 0 | DZ52: 0 | EA52: 0 | EB52: 9 | EC52: Anitha | ED52: 0 | EE52: 0 | EF52: 0 | EG52: 0 | EH52: 12 | EI52: Ludde | EJ52: 0 | EK52: 0 | EL52: =EJ51 -> 0 | EM52: 0 | EN52: 11 | EO52: Jonas M | EP52: 0 | EQ52: 0 | ER52: 0 | ES52: 0 | ET52: 6 | EU52: Johan G | EV52: 0 | EW52: 0 | EX52: 0 | EY52: 0 | EZ52: 6 | FA52: Pernilla | FB52: 0 | FC52: 0 | FD52: 0 | FE52: 0 | FF52: 14 | FG52: Christer 1 | FH52: 0 | FI52: 0 | FJ52: 0 | FK52: 0 | FL52: 0 | FM52: Christer 2 | FN52: 0 | FO52: 0 | FP52: 0 | FQ52: 0 | FR52: 9 | FS52: Tina | FT52: 0 | FU52: 0 | FV52: 0 | FW52: 0 | FX52: 9 | FY52: Monika A | FZ52: 0 | GA52: 0 | GB52: 0 | GC52: 0 | GD52: 9 | GE52: Edvin A | GF52: 0 | GG52: 0 | GH52: 0 | GI52: 0 | GJ52: 6 | GK52: Gustav | GL52: 0 | GM52: 0 | GN52: 0 | GO52: 0 | GP52: 8 | GQ52: Torvald | GR52: 0 | GS52: 0 | GT52: 0 | GU52: 0 | GV52: 9 | GW52: Stefan L | GX52: =GV51 -> 0 | GY52: 0 | GZ52: 0 | HA52: 0 | HB52: 9 | HC52: Dick W1 | HD52: 0 | HE52: 0 | HF52: 0 | HG52: 0 | HH52: 6 | HI52: Dick W2 | HJ52: 0 | HK52: 0 | HL52: 0 | HM52: 0 | HN52: 6 | HO52: Bo Jansson | HP52: 0 | HQ52: 0 | HR52: 0 | HS52: =HQ51 -> 0 | HT52: =HR51 -> 6 | HU52: =HS51 -> Lennart C1 | HV52: =HT51 -> 0 | HW52: =HU51 -> 0 | HX52: =HV51 -> 0 | HY52: =HW51 -> 0 | HZ52: =HX51 -> 9 | IA52: =HY51 -> Lennart C2 | IB52: =HZ51 -> 0 | IC52: =IA51 -> 0 | ID52: =IB51 -> 0 | IE52: =IC51 -> 0 | IF52: =ID51 -> 0 | IG52: =IE51 -> Lennart C3 | IH52: =IF51 -> 0 | II52: =IG51 -> 0 | IJ52: =IH51 -> 0 | IK52: =II51 -> 0 | IL52: =IJ51 -> 6 | IM52: =IK51 -> Sonny | IN52: =IL51 -> 0 | IO52: =IM51 -> 0 | IP52: =IN51 -> 0 | IQ52: =IO51 -> 0 | IR52: 6 | IS52: Jappe | IT52: 0 | IU52: 0 | IV52: 0 | IW52: =IU51 -> 0 | IX52: =IV51 -> 3 | IY52: =IW51 -> Hans Modh | IZ52: =IX51 -> 0 | JA52: =IY51 -> 0 | JB52: =IZ51 -> 0 | JC52: =JA51 -> 0 | JD52: 11 | JE52: Monica Modh | JF52: 0 | JG52: 0 | JH52: 0 | JI52: 0 | JJ52: 6 | JK52: Gille | JL52: 0 | JM52: 0 | JN52: 0 | JO52: 0 | JP52: 3 | JQ52: Andreas | JR52: 0 | JS52: 0 | JT52: 0 | JU52: 0 | JV52: 9 | JW52: Ludde 2 | JX52: 0 | JY52: 0 | JZ52: 0 | KA52: 0 | KB52: 11 | KC52: Alf B | KD52: 0 | KE52: 0 | KF52: 0 | KG52: 0 | KH52: 6 | KI52: Maria I | KJ52: 0 | KK52: 0 | KL52: 0 | KM52: 0 | KN52: 3 | KO52: Anne-Marie I | KP52: 0 | KQ52: 0 | KR52: 0 | KS52: 0 | KT52: 6 | KU52: Lars, Kjell, Rolf | KV52: 0 | KW52: 0 | KX52: 0 | KY52: 0 | KZ52: 6 | LA52: Jan E | LB52: 0 | LC52: 0 | LD52: 0 | LE52: 0 | LF52: 8 | LG52: Rune Tjotta | LH52: 0 | LI52: 0 | LJ52: =LH51 -> 0 | LK52: 0 | LL52: 9 | LM52: Wiking | LN52: 0 | LO52: 0 | LP52: 0 | LQ52: 0 | LR52: 8 | LS52: Janne L | LT52: 0 | LU52: 0 | LV52: 0 | LW52: 0 | LX52: 6 | LY52: Eva W | LZ52: 0 | MA52: 0 | MB52: 0 | MC52: =MA51 -> 0 | MD52: =MB51 -> 3 | ME52: =MC51 -> Emma | MF52: =MD51 -> 0 | MG52: =ME51 -> 0 | MH52: =MF51 -> 0
A53: =INDEX($2:$50,MATCH(" ",$F$2:$F$50,),A54) -> 2018-06-16 | B53: =INDEX($2:$50,MATCH(" ",$F$2:$F$50,),B54) -> Kl 12.00 | C53: =INDEX($C$2:$IV$50,MATCH(" ",$F$2:$F$50,),C54) -> Frankrike | D53: - | E53: =INDEX($C$2:$IV$50,MATCH(" ",$F$2:$F$50,),E54) -> Australien | F53: =INDEX($F$3:$ID$50,MATCH(" ",$F$3:$F$50,),F54) ->  | G53: =INDEX($F$3:$ID$50,MATCH(" ",$F$3:$F$50,),G54) -> - | H53: =INDEX($F$3:$ID$50,MATCH(" ",$F$3:$F$50,),H54) ->  | I53: =INDEX($F$3:$ID$50,MATCH(" ",$F$3:$F$50,),I54) -> 0 | J53: =INDEX($F$3:$ID$50,MATCH(" ",$F$3:$F$50,),J54) -> 0 | K53: =INDEX($F$2:$MB$50,MATCH(" ",$F$2:$F$50,),K54) -> 1 | L53: =INDEX($F$2:$IV$50,MATCH(" ",$F$2:$F$50,),L54) -> - | M53: 0 | N53: 0 | O53: 1 | P53: 0 | Q53: 1 | R53: - | S53: 0 | T53: 0 | U53: 1 | V53: 0 | W53: 2 | X53: - | Y53: 1 | Z53: 0 | AA53: 1 | AB53: 0 | AC53: 4 | AD53: - | AE53: 1 | AF53: 0 | AG53: 1 | AH53: 0 | AI53: 1 | AJ53: - | AK53: 0 | AL53: 0 | AM53: 1 | AN53: 0 | AO53: 3 | AP53: - | AQ53: 1 | AR53: 0 | AS53: 1 | AT53: 0 | AU53: 3 | AV53: - | AW53: 1 | AX53: 0 | AY53: 1 | AZ53: 0 | BA53: 2 | BB53: - | BC53: 0 | BD53: 0 | BE53: 1 | BF53: 0 | BG53: 3 | BH53: - | BI53: 0 | BJ53: 0 | BK53: 1 | BL53: 0 | BM53: 2 | BN53: - | BO53: 1 | BP53: 0 | BQ53: 1 | BR53: 0 | BS53: 2 | BT53: - | BU53: 0 | BV53: 0 | BW53: 1 | BX53: =INDEX($F$2:$IV$50,MATCH(" ",$F$2:$F$50,),BX54) -> 0 | BY53: 2 | BZ53: - | CA53: 1 | CB53: 0 | CC53: 1 | CD53: 0 | CE53: 2 | CF53: - | CG53: 0 | CH53: 0 | CI53: 1 | CJ53: 0 | CK53: 2 | CL53: - | CM53: 0 | CN53: 0 | CO53: 1 | CP53: 0 | CQ53: 4 | CR53: - | CS53: 2 | CT53: 0 | CU53: 1 | CV53: 0 | CW53: 2 | CX53: - | CY53: 0 | CZ53: 0 | DA53: 1 | DB53: 0 | DC53: 2 | DD53: - | DE53: 1 | DF53: 0 | DG53: 1 | DH53: 0 | DI53: 2 | DJ53: - | DK53: 1 | DL53: 0 | DM53: 1 | DN53: 0 | DO53: 3 | DP53: - | DQ53: 0 | DR53: 0 | DS53: 1 | DT53: 0 | DU53: 3 | DV53: - | DW53: 1 | DX53: 0 | DY53: 1 | DZ53: 0 | EA53: 2 | EB53: - | EC53: 0 | ED53: 0 | EE53: 1 | EF53: 0 | EG53: 2 | EH53: - | EI53: 1 | EJ53: =INDEX($F$2:$IV$50,MATCH(" ",$F$2:$F$50,),EJ54) -> 0 | EK53: 1 | EL53: 0 | EM53: 4 | EN53: - | EO53: 1 | EP53: 0 | EQ53: 1 | ER53: 0 | ES53: 4 | ET53: - | EU53: 0 | EV53: 0 | EW53: 1 | EX53: 0 | EY53: 3 | EZ53: - | FA53: 1 | FB53: 0 | FC53: 1 | FD53: 0 | FE53: 3 | FF53: - | FG53: 0 | FH53: 0 | FI53: 1 | FJ53: 0 | FK53: 4 | FL53: - | FM53: 0 | FN53: 0 | FO53: 1 | FP53: 0 | FQ53: 2 | FR53: - | FS53: 0 | FT53: 0 | FU53: 1 | FV53: 0 | FW53: 2 | FX53: - | FY53: 0 | FZ53: 0 | GA53: 1 | GB53: 0 | GC53: 2 | GD53: - | GE53: 0 | GF53: 0 | GG53: 1 | GH53: 0 | GI53: 3 | GJ53: - | GK53: 0 | GL53: 0 | GM53: 1 | GN53: 0 | GO53: 2 | GP53: - | GQ53: 0 | GR53: 0 | GS53: 1 | GT53: 0 | GU53: 2 | GV53: =INDEX($F$2:$IV$50,MATCH(" ",$F$2:$F$50,),GV54) -> - | GW53: 1 | GX53: 0 | GY53: 1 | GZ53: 0 | HA53: 3 | HB53: - | HC53: 0 | HD53: 0 | HE53: 1 | HF53: 0 | HG53: 2 | HH53: - | HI53: 3 | HJ53: 0 | HK53: 2 | HL53: 0 | HM53: 3 | HN53: - | HO53: 0 | HP53: 0 | HQ53: 1 | HR53: 0 | HS53: 2 | HT53: - | HU53: 1 | HV53: 0 | HW53: 1 | HX53: 0 | HY53: 3 | HZ53: - | IA53: 0 | IB53: 0 | IC53: 1 | ID53: 0 | IE53: 1 | IF53: - | IG53: 1 | IH53: 0 | II53: X | IJ53: 0 | IK53: 2 | IL53: - | IM53: 0 | IN53: 0 | IO53: 1 | IP53: 0 | IQ53: =INDEX($F$2:$MB$50,MATCH(" ",$F$2:$F$50,),IQ54) -> 1 | IR53: - | IS53: 0 | IT53: 0 | IU53: 1 | IV53: 0 | IW53: 2 | IX53: - | IY53: 0 | IZ53: 0 | JA53: 1 | JB53: 0 | JC53: 2 | JD53: - | JE53: 0 | JF53: 0 | JG53: 1 | JH53: 0 | JI53: 2 | JJ53: - | JK53: 0 | JL53: 0 | JM53: 1 | JN53: 0 | JO53: 4 | JP53: - | JQ53: 0 | JR53: 0 | JS53: 1 | JT53: 0 | JU53: 2 | JV53: - | JW53: =INDEX($F$2:$MB$50,MATCH(" ",$F$2:$F$50,),JW54) -> 1 | JX53: 0 | JY53: 1 | JZ53: 0 | KA53: 4 | KB53: - | KC53: 1 | KD53: 0 | KE53: 1 | KF53: 0 | KG53: 4 | KH53: - | KI53: 3 | KJ53: 0 | KK53: 1 | KL53: 0 | KM53: 3 | KN53: - | KO53: 2 | KP53: 0 | KQ53: 1 | KR53: 0 | KS53: 3 | KT53: - | KU53: =INDEX($F$2:$MB$50,MATCH(" ",$F$2:$F$50,),KU54) -> 1 | KV53: =INDEX($F$2:$MB$50,MATCH(" ",$F$2:$F$50,),KV54) -> 0 | KW53: 1 | KX53: 0 | KY53: 2 | KZ53: - | LA53: 1 | LB53: 0 | LC53: 1 | LD53: 0 | LE53: 3 | LF53: - | LG53: 0 | LH53: 0 | LI53: 1 | LJ53: 0 | LK53: 2 | LL53: - | LM53: 0 | LN53: 0 | LO53: 1 | LP53: 0 | LQ53: 3 | LR53: - | LS53: 0 | LT53: 0 | LU53: 1 | LV53: 0 | LW53: 2 | LX53: - | LY53: 0 | LZ53: =INDEX($F$2:$MB$50,MATCH(" ",$F$2:$F$50,),LZ54) -> 0 | MA53: 1 | MB53: 0 | MC53: =INDEX($F$2:$MH$50,MATCH(" ",$F$2:$F$50,),MC54) -> 1 | MD53: =INDEX($F$2:$MH$50,MATCH(" ",$F$2:$F$50,),MD54) -> - | ME53: 0 | MF53: 0 | MG53: 1 | MH53: 0
K54: 6 | L54: =K54+1 -> 7 | M54: =L54+1 -> 8 | N54: 9 | O54: 10 | P54: 11 | Q54: 12 | R54: 13 | S54: 14 | T54: 15 | U54: 16 | V54: 17 | W54: 18 | X54: 19 | Y54: 20 | Z54: 21 | AA54: 22 | AB54: 23 | AC54: 24 | AD54: 25 | AE54: 26 | AF54: 27 | AG54: 28 | AH54: 29 | AI54: 30 | AJ54: 31 | AK54: 32 | AL54: 33 | AM54: 34 | AN54: 35 | AO54: 36 | AP54: 37 | AQ54: 38 | AR54: 39 | AS54: 40 | AT54: 41 | AU54: 42 | AV54: 43 | AW54: 44 | AX54: 45 | AY54: 46 | AZ54: 47 | BA54: 48 | BB54: 49 | BC54: 50 | BD54: 51 | BE54: 52 | BF54: 53 | BG54: 54 | BH54: 55 | BI54: 56 | BJ54: 57 | BK54: 58 | BL54: 59 | BM54: 60 | BN54: 61 | BO54: 62 | BP54: 63 | BQ54: 64 | BR54: 65 | BS54: 66 | BT54: 67 | BU54: 68 | BV54: 69 | BW54: 70 | BX54: 71 | BY54: =BX54+1 -> 72 | BZ54: 73 | CA54: 74 | CB54: 75 | CC54: 76 | CD54: 77 | CE54: 78 | CF54: 79 | CG54: 80 | CH54: 81 | CI54: 82 | CJ54: 83 | CK54: 84 | CL54: 85 | CM54: 86 | CN54: 87 | CO54: 88 | CP54: 89 | CQ54: 90 | CR54: 91 | CS54: 92 | CT54: 93 | CU54: 94 | CV54: 95 | CW54: 96 | CX54: 97 | CY54: 98 | CZ54: 99 | DA54: 100 | DB54: 101 | DC54: 102 | DD54: 103 | DE54: 104 | DF54: 105 | DG54: 106 | DH54: 107 | DI54: 108 | DJ54: 109 | DK54: 110 | DL54: 111 | DM54: 112 | DN54: 113 | DO54: 114 | DP54: 115 | DQ54: 116 | DR54: 117 | DS54: 118 | DT54: 119 | DU54: 120 | DV54: 121 | DW54: 122 | DX54: 123 | DY54: 124 | DZ54: 125 | EA54: 126 | EB54: 127 | EC54: 128 | ED54: 129 | EE54: 130 | EF54: 131 | EG54: 132 | EH54: 133 | EI54: 134 | EJ54: 135 | EK54: =EJ54+1 -> 136 | EL54: 137 | EM54: 138 | EN54: 139 | EO54: 140 | EP54: 141 | EQ54: 142 | ER54: 143 | ES54: 144 | ET54: 145 | EU54: 146 | EV54: 147 | EW54: 148 | EX54: 149 | EY54: 150 | EZ54: 151 | FA54: 152 | FB54: 153 | FC54: 154 | FD54: 155 | FE54: 156 | FF54: 157 | FG54: 158 | FH54: 159 | FI54: 160 | FJ54: 161 | FK54: 162 | FL54: 163 | FM54: 164 | FN54: 165 | FO54: 166 | FP54: 167 | FQ54: 168 | FR54: 169 | FS54: 170 | FT54: 171 | FU54: 172 | FV54: 173 | FW54: 174 | FX54: 175 | FY54: 176 | FZ54: 177 | GA54: 178 | GB54: 179 | GC54: 180 | GD54: 181 | GE54: 182 | GF54: 183 | GG54: 184 | GH54: 185 | GI54: 186 | GJ54: 187 | GK54: 188 | GL54: 189 | GM54: 190 | GN54: 191 | GO54: 192 | GP54: 193 | GQ54: 194 | GR54: 195 | GS54: 196 | GT54: 197 | GU54: 198 | GV54: 199 | GW54: =GV54+1 -> 200 | GX54: 201 | GY54: 202 | GZ54: 203 | HA54: 204 | HB54: 205 | HC54: 206 | HD54: 207 | HE54: 208 | HF54: 209 | HG54: 210 | HH54: 211 | HI54: 212 | HJ54: 213 | HK54: 214 | HL54: 215 | HM54: 216 | HN54: 217 | HO54: 218 | HP54: 219 | HQ54: 220 | HR54: 221 | HS54: =HR54+1 -> 222 | HT54: =HS54+1 -> 223 | HU54: =HT54+1 -> 224 | HV54: =HU54+1 -> 225 | HW54: =HV54+1 -> 226 | HX54: =HW54+1 -> 227 | HY54: =HX54+1 -> 228 | HZ54: =HY54+1 -> 229 | IA54: =HZ54+1 -> 230 | IB54: =IA54+1 -> 231 | IC54: =IB54+1 -> 232 | ID54: =IC54+1 -> 233 | IE54: =ID54+1 -> 234 | IF54: =IE54+1 -> 235 | IG54: =IF54+1 -> 236 | IH54: =IG54+1 -> 237 | II54: =IH54+1 -> 238 | IJ54: =II54+1 -> 239 | IK54: =IJ54+1 -> 240 | IL54: =IK54+1 -> 241 | IM54: =IL54+1 -> 242 | IN54: =IM54+1 -> 243 | IO54: =IN54+1 -> 244 | IP54: =IO54+1 -> 245 | IQ54: 246 | IR54: 247 | IS54: 248 | IT54: 249 | IU54: =IT54+1 -> 250 | IV54: 251 | IW54: 252 | IX54: 253 | IY54: 254 | IZ54: 255 | JA54: 256 | JB54: 257 | JC54: 258 | JD54: 259 | JE54: 260 | JF54: 261 | JG54: 262 | JH54: 263 | JI54: 264 | JJ54: 265 | JK54: 266 | JL54: 267 | JM54: 268 | JN54: 269 | JO54: 270 | JP54: 271 | JQ54: 272 | JR54: 273 | JS54: 274 | JT54: 275 | JU54: 276 | JV54: 277 | JW54: 278 | JX54: 279 | JY54: 280 | JZ54: 281 | KA54: =JZ54+1 -> 282 | KB54: 283 | KC54: 284 | KD54: 285 | KE54: 286 | KF54: 287 | KG54: 288 | KH54: 289 | KI54: 290 | KJ54: 291 | KK54: 292 | KL54: 293 | KM54: 294 | KN54: 295 | KO54: 296 | KP54: 297 | KQ54: 298 | KR54: 299 | KS54: 300 | KT54: 301 | KU54: 302 | KV54: 303 | KW54: 304 | KX54: 305 | KY54: 306 | KZ54: 307 | LA54: 308 | LB54: 309 | LC54: 310 | LD54: 311 | LE54: 312 | LF54: 313 | LG54: =LF54+1 -> 314 | LH54: 315 | LI54: 316 | LJ54: 317 | LK54: 318 | LL54: 319 | LM54: 320 | LN54: 321 | LO54: 322 | LP54: 323 | LQ54: 324 | LR54: 325 | LS54: 326 | LT54: 327 | LU54: 328 | LV54: 329 | LW54: 330 | LX54: 331 | LY54: 332 | LZ54: 333 | MA54: 334 | MB54: 335 | MC54: 336 | MD54: =MC54+1 -> 337 | ME54: 338 | MF54: 339 | MG54: 340 | MH54: 341
DN55: 5
E56: Sydafrika | K56: =VLOOKUP(E56,C1:V49,9) -> 0 | DN56: 5

Sheet Blad1

Sheet Poängställning
N1: Nästa match på kupong
A2: 1 | B2: Tommy T 2 | C2: 0 | D2: 0 | E2: 0 | F2: 0 | G2: 14 | N2: =HLOOKUP($B2,Rader!$K$1:$MH$53,53,FALSE) -> 2 | O2: - | P2: =HLOOKUP($B2,Rader!$M$52:$MH$53,2,FALSE) -> 1 | R2: =Rader!A53 -> 2018-06-16 | T2: =Rader!B53 -> Kl 12.00
A3: =A2+1 -> 2 | B3: Pernilla | C3: 0 | D3: 0 | E3: 0 | F3: 0 | G3: 14 | N3: =HLOOKUP($B3,Rader!$K$1:$MH$53,53,FALSE) -> 3 | O3: - | P3: =HLOOKUP($B3,Rader!$M$52:$MH$53,2,FALSE) -> 1 | R3: =Rader!$C$53 -> Frankrike | S3: - | T3: =Rader!$E$53 -> Australien
A4: =A3+1 -> 3 | B4: Anitha | C4: 0 | D4: 0 | E4: 0 | F4: 0 | G4: 12 | N4: =HLOOKUP($B4,Rader!$K$1:$MH$53,53,FALSE) -> 2 | O4: - | P4: =HLOOKUP($B4,Rader!$M$52:$MH$53,2,FALSE) -> 0
A5: 4 | B5: Christian | C5: 0 | D5: 0 | E5: 0 | F5: 0 | G5: 11 | N5: =HLOOKUP($B5,Rader!$K$1:$MH$53,53,FALSE) -> 1 | O5: - | P5: =HLOOKUP($B5,Rader!$M$52:$MH$53,2,FALSE) -> 0
A6: 5 | B6: Lars L | C6: 0 | D6: 0 | E6: 0 | F6: 0 | G6: 11 | N6: =HLOOKUP($B6,Rader!$K$1:$MH$53,53,FALSE) -> 3 | O6: - | P6: =HLOOKUP($B6,Rader!$M$52:$MH$53,2,FALSE) -> 1
A7: 6 | B7: Mats-ola | C7: 0 | D7: 0 | E7: 0 | F7: 0 | G7: 11 | N7: =HLOOKUP($B7,Rader!$K$1:$MH$53,53,FALSE) -> 2 | O7: - | P7: =HLOOKUP($B7,Rader!$M$52:$MH$53,2,FALSE) -> 1
A8: 7 | B8: Ludde | C8: 0 | D8: 0 | E8: 0 | F8: 0 | G8: 11 | N8: =HLOOKUP($B8,Rader!$K$1:$MH$53,53,FALSE) -> 2 | O8: - | P8: =HLOOKUP($B8,Rader!$M$52:$MH$53,2,FALSE) -> 1
A9: 8 | B9: Hans Modh | C9: 0 | D9: 0 | E9: 0 | F9: 0 | G9: 11 | N9: =HLOOKUP($B9,Rader!$K$1:$MH$53,53,FALSE) -> 2 | O9: - | P9: =HLOOKUP($B9,Rader!$M$52:$MH$53,2,FALSE) -> 0
A10: 9 | B10: Ludde 2 | C10: 0 | D10: 0 | E10: 0 | F10: 0 | G10: 11 | N10: =HLOOKUP($B10,Rader!$K$1:$MH$53,53,FALSE) -> 2 | O10: - | P10: =HLOOKUP($B10,Rader!$M$52:$MH$53,2,FALSE) -> 1
A11: 10 | B11: Mia E | C11: 0 | D11: 0 | E11: 0 | F11: 0 | G11: 9 | N11: =HLOOKUP($B11,Rader!$K$1:$MH$53,53,FALSE) -> 4 | O11: - | P11: =HLOOKUP($B11,Rader!$M$52:$MH$53,2,FALSE) -> 1
A12: 11 | B12: Tommy T 1 | C12: 0 | D12: 0 | E12: 0 | F12: 0 | G12: 9 | N12: =HLOOKUP($B12,Rader!$K$1:$MH$53,53,FALSE) -> 3 | O12: - | P12: =HLOOKUP($B12,Rader!$M$52:$MH$53,2,FALSE) -> 0
A13: 12 | B13: Reino | C13: 0 | D13: 0 | E13: 0 | F13: 0 | G13: 9 | N13: =HLOOKUP($B13,Rader!$K$1:$MH$53,53,FALSE) -> 2 | O13: - | P13: =HLOOKUP($B13,Rader!$M$52:$MH$53,2,FALSE) -> 1
A14: 13 | B14: Jonny E | C14: 0 | D14: 0 | E14: 0 | F14: 0 | G14: 9 | N14: =HLOOKUP($B14,Rader!$K$1:$MH$53,53,FALSE) -> 2 | O14: - | P14: =HLOOKUP($B14,Rader!$M$52:$MH$53,2,FALSE) -> 0
A15: 14 | B15: Romee | C15: 0 | D15: 0 | E15: 0 | F15: 0 | G15: 9 | N15: =HLOOKUP($B15,Rader!$K$1:$MH$53,53,FALSE) -> 3 | O15: - | P15: =HLOOKUP($B15,Rader!$M$52:$MH$53,2,FALSE) -> 1
A16: 15 | B16: Christer 2 | C16: 0 | D16: 0 | E16: 0 | F16: 0 | G16: 9 | N16: =HLOOKUP($B16,Rader!$K$1:$MH$53,53,FALSE) -> 4 | O16: - | P16: =HLOOKUP($B16,Rader!$M$52:$MH$53,2,FALSE) -> 0
A17: 16 | B17: Tina | C17: 0 | D17: 0 | E17: 0 | F17: 0 | G17: 9 | N17: =HLOOKUP($B17,Rader!$K$1:$MH$53,53,FALSE) -> 2 | O17: - | P17: =HLOOKUP($B17,Rader!$M$52:$MH$53,2,FALSE) -> 0
A18: 17 | B18: Monika A | C18: 0 | D18: 0 | E18: 0 | F18: 0 | G18: 9 | N18: =HLOOKUP($B18,Rader!$K$1:$MH$53,53,FALSE) -> 2 | O18: - | P18: =HLOOKUP($B18,Rader!$M$52:$MH$53,2,FALSE) -> 0
A19: 18 | B19: Torvald | C19: 0 | D19: 0 | E19: 0 | F19: 0 | G19: 9 | N19: =HLOOKUP($B19,Rader!$K$1:$MH$53,53,FALSE) -> 2 | O19: - | P19: =HLOOKUP($B19,Rader!$M$52:$MH$53,2,FALSE) -> 0
A20: 19 | B20: Stefan L | C20: 0 | D20: 0 | E20: 0 | F20: 0 | G20: 9 | N20: =HLOOKUP($B20,Rader!$K$1:$MH$53,53,FALSE) -> 2 | O20: - | P20: =HLOOKUP($B20,Rader!$M$52:$MH$53,2,FALSE) -> 1
A21: 20 | B21: Lennart C1 | C21: 0 | D21: 0 | E21: 0 | F21: 0 | G21: 9 | N21: =HLOOKUP($B21,Rader!$K$1:$MH$53,53,FALSE) -> 2 | O21: - | P21: =HLOOKUP($B21,Rader!$M$52:$MH$53,2,FALSE) -> 1
A22: 21 | B22: Andreas | C22: 0 | D22: 0 | E22: 0 | F22: 0 | G22: 9 | N22: =HLOOKUP($B22,Rader!$K$1:$MH$53,53,FALSE) -> 4 | O22: - | P22: =HLOOKUP($B22,Rader!$M$52:$MH$53,2,FALSE) -> 0
A23: 22 | B23: Rune Tjotta | C23: 0 | D23: 0 | E23: 0 | F23: 0 | G23: 9 | N23: =HLOOKUP($B23,Rader!$K$1:$MH$53,53,FALSE) -> 3 | O23: - | P23: =HLOOKUP($B23,Rader!$M$52:$MH$53,2,FALSE) -> 0
A24: 23 | B24: Jessica | C24: 0 | D24: 0 | E24: 0 | F24: 0 | G24: 8 | N24: =HLOOKUP($B24,Rader!$K$1:$MH$53,53,FALSE) -> 2 | O24: - | P24: =HLOOKUP($B24,Rader!$M$52:$MH$53,2,FALSE) -> 1
A25: 24 | B25: Till minne av Esbjörn | C25: 0 | D25: 0 | E25: 0 | F25: 0 | G25: 8 | N25: =HLOOKUP($B25,Rader!$K$1:$MH$53,53,FALSE) -> 1 | O25: - | P25: =HLOOKUP($B25,Rader!$M$52:$MH$53,2,FALSE) -> 0
A26: 25 | B26: Gustav | C26: 0 | D26: 0 | E26: 0 | F26: 0 | G26: 8 | N26: =HLOOKUP($B26,Rader!$K$1:$MH$53,53,FALSE) -> 3 | O26: - | P26: =HLOOKUP($B26,Rader!$M$52:$MH$53,2,FALSE) -> 0
A27: 26 | B27: Jan E | C27: 0 | D27: 0 | E27: 0 | F27: 0 | G27: 8 | N27: =HLOOKUP($B27,Rader!$K$1:$MH$53,53,FALSE) -> 2 | O27: - | P27: =HLOOKUP($B27,Rader!$M$52:$MH$53,2,FALSE) -> 1
A28: 27 | B28: Wiking | C28: 0 | D28: 0 | E28: 0 | F28: 0 | G28: 8 | N28: =HLOOKUP($B28,Rader!$K$1:$MH$53,53,FALSE) -> 2 | O28: - | P28: =HLOOKUP($B28,Rader!$M$52:$MH$53,2,FALSE) -> 0
A29: 28 | B29: Emma | C29: 0 | D29: 0 | E29: 0 | F29: 0 | G29: 8 | N29: =HLOOKUP($B29,Rader!$K$1:$MH$53,53,FALSE) -> 1 | O29: - | P29: =HLOOKUP($B29,Rader!$M$52:$MH$53,2,FALSE) -> 0
A30: 29 | B30: Roger W | C30: 0 | D30: 0 | E30: 0 | F30: 0 | G30: 6 | N30: =HLOOKUP($B30,Rader!$K$1:$MH$53,53,FALSE) -> 3 | O30: - | P30: =HLOOKUP($B30,Rader!$M$52:$MH$53,2,FALSE) -> 1
A31: 30 | B31: Roger W 2 | C31: 0 | D31: 0 | E31: 0 | F31: 0 | G31: 6 | N31: =HLOOKUP($B31,Rader!$K$1:$MH$53,53,FALSE) -> 2 | O31: - | P31: =HLOOKUP($B31,Rader!$M$52:$MH$53,2,FALSE) -> 0
A32: 31 | B32: Lars Haglund | C32: 0 | D32: 0 | E32: 0 | F32: 0 | G32: 6 | N32: =HLOOKUP($B32,Rader!$K$1:$MH$53,53,FALSE) -> 2 | O32: - | P32: =HLOOKUP($B32,Rader!$M$52:$MH$53,2,FALSE) -> 0
A33: 32 | B33: Arne E | C33: 0 | D33: 0 | E33: 0 | F33: 0 | G33: 6 | N33: =HLOOKUP($B33,Rader!$K$1:$MH$53,53,FALSE) -> 4 | O33: - | P33: =HLOOKUP($B33,Rader!$M$52:$MH$53,2,FALSE) -> 2
A34: 33 | B34: Jonte | C34: 0 | D34: 0 | E34: 0 | F34: 0 | G34: 6 | N34: =HLOOKUP($B34,Rader!$K$1:$MH$53,53,FALSE) -> 2 | O34: - | P34: =HLOOKUP($B34,Rader!$M$52:$MH$53,2,FALSE) -> 1
A35: 34 | B35: Jonas M | C35: 0 | D35: 0 | E35: 0 | F35: 0 | G35: 6 | N35: =HLOOKUP($B35,Rader!$K$1:$MH$53,53,FALSE) -> 4 | O35: - | P35: =HLOOKUP($B35,Rader!$M$52:$MH$53,2,FALSE) -> 1
A36: 35 | B36: Johan G | C36: 0 | D36: 0 | E36: 0 | F36: 0 | G36: 6 | N36: =HLOOKUP($B36,Rader!$K$1:$MH$53,53,FALSE) -> 4 | O36: - | P36: =HLOOKUP($B36,Rader!$M$52:$MH$53,2,FALSE) -> 0
A37: 36 | B37: Edvin A | C37: 0 | D37: 0 | E37: 0 | F37: 0 | G37: 6 | N37: =HLOOKUP($B37,Rader!$K$1:$MH$53,53,FALSE) -> 2 | O37: - | P37: =HLOOKUP($B37,Rader!$M$52:$MH$53,2,FALSE) -> 0
A38: 37 | B38: Dick W1 | C38: 0 | D38: 0 | E38: 0 | F38: 0 | G38: 6 | N38: =HLOOKUP($B38,Rader!$K$1:$MH$53,53,FALSE) -> 3 | O38: - | P38: =HLOOKUP($B38,Rader!$M$52:$MH$53,2,FALSE) -> 0
A39: 38 | B39: Dick W2 | C39: 0 | D39: 0 | E39: 0 | F39: 0 | G39: 6 | N39: =HLOOKUP($B39,Rader!$K$1:$MH$53,53,FALSE) -> 2 | O39: - | P39: =HLOOKUP($B39,Rader!$M$52:$MH$53,2,FALSE) -> 3
A40: 39 | B40: Bo Jansson | C40: 0 | D40: 0 | E40: 0 | F40: 0 | G40: 6 | N40: =HLOOKUP($B40,Rader!$K$1:$MH$53,53,FALSE) -> 3 | O40: - | P40: =HLOOKUP($B40,Rader!$M$52:$MH$53,2,FALSE) -> 0
A41: 40 | B41: Lennart C3 | C41: 0 | D41: 0 | E41: 0 | F41: 0 | G41: 6 | N41: =HLOOKUP($B41,Rader!$K$1:$MH$53,53,FALSE) -> 1 | O41: - | P41: =HLOOKUP($B41,Rader!$M$52:$MH$53,2,FALSE) -> 1
A42: 41 | B42: Sonny | C42: 0 | D42: 0 | E42: 0 | F42: 0 | G42: 6 | N42: =HLOOKUP($B42,Rader!$K$1:$MH$53,53,FALSE) -> 2 | O42: - | P42: =HLOOKUP($B42,Rader!$M$52:$MH$53,2,FALSE) -> 0
A43: 42 | B43: Monica Modh | C43: 0 | D43: 0 | E43: 0 | F43: 0 | G43: 6 | N43: =HLOOKUP($B43,Rader!$K$1:$MH$53,53,FALSE) -> 2 | O43: - | P43: =HLOOKUP($B43,Rader!$M$52:$MH$53,2,FALSE) -> 0
A44: 43 | B44: Alf B | C44: 0 | D44: 0 | E44: 0 | F44: 0 | G44: 6 | N44: =HLOOKUP($B44,Rader!$K$1:$MH$53,53,FALSE) -> 4 | O44: - | P44: =HLOOKUP($B44,Rader!$M$52:$MH$53,2,FALSE) -> 1
A45: 44 | B45: Anne-Marie I | C45: 0 | D45: 0 | E45: 0 | F45: 0 | G45: 6 | N45: =HLOOKUP($B45,Rader!$K$1:$MH$53,53,FALSE) -> 3 | O45: - | P45: =HLOOKUP($B45,Rader!$M$52:$MH$53,2,FALSE) -> 2
A46: 45 | B46: Lars, Kjell, Rolf | C46: 0 | D46: 0 | E46: 0 | F46: 0 | G46: 6 | N46: =HLOOKUP($B46,Rader!$K$1:$MH$53,53,FALSE) -> 3 | O46: - | P46: =HLOOKUP($B46,Rader!$M$52:$MH$53,2,FALSE) -> 1
A47: 46 | B47: Janne L | C47: 0 | D47: 0 | E47: 0 | F47: 0 | G47: 6 | N47: =HLOOKUP($B47,Rader!$K$1:$MH$53,53,FALSE) -> 3 | O47: - | P47: =HLOOKUP($B47,Rader!$M$52:$MH$53,2,FALSE) -> 0
A48: 47 | B48: Manfreed | C48: 0 | D48: 0 | E48: 0 | F48: 0 | G48: 3 | N48: =HLOOKUP($B48,Rader!$K$1:$MH$53,53,FALSE) -> 1 | O48: - | P48: =HLOOKUP($B48,Rader!$M$52:$MH$53,2,FALSE) -> 0
A49: 48 | B49: Tommy T 3 | C49: 0 | D49: 0 | E49: 0 | F49: 0 | G49: 3 | N49: =HLOOKUP($B49,Rader!$K$1:$MH$53,53,FALSE) -> 2 | O49: - | P49: =HLOOKUP($B49,Rader!$M$52:$MH$53,2,FALSE) -> 0
A50: 49 | B50: Bo Fransson | C50: 0 | D50: 0 | E50: 0 | F50: 0 | G50: 3 | N50: =HLOOKUP($B50,Rader!$K$1:$MH$53,53,FALSE) -> 2 | O50: - | P50: =HLOOKUP($B50,Rader!$M$52:$MH$53,2,FALSE) -> 0
A51: 50 | B51: Mika | C51: 0 | D51: 0 | E51: 0 | F51: 0 | G51: 3 | N51: =HLOOKUP($B51,Rader!$K$1:$MH$53,53,FALSE) -> 3 | O51: - | P51: =HLOOKUP($B51,Rader!$M$52:$MH$53,2,FALSE) -> 0
A52: 51 | B52: Jappe | C52: 0 | D52: 0 | E52: 0 | F52: 0 | G52: 3 | N52: =HLOOKUP($B52,Rader!$K$1:$MH$53,53,FALSE) -> 1 | O52: - | P52: =HLOOKUP($B52,Rader!$M$52:$MH$53,2,FALSE) -> 0
A53: 52 | B53: Gille | C53: 0 | D53: 0 | E53: 0 | F53: 0 | G53: 3 | N53: =HLOOKUP($B53,Rader!$K$1:$MH$53,53,FALSE) -> 2 | O53: - | P53: =HLOOKUP($B53,Rader!$M$52:$MH$53,2,FALSE) -> 0
A54: 53 | B54: Maria I | C54: 0 | D54: 0 | E54: 0 | F54: 0 | G54: 3 | N54: =HLOOKUP($B54,Rader!$K$1:$MH$53,53,FALSE) -> 4 | O54: - | P54: =HLOOKUP($B54,Rader!$M$52:$MH$53,2,FALSE) -> 3
A55: 54 | B55: Eva W | C55: 0 | D55: 0 | E55: 0 | F55: 0 | G55: 3 | N55: =HLOOKUP($B55,Rader!$K$1:$MH$53,53,FALSE) -> 2 | O55: - | P55: =HLOOKUP($B55,Rader!$M$52:$MH$53,2,FALSE) -> 0
A56: 55 | B56: Christer 1 | C56: 0 | D56: 0 | E56: 0 | F56: 0 | G56: 0 | N56: =HLOOKUP($B56,Rader!$K$1:$MH$53,53,FALSE) -> 3 | O56: - | P56: =HLOOKUP($B56,Rader!$M$52:$MH$53,2,FALSE) -> 0
A57: 56 | B57: Lennart C2 | C57: 0 | D57: 0 | E57: 0 | F57: 0 | G57: 0 | N57: =HLOOKUP($B57,Rader!$K$1:$MH$53,53,FALSE) -> 3 | O57: - | P57: =HLOOKUP($B57,Rader!$M$52:$MH$53,2,FALSE) -> 0

Sheet Blad2
B2: =Rader!K51 -> Christian | C2: =Rader!L51 -> 0 | D2: =Rader!M51 -> 0 | E2: =Rader!N51 -> 0 | F2: =Rader!O51 -> 0 | G2: =Rader!P51 -> 11
B3: =Rader!Q51 -> Manfreed | C3: =Rader!R51 -> 0 | D3: =Rader!S51 -> 0 | E3: =Rader!T51 -> 0 | F3: =Rader!U51 -> 0 | G3: =Rader!V51 -> 3
B4: =Rader!W51 -> Jessica | C4: =Rader!X51 -> 0 | D4: =Rader!Y51 -> 0 | E4: =Rader!Z51 -> 0 | F4: =Rader!AA51 -> 0 | G4: =Rader!AB51 -> 8
B5: =Rader!AC51 -> Mia E | C5: =Rader!AD51 -> 0 | D5: =Rader!AE51 -> 0 | E5: =Rader!AF51 -> 0 | F5: =Rader!AG51 -> 0 | G5: =Rader!AH51 -> 9
B6: =Rader!AI51 -> Till minne av Esbjörn | C6: =Rader!AJ51 -> 0 | D6: =Rader!AK51 -> 0 | E6: =Rader!AL51 -> 0 | F6: =Rader!AM51 -> 0 | G6: =Rader!AN51 -> 8
B7: =Rader!AO51 -> Lars L | C7: =Rader!AP51 -> 0 | D7: =Rader!AQ51 -> 0 | E7: =Rader!AR51 -> 0 | F7: =Rader!AS51 -> 0 | G7: =Rader!AT51 -> 11
B8: =Rader!AU51 -> Roger W | C8: =Rader!AV51 -> 0 | D8: =Rader!AW51 -> 0 | E8: =Rader!AX51 -> 0 | F8: =Rader!AY51 -> 0 | G8: =Rader!AZ51 -> 6
B9: =Rader!BA51 -> Roger W 2 | C9: =Rader!BB51 -> 0 | D9: =Rader!BC51 -> 0 | E9: =Rader!BD51 -> 0 | F9: =Rader!BE51 -> 0 | G9: =Rader!BF51 -> 6
B10: =Rader!BG51 -> Tommy T 1 | C10: =Rader!BH51 -> 0 | D10: =Rader!BI51 -> 0 | E10: =Rader!BJ51 -> 0 | F10: =Rader!BK51 -> 0 | G10: =Rader!BL51 -> 9
B11: =Rader!BM51 -> Tommy T 2 | C11: =Rader!BN51 -> 0 | D11: =Rader!BO51 -> 0 | E11: =Rader!BP51 -> 0 | F11: =Rader!BQ51 -> 0 | G11: =Rader!BR51 -> 14
B12: =Rader!BS51 -> Tommy T 3 | C12: =Rader!BT51 -> 0 | D12: =Rader!BU51 -> 0 | E12: =Rader!BV51 -> 0 | F12: =Rader!BW51 -> 0 | G12: =Rader!BX51 -> 3
B13: =Rader!BY51 -> Reino | C13: =Rader!BZ51 -> 0 | D13: =Rader!CA51 -> 0 | E13: =Rader!CB51 -> 0 | F13: =Rader!CC51 -> 0 | G13: =Rader!CD51 -> 9
B14: =Rader!CE51 -> Lars Haglund | C14: =Rader!CF51 -> 0 | D14: =Rader!CG51 -> 0 | E14: =Rader!CH51 -> 0 | F14: =Rader!CI51 -> 0 | G14: =Rader!CJ51 -> 6
B15: =Rader!CK51 -> Bo Fransson | C15: =Rader!CL51 -> 0 | D15: =Rader!CM51 -> 0 | E15: =Rader!CN51 -> 0 | F15: =Rader!CO51 -> 0 | G15: =Rader!CP51 -> 3
B16: =Rader!CQ51 -> Arne E | C16: =Rader!CR51 -> 0 | D16: =Rader!CS51 -> 0 | E16: =Rader!CT51 -> 0 | F16: =Rader!CU51 -> 0 | G16: =Rader!CV51 -> 6
B17: =Rader!CW51 -> Jonny E | C17: =Rader!CX51 -> 0 | D17: =Rader!CY51 -> 0 | E17: =Rader!CZ51 -> 0 | F17: =Rader!DA51 -> 0 | G17: =Rader!DB51 -> 9
B18: =Rader!DC51 -> Jonte | C18: =Rader!DD51 -> 0 | D18: =Rader!DE51 -> 0 | E18: =Rader!DF51 -> 0 | F18: =Rader!DG51 -> 0 | G18: =Rader!DH51 -> 6
B19: =Rader!DI51 -> Mats-ola | C19: =Rader!DJ51 -> 0 | D19: =Rader!DK51 -> 0 | E19: =Rader!DL51 -> 0 | F19: =Rader!DM51 -> 0 | G19: =Rader!DN51 -> 11
B20: =Rader!DO51 -> Mika | C20: =Rader!DP51 -> 0 | D20: =Rader!DQ51 -> 0 | E20: =Rader!DR51 -> 0 | F20: =Rader!DS51 -> 0 | G20: =Rader!DT51 -> 3
B21: =Rader!DU51 -> Romee | C21: =Rader!DV51 -> 0 | D21: =Rader!DW51 -> 0 | E21: =Rader!DX51 -> 0 | F21: =Rader!DY51 -> 0 | G21: =Rader!DZ51 -> 9
B22: =Rader!EA51 -> Anitha | C22: =Rader!EB51 -> 0 | D22: =Rader!EC51 -> 0 | E22: =Rader!ED51 -> 0 | F22: =Rader!EE51 -> 0 | G22: =Rader!EF51 -> 12
B23: =Rader!EG51 -> Ludde | C23: =Rader!EH51 -> 0 | D23: =Rader!EI51 -> 0 | E23: =Rader!EJ51 -> 0 | F23: =Rader!EK51 -> 0 | G23: =Rader!EL51 -> 11
B24: =Rader!EM51 -> Jonas M | C24: =Rader!EN51 -> 0 | D24: =Rader!EO51 -> 0 | E24: =Rader!EP51 -> 0 | F24: =Rader!EQ51 -> 0 | G24: =Rader!ER51 -> 6
B25: =Rader!ES51 -> Johan G | C25: =Rader!ET51 -> 0 | D25: =Rader!EU51 -> 0 | E25: =Rader!EV51 -> 0 | F25: =Rader!EW51 -> 0 | G25: =Rader!EX51 -> 6
B26: =Rader!EY51 -> Pernilla | C26: =Rader!EZ51 -> 0 | D26: =Rader!FA51 -> 0 | E26: =Rader!FB51 -> 0 | F26: =Rader!FC51 -> 0 | G26: =Rader!FD51 -> 14
B27: =Rader!FE51 -> Christer 1 | C27: =Rader!FF51 -> 0 | D27: =Rader!FG51 -> 0 | E27: =Rader!FH51 -> 0 | F27: =Rader!FI51 -> 0 | G27: =Rader!FJ51 -> 0
B28: =Rader!FK51 -> Christer 2 | C28: =Rader!FL51 -> 0 | D28: =Rader!FM51 -> 0 | E28: =Rader!FN51 -> 0 | F28: =Rader!FO51 -> 0 | G28: =Rader!FP51 -> 9
B29: =Rader!FQ51 -> Tina | C29: =Rader!FR51 -> 0 | D29: =Rader!FS51 -> 0 | E29: =Rader!FT51 -> 0 | F29: =Rader!FU51 -> 0 | G29: =Rader!FV51 -> 9
B30: =Rader!FW51 -> Monika A | C30: =Rader!FX51 -> 0 | D30: =Rader!FY51 -> 0 | E30: =Rader!FZ51 -> 0 | F30: =Rader!GA51 -> 0 | G30: =Rader!GB51 -> 9
B31: =Rader!GC51 -> Edvin A | C31: =Rader!GD51 -> 0 | D31: =Rader!GE51 -> 0 | E31: =Rader!GF51 -> 0 | F31: =Rader!GG51 -> 0 | G31: =Rader!GH51 -> 6
B32: =Rader!GI51 -> Gustav | C32: =Rader!GJ51 -> 0 | D32: =Rader!GK51 -> 0 | E32: =Rader!GL51 -> 0 | F32: =Rader!GM51 -> 0 | G32: =Rader!GN51 -> 8
B33: =Rader!GO51 -> Torvald | C33: =Rader!GP51 -> 0 | D33: =Rader!GQ51 -> 0 | E33: =Rader!GR51 -> 0 | F33: =Rader!GS51 -> 0 | G33: =Rader!GT51 -> 9
B34: =Rader!GU51 -> Stefan L | C34: =Rader!GV51 -> 0 | D34: =Rader!GW51 -> 0 | E34: =Rader!GX51 -> 0 | F34: =Rader!GY51 -> 0 | G34: =Rader!GZ51 -> 9
B35: =Rader!HA51 -> Dick W1 | C35: =Rader!HB51 -> 0 | D35: =Rader!HC51 -> 0 | E35: =Rader!HD51 -> 0 | F35: =Rader!HE51 -> 0 | G35: =Rader!HF51 -> 6
B36: =Rader!HG51 -> Dick W2 | C36: =Rader!HH51 -> 0 | D36: =Rader!HI51 -> 0 | E36: =Rader!HJ51 -> 0 | F36: =Rader!HK51 -> 0 | G36: =Rader!HL51 -> 6
B37: =Rader!HM51 -> Bo Jansson | C37: =Rader!HN51 -> 0 | D37: =Rader!HO51 -> 0 | E37: =Rader!HP51 -> 0 | F37: =Rader!HQ51 -> 0 | G37: =Rader!HR51 -> 6
B38: =Rader!HS51 -> Lennart C1 | C38: =Rader!HT51 -> 0 | D38: =Rader!HU51 -> 0 | E38: =Rader!HV51 -> 0 | F38: =Rader!HW51 -> 0 | G38: =Rader!HX51 -> 9
B39: =Rader!HY51 -> Lennart C2 | C39: =Rader!HZ51 -> 0 | D39: =Rader!IA51 -> 0 | E39: =Rader!IB51 -> 0 | F39: =Rader!IC51 -> 0 | G39: =Rader!ID51 -> 0
B40: =Rader!IE51 -> Lennart C3 | C40: =Rader!IF51 -> 0 | D40: =Rader!IG51 -> 0 | E40: =Rader!IH51 -> 0 | F40: =Rader!II51 -> 0 | G40: =Rader!IJ51 -> 6
B41: =Rader!IK51 -> Sonny | C41: =Rader!IL51 -> 0 | D41: =Rader!IM51 -> 0 | E41: =Rader!IN51 -> 0 | F41: =Rader!IO51 -> 0 | G41: =Rader!IP51 -> 6
B42: =Rader!IQ51 -> Jappe | C42: =Rader!IR51 -> 0 | D42: =Rader!IS51 -> 0 | E42: =Rader!IT51 -> 0 | F42: =Rader!IU51 -> 0 | G42: =Rader!IV51 -> 3
B43: =Rader!IW51 -> Hans Modh | C43: =Rader!IX51 -> 0 | D43: =Rader!IY51 -> 0 | E43: =Rader!IZ51 -> 0 | F43: =Rader!JA51 -> 0 | G43: =Rader!JB51 -> 11
B44: =Rader!JC51 -> Monica Modh | C44: =Rader!JD51 -> 0 | D44: =Rader!JE51 -> 0 | E44: =Rader!JF51 -> 0 | F44: =Rader!JG51 -> 0 | G44: =Rader!JH51 -> 6
B45: =Rader!JI51 -> Gille | C45: =Rader!JJ51 -> 0 | D45: =Rader!JK51 -> 0 | E45: =Rader!JL51 -> 0 | F45: =Rader!JM51 -> 0 | G45: =Rader!JN51 -> 3
B46: =Rader!JO51 -> Andreas | C46: =Rader!JP51 -> 0 | D46: =Rader!JQ51 -> 0 | E46: =Rader!JR51 -> 0 | F46: =Rader!JS51 -> 0 | G46: =Rader!JT51 -> 9
B47: =Rader!JU51 -> Ludde 2 | C47: =Rader!JV51 -> 0 | D47: =Rader!JW51 -> 0 | E47: =Rader!JX51 -> 0 | F47: =Rader!JY51 -> 0 | G47: =Rader!JZ51 -> 11
B48: =Rader!KA51 -> Alf B | C48: =Rader!KB51 -> 0 | D48: =Rader!KC51 -> 0 | E48: =Rader!KD51 -> 0 | F48: =Rader!KE51 -> 0 | G48: =Rader!KF51 -> 6
B49: =Rader!KG51 -> Maria I | C49: =Rader!KH51 -> 0 | D49: =Rader!KI51 -> 0 | E49: =Rader!KJ51 -> 0 | F49: =Rader!KK51 -> 0 | G49: =Rader!KL51 -> 3
B50: =Rader!KM51 -> Anne-Marie I | C50: =Rader!KN51 -> 0 | D50: =Rader!KO51 -> 0 | E50: =Rader!KP51 -> 0 | F50: =Rader!KQ51 -> 0 | G50: =Rader!KR51 -> 6
B51: =Rader!KS51 -> Lars, Kjell, Rolf | C51: =Rader!KT51 -> 0 | D51: =Rader!KU51 -> 0 | E51: =Rader!KV51 -> 0 | F51: =Rader!KW51 -> 0 | G51: =Rader!KX51 -> 6
B52: =Rader!KY51 -> Jan E | C52: =Rader!KZ51 -> 0 | D52: =Rader!LA51 -> 0 | E52: =Rader!LB51 -> 0 | F52: =Rader!LC51 -> 0 | G52: =Rader!LD51 -> 8
B53: =Rader!LE51 -> Rune Tjotta | C53: =Rader!LF51 -> 0 | D53: =Rader!LG51 -> 0 | E53: =Rader!LH51 -> 0 | F53: =Rader!LI51 -> 0 | G53: =Rader!LJ51 -> 9
B54: =Rader!LK51 -> Wiking | C54: =Rader!LL51 -> 0 | D54: =Rader!LM51 -> 0 | E54: =Rader!LN51 -> 0 | F54: =Rader!LO51 -> 0 | G54: =Rader!LP51 -> 8
B55: =Rader!LQ51 -> Janne L | C55: =Rader!LR51 -> 0 | D55: =Rader!LS51 -> 0 | E55: =Rader!LT51 -> 0 | F55: =Rader!LU51 -> 0 | G55: =Rader!LV51 -> 6
B56: =Rader!LW51 -> Eva W | C56: =Rader!LX51 -> 0 | D56: =Rader!LY51 -> 0 | E56: =Rader!LZ51 -> 0 | F56: =Rader!MA51 -> 0 | G56: =Rader!MB51 -> 3
B57: =Rader!MC51 -> Emma | C57: =Rader!MD51 -> 0 | D57: =Rader!ME51 -> 0 | E57: =Rader!MF51 -> 0 | F57: =Rader!MG51 -> 0 | G57: =Rader!MH51 -> 8

Sheet Blad3
B1: Datum | C1: Tid | D1: Namn:
B2: 2018-06-14 | C2: Kl 17.00 | D2: Ryssland | E2: - | F2: Saudiarabien | J2: - | N2: - | R2: -
B3: 2018-06-15 | C3: Kl 14.00 | D3: Egypten | E3: =E2 -> - | F3: Uruguay | J3: - | N3: - | R3: -
B4: 2018-06-15 | C4: Kl 17.00 | D4: Marocko | E4: - | F4: Iran | J4: - | N4: - | R4: -
B5: 2018-06-15 | C5: Kl 20.00 | D5: Portugal | E5: - | F5: Spanien | J5: - | N5: - | R5: -
B6: 2018-06-16 | C6: Kl 12.00 | D6: Frankrike | E6: - | F6: Australien | J6: - | N6: - | R6: -
B7: 2018-06-16 | C7: Kl 15.00 | D7: Argentina | E7: - | F7: Island | J7: - | N7: - | R7: -
B8: 2018-06-16 | C8: Kl 18.00 | D8: Peru | E8: - | F8: Danmark | J8: - | N8: - | R8: -
B9: 2018-06-16 | C9: Kl 21.00 | D9: Kroatien | E9: - | F9: Nigeria | J9: - | N9: - | R9: -
B10: 2018-06-17 | C10: Kl 14.00 | D10: Costa Rica | E10: - | F10: Serbien | J10: - | N10: - | R10: -
B11: 2018-06-17 | C11: Kl 17.00 | D11: Tyskland | E11: - | F11: Mexiko | J11: - | N11: - | R11: -
B12: 2018-06-17 | C12: Kl 20.00 | D12: Brasilien | E12: - | F12: Schweiz | J12: - | N12: - | R12: -
B13: 2018-06-18 | C13: Kl 14.00 | D13: Sverige | E13: - | F13: Sydkorea | J13: - | N13: - | R13: -
B14: 2018-06-18 | C14: Kl 17.00 | D14: Belgien | E14: - | F14: Panama | J14: - | N14: - | R14: -
B15: 2018-06-18 | C15: Kl 20.00 | D15: Tunisien | E15: - | F15: England | J15: - | N15: - | R15: -
B16: 2018-06-19 | C16: Kl 14.00 | D16: Colombia | E16: - | F16: Japan | J16: - | N16: - | R16: -
B17: 2018-06-19 | C17: Kl 17.00 | D17: Polen | E17: - | F17: Senegal | J17: - | N17: - | R17: -
B18: 2018-06-19 | C18: Kl 20.00 | D18: Ryssland | E18: - | F18: Egypten | J18: - | N18: - | R18: -
B19: 2018-06-20 | C19: Kl 14.00 | D19: Portugal | E19: - | F19: Marocko | J19: - | N19: - | R19: -
B20: 2018-06-20 | C20: Kl 17.00 | D20: Uruguay | E20: - | F20: Saudiarabien | J20: - | N20: - | R20: -
B21: 2018-06-20 | C21: Kl 20.00 | D21: Iran | E21: - | F21: Spanien | J21: - | N21: - | R21: -
B22: 2018-06-21 | C22: Kl 14.00 | D22: Danmark | E22: - | F22: Australien | J22: - | N22: - | R22: -
B23: 2018-06-21 | C23: Kl 17.00 | D23: Frankrike | E23: - | F23: Peru | J23: - | N23: - | R23: -
B24: 2018-06-21 | C24: Kl 20.00 | D24: Argentina | E24: - | F24: Kroatien | J24: - | N24: - | R24: -
B25: 2018-06-22 | C25: Kl 14.00 | D25: Brasilien | E25: - | F25: Costa Rica | J25: - | N25: - | R25: -
B26: 2018-06-22 | C26: Kl 17.00 | D26: Nigeria | E26: =E25 -> - | F26: Island | J26: - | N26: - | R26: -
B27: 2018-06-22 | C27: Kl 20.00 | D27: Serbien | E27: - | F27: Schweiz | J27: - | N27: - | R27: -
B28: 2018-06-23 | C28: Kl 14.00 | D28: Belgien | E28: - | F28: Tunisien | J28: - | N28: - | R28: -
B29: 2018-06-23 | C29: Kl 17.00 | D29: Sydkorea | E29: - | F29: Mexiko | J29: - | N29: - | R29: -
B30: 2018-06-23 | C30: Kl 20.00 | D30: Tyskland | E30: - | F30: Sverige | J30: - | N30: - | R30: -
B31: 2018-06-24 | C31: Kl 14.00 | D31: England | E31: - | F31: Panama | J31: - | N31: - | R31: -
B32: 2018-06-24 | C32: Kl 17.00 | D32: Japan | E32: - | F32: Senegal | J32: - | N32: - | R32: -
B33: 2018-06-24 | C33: Kl 20.00 | D33: Polen | E33: - | F33: Colombia | J33: - | N33: - | R33: -
B34: 2018-06-25 | C34: Kl 16.00 | D34: Saudiarbien | E34: - | F34: Egypten | J34: - | N34: - | R34: -
B35: 2018-06-25 | C35: Kl 16.00 | D35: Uruguay | E35: - | F35: Ryssland | J35: - | N35: - | R35: -
B36: 2018-06-25 | C36: Kl 20.00 | D36: Spanien | E36: - | F36: Marocko | J36: - | N36: - | R36: -
B37: 2018-06-25 | C37: Kl 20.00 | D37: Iran | E37: - | F37: Portugal | J37: - | N37: - | R37: -
B38: 2018-06-26 | C38: Kl 16.00 | D38: Danmark | E38: - | F38: Frankrike | J38: - | N38: - | R38: -
B39: 2018-06-26 | C39: Kl 16.00 | D39: Australien | E39: - | F39: Peru | J39: - | N39: - | R39: -
B40: 2018-06-26 | C40: Kl 20.00 | D40: Island | E40: - | F40: Krotien | J40: - | N40: - | R40: -
B41: 2018-06-26 | C41: Kl 20.00 | D41: Nigeria | E41: - | F41: Argentina | J41: - | N41: - | R41: -
B42: 2018-06-27 | C42: Kl 16.00 | D42: Mexiko | E42: - | F42: Sverige | J42: - | N42: - | R42: -
B43: 2018-06-27 | C43: Kl 16.00 | D43: Sydkorea | E43: - | F43: Tyskland | J43: - | N43: - | R43: -
B44: 2018-06-27 | C44: Kl 20.00 | D44: Serbien | E44: - | F44: Brasilien | J44: - | N44: - | R44: -
B45: 2018-06-27 | C45: Kl 20.00 | D45: Schweiz | E45: - | F45: Costa Rica | J45: - | N45: - | R45: -
B46: 2018-06-28 | C46: Kl 16.00 | D46: Japan | E46: - | F46: Polen | J46: - | N46: - | R46: -
B47: 2018-06-28 | C47: Kl 16.00 | D47: Senegal | E47: - | F47: Colombia | J47: - | N47: - | R47: -
B48: 2018-06-28 | C48: Kl 20.00 | D48: Panama | E48: - | F48: Tunisien | J48: - | N48: - | R48: -
B49: 2018-06-28 | C49: Kl 20.00 | D49: England | F49: Belgien | J49: - | N49: - | R49: -
D50: Vinnande land

Sheet Blad5
F2: Nästa match på kupongen
C3: Uppdaterat | F3: =Poängställning!R2 -> 2018-06-16 | H3: =Poängställning!T2 -> Kl 12.00
C4: =NOW() -> 2018-06-15T21:53:53.350 | F4: =Poängställning!R3 -> Frankrike | G4: =Poängställning!S3 -> - | H4: =Poängställning!T3 -> Australien
C5: =Poängställning!B2 -> Tommy T 2 | E5: =Poängställning!G2 -> 14 | F5: =Poängställning!N2 -> 2 | G5: =Poängställning!O2 -> - | H5: =Poängställning!P2 -> 1
C6: =Poängställning!B3 -> Pernilla | E6: =Poängställning!G3 -> 14 | F6: =Poängställning!N3 -> 3 | G6: =Poängställning!O3 -> - | H6: =Poängställning!P3 -> 1
C7: =Poängställning!B4 -> Anitha | E7: =Poängställning!G4 -> 12 | F7: =Poängställning!N4 -> 2 | G7: =Poängställning!O4 -> - | H7: =Poängställning!P4 -> 0
C8: =Poängställning!B5 -> Christian | E8: =Poängställning!G5 -> 11 | F8: =Poängställning!N5 -> 1 | G8: =Poängställning!O5 -> - | H8: =Poängställning!P5 -> 0
C9: =Poängställning!B6 -> Lars L | E9: =Poängställning!G6 -> 11 | F9: =Poängställning!N6 -> 3 | G9: =Poängställning!O6 -> - | H9: =Poängställning!P6 -> 1
C10: =Poängställning!B7 -> Mats-ola | E10: =Poängställning!G7 -> 11 | F10: =Poängställning!N7 -> 2 | G10: =Poängställning!O7 -> - | H10: =Poängställning!P7 -> 1
C11: =Poängställning!B8 -> Ludde | E11: =Poängställning!G8 -> 11 | F11: =Poängställning!N8 -> 2 | G11: =Poängställning!O8 -> - | H11: =Poängställning!P8 -> 1
C12: =Poängställning!B9 -> Hans Modh | E12: =Poängställning!G9 -> 11 | F12: =Poängställning!N9 -> 2 | G12: =Poängställning!O9 -> - | H12: =Poängställning!P9 -> 0
C13: =Poängställning!B10 -> Ludde 2 | E13: =Poängställning!G10 -> 11 | F13: =Poängställning!N10 -> 2 | G13: =Poängställning!O10 -> - | H13: =Poängställning!P10 -> 1
C14: =Poängställning!B11 -> Mia E | E14: =Poängställning!G11 -> 9 | F14: =Poängställning!N11 -> 4 | G14: =Poängställning!O11 -> - | H14: =Poängställning!P11 -> 1
C15: =Poängställning!B12 -> Tommy T 1 | E15: =Poängställning!G12 -> 9 | F15: =Poängställning!N12 -> 3 | G15: =Poängställning!O12 -> - | H15: =Poängställning!P12 -> 0
C16: =Poängställning!B13 -> Reino | E16: =Poängställning!G13 -> 9 | F16: =Poängställning!N13 -> 2 | G16: =Poängställning!O13 -> - | H16: =Poängställning!P13 -> 1
C17: =Poängställning!B14 -> Jonny E | E17: =Poängställning!G14 -> 9 | F17: =Poängställning!N14 -> 2 | G17: =Poängställning!O14 -> - | H17: =Poängställning!P14 -> 0
C18: =Poängställning!B15 -> Romee | E18: =Poängställning!G15 -> 9 | F18: =Poängställning!N15 -> 3 | G18: =Poängställning!O15 -> - | H18: =Poängställning!P15 -> 1
C19: =Poängställning!B16 -> Christer 2 | E19: =Poängställning!G16 -> 9 | F19: =Poängställning!N16 -> 4 | G19: =Poängställning!O16 -> - | H19: =Poängställning!P16 -> 0
C20: =Poängställning!B17 -> Tina | E20: =Poängställning!G17 -> 9 | F20: =Poängställning!N17 -> 2 | G20: =Poängställning!O17 -> - | H20: =Poängställning!P17 -> 0
C21: =Poängställning!B18 -> Monika A | E21: =Poängställning!G18 -> 9 | F21: =Poängställning!N18 -> 2 | G21: =Poängställning!O18 -> - | H21: =Poängställning!P18 -> 0
C22: =Poängställning!B19 -> Torvald | E22: =Poängställning!G19 -> 9 | F22: =Poängställning!N19 -> 2 | G22: =Poängställning!O19 -> - | H22: =Poängställning!P19 -> 0
C23: =Poängställning!B20 -> Stefan L | E23: =Poängställning!G20 -> 9 | F23: =Poängställning!N20 -> 2 | G23: =Poängställning!O20 -> - | H23: =Poängställning!P20 -> 1
C24: =Poängställning!B21 -> Lennart C1 | E24: =Poängställning!G21 -> 9 | F24: =Poängställning!N21 -> 2 | G24: =Poängställning!O21 -> - | H24: =Poängställning!P21 -> 1
C25: =Poängställning!B22 -> Andreas | E25: =Poängställning!G22 -> 9 | F25: =Poängställning!N22 -> 4 | G25: =Poängställning!O22 -> - | H25: =Poängställning!P22 -> 0
C26: =Poängställning!B23 -> Rune Tjotta | E26: =Poängställning!G23 -> 9 | F26: =Poängställning!N23 -> 3 | G26: =Poängställning!O23 -> - | H26: =Poängställning!P23 -> 0
C27: =Poängställning!B24 -> Jessica | E27: =Poängställning!G24 -> 8 | F27: =Poängställning!N24 -> 2 | G27: =Poängställning!O24 -> - | H27: =Poängställning!P24 -> 1
C28: =Poängställning!B25 -> Till minne av Esbjörn | E28: =Poängställning!G25 -> 8 | F28: =Poängställning!N25 -> 1 | G28: =Poängställning!O25 -> - | H28: =Poängställning!P25 -> 0
C29: =Poängställning!B26 -> Gustav | E29: =Poängställning!G26 -> 8 | F29: =Poängställning!N26 -> 3 | G29: =Poängställning!O26 -> - | H29: =Poängställning!P26 -> 0
C30: =Poängställning!B27 -> Jan E | E30: =Poängställning!G27 -> 8 | F30: =Poängställning!N27 -> 2 | G30: =Poängställning!O27 -> - | H30: =Poängställning!P27 -> 1
C31: =Poängställning!B28 -> Wiking | E31: =Poängställning!G28 -> 8 | F31: =Poängställning!N28 -> 2 | G31: =Poängställning!O28 -> - | H31: =Poängställning!P28 -> 0
C32: =Poängställning!B29 -> Emma | E32: =Poängställning!G29 -> 8 | F32: =Poängställning!N29 -> 1 | G32: =Poängställning!O29 -> - | H32: =Poängställning!P29 -> 0
C33: =Poängställning!B30 -> Roger W | E33: =Poängställning!G30 -> 6 | F33: =Poängställning!N30 -> 3 | G33: =Poängställning!O30 -> - | H33: =Poängställning!P30 -> 1
C34: =Poängställning!B31 -> Roger W 2 | E34: =Poängställning!G31 -> 6 | F34: =Poängställning!N31 -> 2 | G34: =Poängställning!O31 -> - | H34: =Poängställning!P31 -> 0
C35: =Poängställning!B32 -> Lars Haglund | E35: =Poängställning!G32 -> 6 | F35: =Poängställning!N32 -> 2 | G35: =Poängställning!O32 -> - | H35: =Poängställning!P32 -> 0
C36: =Poängställning!B33 -> Arne E | E36: =Poängställning!G33 -> 6 | F36: =Poängställning!N33 -> 4 | G36: =Poängställning!O33 -> - | H36: =Poängställning!P33 -> 2
C37: =Poängställning!B34 -> Jonte | E37: =Poängställning!G34 -> 6 | F37: =Poängställning!N34 -> 2 | G37: =Poängställning!O34 -> - | H37: =Poängställning!P34 -> 1
C38: =Poängställning!B35 -> Jonas M | E38: =Poängställning!G35 -> 6 | F38: =Poängställning!N35 -> 4 | G38: =Poängställning!O35 -> - | H38: =Poängställning!P35 -> 1
C39: =Poängställning!B36 -> Johan G | E39: =Poängställning!G36 -> 6 | F39: =Poängställning!N36 -> 4 | G39: =Poängställning!O36 -> - | H39: =Poängställning!P36 -> 0
C40: =Poängställning!B37 -> Edvin A | E40: =Poängställning!G37 -> 6 | F40: =Poängställning!N37 -> 2 | G40: =Poängställning!O37 -> - | H40: =Poängställning!P37 -> 0
C41: =Poängställning!B38 -> Dick W1 | E41: =Poängställning!G38 -> 6 | F41: =Poängställning!N38 -> 3 | G41: =Poängställning!O38 -> - | H41: =Poängställning!P38 -> 0
C42: =Poängställning!B39 -> Dick W2 | E42: =Poängställning!G39 -> 6 | F42: =Poängställning!N39 -> 2 | G42: =Poängställning!O39 -> - | H42: =Poängställning!P39 -> 3
C43: =Poängställning!B40 -> Bo Jansson | E43: =Poängställning!G40 -> 6 | F43: =Poängställning!N40 -> 3 | G43: =Poängställning!O40 -> - | H43: =Poängställning!P40 -> 0
C44: =Poängställning!B41 -> Lennart C3 | E44: =Poängställning!G41 -> 6 | F44: =Poängställning!N41 -> 1 | G44: =Poängställning!O41 -> - | H44: =Poängställning!P41 -> 1
C45: =Poängställning!B42 -> Sonny | E45: =Poängställning!G42 -> 6 | F45: =Poängställning!N42 -> 2 | G45: =Poängställning!O42 -> - | H45: =Poängställning!P42 -> 0
C46: =Poängställning!B43 -> Monica Modh | E46: =Poängställning!G43 -> 6 | F46: =Poängställning!N43 -> 2 | G46: =Poängställning!O43 -> - | H46: =Poängställning!P43 -> 0
C47: =Poängställning!B44 -> Alf B | E47: =Poängställning!G44 -> 6 | F47: =Poängställning!N44 -> 4 | G47: =Poängställning!O44 -> - | H47: =Poängställning!P44 -> 1
C48: =Poängställning!B45 -> Anne-Marie I | E48: =Poängställning!G45 -> 6 | F48: =Poängställning!N45 -> 3 | G48: =Poängställning!O45 -> - | H48: =Poängställning!P45 -> 2
C49: =Poängställning!B46 -> Lars, Kjell, Rolf | E49: =Poängställning!G46 -> 6 | F49: =Poängställning!N46 -> 3 | G49: =Poängställning!O46 -> - | H49: =Poängställning!P46 -> 1
C50: =Poängställning!B47 -> Janne L | E50: =Poängställning!G47 -> 6 | F50: =Poängställning!N47 -> 3 | G50: =Poängställning!O47 -> - | H50: =Poängställning!P47 -> 0
C51: =Poängställning!B48 -> Manfreed | E51: =Poängställning!G48 -> 3 | F51: =Poängställning!N48 -> 1 | G51: =Poängställning!O48 -> - | H51: =Poängställning!P48 -> 0
C52: =Poängställning!B49 -> Tommy T 3 | E52: =Poängställning!G49 -> 3 | F52: =Poängställning!N49 -> 2 | G52: =Poängställning!O49 -> - | H52: =Poängställning!P49 -> 0
C53: =Poängställning!B50 -> Bo Fransson | E53: =Poängställning!G50 -> 3 | F53: =Poängställning!N50 -> 2 | G53: =Poängställning!O50 -> - | H53: =Poängställning!P50 -> 0
C54: =Poängställning!B51 -> Mika | E54: =Poängställning!G51 -> 3 | F54: =Poängställning!N51 -> 3 | G54: =Poängställning!O51 -> - | H54: =Poängställning!P51 -> 0
C55: =Poängställning!B52 -> Jappe | E55: =Poängställning!G52 -> 3 | F55: =Poängställning!N52 -> 1 | G55: =Poängställning!O52 -> - | H55: =Poängställning!P52 -> 0
C56: =Poängställning!B53 -> Gille | E56: =Poängställning!G53 -> 3 | F56: =Poängställning!N53 -> 2 | G56: =Poängställning!O53 -> - | H56: =Poängställning!P53 -> 0
C57: =Poängställning!B54 -> Maria I | E57: =Poängställning!G54 -> 3 | F57: =Poängställning!N54 -> 4 | G57: =Poängställning!O54 -> - | H57: =Poängställning!P54 -> 3
C58: =Poängställning!B55 -> Eva W | E58: =Poängställning!G55 -> 3 | F58: =Poängställning!N55 -> 2 | G58: =Poängställning!O55 -> - | H58: =Poängställning!P55 -> 0
C59: =Poängställning!B56 -> Christer 1 | E59: =Poängställning!G56 -> 0 | F59: =Poängställning!N56 -> 3 | G59: =Poängställning!O56 -> - | H59: =Poängställning!P56 -> 0
C60: =Poängställning!B57 -> Lennart C2 | E60: =Poängställning!G57 -> 0 | F60: =Poängställning!N57 -> 3 | G60: =Poängställning!O57 -> - | H60: =Poängställning!P57 -> 0

Sheet Blad4
